Service Area,Service Division,Expense Type,Expense Code,Detailed Expense Type,Payment Date,Transaction Number,Amount Exc VAT,Supplier Name
Neighbourhoods and Climate Change,Partnerships & Community Engagement Div.,Cap Exp on Grants & Other Financial Assistance (REFCUS),918004,Contributions to other bodies 918004,18/03/2022,3981518-VOUCHER20NB-EDUR058,"3,000.00",1932 (BLACKHALL) AIR TRAINING CORPS.
Dedicated Schools Grant BG0015,DSG High Needs Block,Central Support and Other Recharges,689989,Unclassified E690,03/03/2022,3974844-FEBRUARY2022TOPUP,"2,778.00",1EXCELLENCE MAT.
Neighbourhoods and Climate Change,Technical Services CM0300,Stock A926,926900,Stock in hand-Inventory system,21/03/2022,3981952-278630,"2,950.00",1ST COVERALL COMPANY LTD.
Neighbourhoods and Climate Change,Technical Services CM0300,Stock A926,926900,Stock in hand-Inventory system,24/03/2022,3983571-278835,"2,338.00",1ST COVERALL COMPANY LTD.
Children and Young Peoples Services,Head of Education and Skills,Transport,230034,Contract Hire,03/03/2022,3974856-22203,812.44,24/7 TAXI SERVICES (PETERLEE) LTD.
Children and Young Peoples Services,Head of Education and Skills,Transport,230007,Contract Hire,03/03/2022,3974856-22204,615.00,24/7 TAXI SERVICES (PETERLEE) LTD.
Children and Young Peoples Services,Head of Education and Skills,Transport,230006,Contract Hire,03/03/2022,3974856-22206,"1,693.95",24/7 TAXI SERVICES (PETERLEE) LTD.
Children and Young Peoples Services,Head of Education and Skills,Transport,230006,Contract Hire,03/03/2022,3974856-22208,750.00,24/7 TAXI SERVICES (PETERLEE) LTD.
Children and Young Peoples Services,Head of Education and Skills,Transport,230008,Contract Hire,03/03/2022,3974856-22210,"2,467.53",24/7 TAXI SERVICES (PETERLEE) LTD.
Children and Young Peoples Services,Head of Education and Skills,Transport,230008,Contract Hire,03/03/2022,3974856-22211,"2,100.00",24/7 TAXI SERVICES (PETERLEE) LTD.
Children and Young Peoples Services,Head of Education and Skills,Transport,230006,Contract Hire,03/03/2022,3974856-22214,"2,395.65",24/7 TAXI SERVICES (PETERLEE) LTD.
Children and Young Peoples Services,Head of Education and Skills,Transport,230008,Contract Hire,03/03/2022,3974856-22215,"2,835.00",24/7 TAXI SERVICES (PETERLEE) LTD.
Children and Young Peoples Services,Head of Education and Skills,Transport,230012,Contract Hire,03/03/2022,3974856-22216,"1,800.00",24/7 TAXI SERVICES (PETERLEE) LTD.
Children and Young Peoples Services,Head of Education and Skills,Transport,230008,Contract Hire,03/03/2022,3974856-22217,"2,385.00",24/7 TAXI SERVICES (PETERLEE) LTD.
Children and Young Peoples Services,Head of Education and Skills,Transport,230008,Contract Hire,03/03/2022,3974856-22218,"2,090.00",24/7 TAXI SERVICES (PETERLEE) LTD.
Children and Young Peoples Services,Head of Education and Skills,Transport,230034,Contract Hire,03/03/2022,3974856-22220,"1,800.00",24/7 TAXI SERVICES (PETERLEE) LTD.
Children and Young Peoples Services,Head of Education and Skills,Transport,230008,Contract Hire,03/03/2022,3974856-22221,"1,485.00",24/7 TAXI SERVICES (PETERLEE) LTD.
Children and Young Peoples Services,Head of Education and Skills,Transport,230006,Contract Hire,03/03/2022,3974856-22223,"1,200.00",24/7 TAXI SERVICES (PETERLEE) LTD.
Children and Young Peoples Services,Head of Education and Skills,Transport,230006,Contract Hire,03/03/2022,3974856-22224,885.00,24/7 TAXI SERVICES (PETERLEE) LTD.
Children and Young Peoples Services,Head of Education and Skills,Transport,230006,Contract Hire,03/03/2022,3974856-22227,"2,619.90",24/7 TAXI SERVICES (PETERLEE) LTD.
Children and Young Peoples Services,Head of Education and Skills,Transport,230008,Contract Hire,03/03/2022,3974856-22228,"2,764.69",24/7 TAXI SERVICES (PETERLEE) LTD.
Children and Young Peoples Services,Head of Education and Skills,Transport,230012,Contract Hire,03/03/2022,3974856-22229,"2,250.00",24/7 TAXI SERVICES (PETERLEE) LTD.
Adult and Health Services,Head of Adults,Transport,230005,Contract Hire,03/03/2022,3974856-22230,936.00,24/7 TAXI SERVICES (PETERLEE) LTD.
Children and Young Peoples Services,Head of Education and Skills,Transport,230008,Contract Hire,09/03/2022,3976927-22207,720.00,24/7 TAXI SERVICES (PETERLEE) LTD.
Children and Young Peoples Services,Head of Education and Skills,Transport,230008,Contract Hire,10/03/2022,3977436-22219,"4,093.70",24/7 TAXI SERVICES (PETERLEE) LTD.
Children and Young Peoples Services,Head of Education and Skills,Transport,230008,Contract Hire,21/03/2022,3981953-22213,"3,606.42",24/7 TAXI SERVICES (PETERLEE) LTD.
Children and Young Peoples Services,Head of Education and Skills,Transport,230006,Contract Hire,24/03/2022,3983572-22225,947.00,24/7 TAXI SERVICES (PETERLEE) LTD.
Children and Young Peoples Services,Head of Education and Skills,Transport,230007,Contract Hire,11/03/2022,3977865-80830,"1,146.00",24X7LTD.
Children and Young Peoples Services,Head of Education and Skills,Transport,230007,Contract Hire,11/03/2022,3977865-80832,"1,071.15",24X7LTD.
Children and Young Peoples Services,Head of Education and Skills,Transport,230007,Contract Hire,11/03/2022,3977865-80834,"1,198.12",24X7LTD.
Children and Young Peoples Services,Head of Education and Skills,Transport,230008,Contract Hire,11/03/2022,3977865-80838,"1,462.39",24X7LTD.
Children and Young Peoples Services,Head of Education and Skills,Transport,230012,Contract Hire,11/03/2022,3977865-80840,"1,659.75",24X7LTD.
Children and Young Peoples Services,Head of Education and Skills,Transport,230012,Contract Hire,11/03/2022,3977865-80841,"2,133.30",24X7LTD.
Children and Young Peoples Services,Head of Education and Skills,Transport,230008,Contract Hire,11/03/2022,3977865-80842,"2,548.80",24X7LTD.
Children and Young Peoples Services,Head of Education and Skills,Transport,230008,Contract Hire,11/03/2022,3977865-80843,"1,863.42",24X7LTD.
Children and Young Peoples Services,Head of Education and Skills,Transport,230008,Contract Hire,11/03/2022,3977865-80844,"2,591.10",24X7LTD.
Children and Young Peoples Services,Head of Education and Skills,Transport,230007,Contract Hire,18/03/2022,3981520-80831,"1,146.90",24X7LTD.
Children and Young Peoples Services,Head of Education and Skills,Transport,230034,Contract Hire,30/03/2022,3985926-13023,"2,838.60",24X7LTD.
Children and Young Peoples Services,Head of Education and Skills,Transport,230007,Contract Hire,30/03/2022,3985926-13024,"1,711.60",24X7LTD.
Children and Young Peoples Services,Head of Education and Skills,Transport,230009,Contract Hire,30/03/2022,3985926-13025,"1,746.51",24X7LTD.
Children and Young Peoples Services,Head of Education and Skills,Transport,230008,Contract Hire,30/03/2022,3985926-13026,"3,337.68",24X7LTD.
Children and Young Peoples Services,Head of Education and Skills,Transport,230035,Contract Hire,30/03/2022,3985926-13027,"1,545.96",24X7LTD.
Children and Young Peoples Services,Head of Education and Skills,Transport,230034,Contract Hire,30/03/2022,3985926-80829,"2,128.95",24X7LTD.
Children and Young Peoples Services,Head of Education and Skills,Transport,230035,Contract Hire,30/03/2022,3985926-80833,"1,224.90",24X7LTD.
Children and Young Peoples Services,Head of Education and Skills,Transport,230007,Contract Hire,30/03/2022,3985926-80835,981.90,24X7LTD.
Children and Young Peoples Services,Head of Education and Skills,Transport,230009,Contract Hire,30/03/2022,3985926-80836,"1,304.85",24X7LTD.
Regeneration Economy and Growth,Business Durham CL0850,Supplies and Services,336005,Advertising E336,29/03/2022,3985338-322471,"4,750.00",3 POINT MEDIA.
Regeneration Economy and Growth,Business Durham CL0850,Supplies and Services,384899,Miscellaneous Expenses,04/03/2022,3975276-DBRG-02-2022-43,587.93,4 PAWS FARM KENNELS & CATTERY.
Adult and Health Services,Head of Adults,Supplies and Services,338099,Services,30/03/2022,3985927-DM-1396440,"1,487.90",4IMPRINT DIRECT LTD.
Neighbourhoods and Climate Change,Environmental Services,Third Party Payments,460305,Contract Payments,29/03/2022,3985339-3227,891.00,A & J GUTHRIE.
Children and Young Peoples Services,Head of Education and Skills,Transport,230006,Contract Hire,09/03/2022,3976928-FEBRUARY012,"1,575.00",A & P TAXIS.
Children and Young Peoples Services,Head of Education and Skills,Transport,230009,Contract Hire,09/03/2022,3976928-FEBRUARY022,944.25,A & P TAXIS.
Regeneration Economy and Growth,Business Durham CL0850,Construction work A908,908105,Construction work,03/03/2022,3974875-22486,"32,750.00",A BUCKLER (HAULAGE) LTD.
Adult and Health Services,Head of Adults,Third Party Payments,470101,Purchase of Care,17/03/2022,3980053-I-22-3215378,"67,258.71",A CHARLES THOMAS (CARE) LTD.
Neighbourhoods and Climate Change,Environmental Services,Supplies and Services,304221,Equipment and Materials,07/03/2022,3975665-012271,"2,402.76",A HILL & SONS LTD.
Children and Young Peoples Services,Head of Childrens Social Care,Third Party Payments,425021,Rendered by Voluntary Organisations,17/03/2022,3980054-PIG_122487,"42,000.00",A WILDERNESS WAY LTD.
Children and Young Peoples Services,Head of Childrens Social Care,Third Party Payments,425021,Rendered by Voluntary Organisations,30/03/2022,3985928-8311,"3,538.50",A WILDERNESS WAY LTD.
Regeneration Economy and Growth,Corporate Property and Land,Supplies and Services,304221,Equipment and Materials,22/03/2022,3982748-4162766,937.01,A&A ELECTRICAL DISTRIBUTORS LTD.
Children and Young Peoples Services,Head of Childrens Social Care,Third Party Payments,425040,Rendered by Voluntary Organisations,17/03/2022,3980055-PIG_123287,"18,240.00",A1 FOSTER CARE.
Children and Young Peoples Services,Head of Childrens Social Care,Supplies and Services,384540,Miscellaneous Expenses,10/03/2022,3977438-14168,"1,850.00",A1 TROPHIES & ENGRAVING.
Regeneration Economy and Growth,Corporate Property and Land,Third Party Payments,430100,Rendered by Private Contractors,16/03/2022,3979722-9090,800.00,A19 DRILLING LTD.
Neighbourhoods and Climate Change,Environmental Services,Supplies and Services,384199,Miscellaneous Expenses,23/03/2022,3983168-2980,"1,850.00",AA GARDEN LANDSCAPES LTD.
Neighbourhoods and Climate Change,Environmental Services,Supplies and Services,384199,Miscellaneous Expenses,23/03/2022,3983168-2981,980.00,AA GARDEN LANDSCAPES LTD.
Neighbourhoods and Climate Change,Environmental Services,Supplies and Services,384199,Miscellaneous Expenses,23/03/2022,3983168-2982,"1,850.00",AA GARDEN LANDSCAPES LTD.
Children and Young Peoples Services,Head of Education and Skills,Transport,230008,Contract Hire,04/03/2022,3975277-0222/SB,"1,050.00",AABAT TAXIS.
Children and Young Peoples Services,Head of Education and Skills,Transport,230034,Contract Hire,04/03/2022,3975277-0222/SE,"1,331.40",AABAT TAXIS.
Children and Young Peoples Services,Head of Education and Skills,Transport,230006,Contract Hire,04/03/2022,3975277-0222/SI,"1,006.20",AABAT TAXIS.
Adult and Health Services,Head of Adults,Transport,230005,Contract Hire,04/03/2022,3975277-0222/SK,"2,356.20",AABAT TAXIS.
Children and Young Peoples Services,Head of Education and Skills,Transport,230007,Contract Hire,04/03/2022,3975277-0222/SM,"1,740.60",AABAT TAXIS.
Children and Young Peoples Services,Head of Education and Skills,Transport,230008,Contract Hire,14/03/2022,3978368-0222/SA-MAIN,"1,254.40",AABAT TAXIS.
Children and Young Peoples Services,Head of Education and Skills,Transport,230008,Contract Hire,14/03/2022,3978368-0222/SC-MAIN,"2,368.00",AABAT TAXIS.
Children and Young Peoples Services,Head of Education and Skills,Transport,230008,Contract Hire,14/03/2022,3978368-0222/SD-MAIN,"1,706.70",AABAT TAXIS.
Adult and Health Services,Head of Adults,Transport,230005,Contract Hire,14/03/2022,3978368-0222/SF,577.93,AABAT TAXIS.
Children and Young Peoples Services,Head of Education and Skills,Transport,230012,Contract Hire,14/03/2022,3978368-0222/SG-MAIN,"1,211.70",AABAT TAXIS.
Adult and Health Services,Head of Adults,Transport,230005,Contract Hire,14/03/2022,3978368-0222/SH-MAIN,"1,350.00",AABAT TAXIS.
Children and Young Peoples Services,Head of Education and Skills,Transport,230007,Contract Hire,14/03/2022,3978368-0222/SL-MAIN,"1,320.45",AABAT TAXIS.
Children and Young Peoples Services,Head of Education and Skills,Transport,230034,Contract Hire,14/03/2022,3978368-0222/SO-MAIN,682.50,AABAT TAXIS.
Children and Young Peoples Services,Head of Education and Skills,Transport,230007,Contract Hire,14/03/2022,3978368-0222/SR-MAIN,775.07,AABAT TAXIS.
Children and Young Peoples Services,Head of Education and Skills,Transport,230012,Contract Hire,14/03/2022,3978368-0222/SS-MAIN,982.20,AABAT TAXIS.
Children and Young Peoples Services,Head of Education and Skills,Transport,230008,Contract Hire,18/03/2022,3981522-0222/SJ,903.46,AABAT TAXIS.
Adult and Health Services,Head of Adults,Transport,230005,Contract Hire,11/03/2022,3977869-0544,639.60,ABC & OUSTON CABS.
Children and Young Peoples Services,Head of Education and Skills,Transport,230008,Contract Hire,24/03/2022,3983577-O545,"1,648.92",ABC & OUSTON CABS.
Children and Young Peoples Services,Head of Education and Skills,Transport,230010,Contract Hire,28/03/2022,3984521-O543,"1,819.34",ABC & OUSTON CABS.
Children and Young Peoples Services,Head of Early Help Inclusion & Vulnerable Children.,Supplies and Services,342055,Computers and Communications,07/03/2022,3975668-54953,753.00,ABILITY SMART LTD.
Adult and Health Services,Public Health CC0450,Third Party Payments,460803,Contract Payments,04/03/2022,3975278-INV-1460,"124,855.00",ABL HEALTH LTD.
Resources BK0010,Digital and Customer Services,Supplies and Services,338027,Services,03/03/2022,3974879-1006,"8,102.50",ABLEDOCS LTD.
Children and Young Peoples Services,Head of Education and Skills,Transport,230007,Contract Hire,15/03/2022,3979284-874,"1,020.00",AC TAXIS.
Children and Young Peoples Services,Head of Education and Skills,Transport,230006,Contract Hire,15/03/2022,3979284-876,829.17,AC TAXIS.
Adult and Health Services,Head of Adults,Third Party Payments,479152,Purchase of Care,08/03/2022,3976568-WORKFORCER&RFUND2/77,"12,000.00",ACCEPT CARE LTD.
Adult and Health Services,Head of Adults,Third Party Payments,478101,Purchase of Care,17/03/2022,3980059-I-22-3215659,"17,570.12",ACCEPT CARE LTD.
Adult and Health Services,Head of Adults,Third Party Payments,478101,Purchase of Care,17/03/2022,3980059-I-22-3215719,"25,350.00",ACCEPT CARE LTD.
Adult and Health Services,Head of Adults,Third Party Payments,478101,Purchase of Care,17/03/2022,3980059-I-22-3215797,"27,160.37",ACCEPT CARE LTD.
Adult and Health Services,Head of Adults,Third Party Payments,478101,Purchase of Care,17/03/2022,3980059-I-22-3215841,"33,744.00",ACCEPT CARE LTD.
Adult and Health Services,Head of Adults,Third Party Payments,478101,Purchase of Care,17/03/2022,3980059-I-22-3215846,"33,171.60",ACCEPT CARE LTD.
Adult and Health Services,Head of Adults,Third Party Payments,478101,Purchase of Care,17/03/2022,3980059-I-22-3215908,"11,040.00",ACCEPT CARE LTD.
Adult and Health Services,Head of Adults,Third Party Payments,473101,Purchase of Care,17/03/2022,3980059-I-22-3215951,"9,277.52",ACCEPT CARE LTD.
Neighbourhoods and Climate Change,Environmental Services,Supplies and Services,342051,Computers and Communications,10/03/2022,3977440-1272787,690.00,ACCESS UK LTD.
Resources BK0010,Digital and Customer Services,Supplies and Services,342051,Computers and Communications,23/03/2022,3983169-1291589,"23,410.00",ACCESS UK LTD.
Resources BK0010,Digital and Customer Services,Supplies and Services,342051,Computers and Communications,23/03/2022,3983169-1291593,"31,464.00",ACCESS UK LTD.
Adult and Health Services,Head of Adults,Supplies and Services,342053,Computers and Communications,31/03/2022,3986302-1266081,"15,650.00",ACCESS UK LTD.
Children and Young Peoples Services,Head of Education and Skills,Transport,230008,Contract Hire,11/03/2022,3977870-AC2039,"1,050.00",ACE TAXIS (WINSTON).
Children and Young Peoples Services,Head of Education and Skills,Transport,230007,Contract Hire,15/03/2022,3979285-AC2038FEB22,"1,293.30",ACE TAXIS (WINSTON).
Children and Young Peoples Services,Head of Childrens Social Care,Third Party Payments,425040,Rendered by Voluntary Organisations,17/03/2022,3980266-PIG_123306,"19,790.08",ACORN CARE (NE) LTD.
Children and Young Peoples Services,Head of Childrens Social Care,Third Party Payments,425040,Rendered by Voluntary Organisations,17/03/2022,3980267-PIG_122524,"12,244.64",ACORN HOUSE (FOSTERING SERVICES) LTD.
Regeneration Economy and Growth,Communications Management,Supplies and Services,332029,Printing Stationery and Gen Off Exps,10/03/2022,3977442-70917,"15,952.98",ACORN WEB OFFSET LTD.
Regeneration Economy and Growth,Corporate Property and Land,Premises,106083,Centrally Controlled Rep and Maint,04/03/2022,3975279-INV9244,"15,755.52",ACROL AIR CONDITIONING CO LTD.
Children and Young Peoples Services,Head of Early Help Inclusion & Vulnerable Children.,Premises,108099,Service Repairs and Maintenance,18/03/2022,3981525-365,"24,070.43",ACROL AIR CONDITIONING CO LTD.
Adult and Health Services,Head of Adults,Third Party Payments,478101,Purchase of Care,17/03/2022,3980268-I-22-3215902,"1,080.00",ACTION DEAFNESS LTD.
Adult and Health Services,Head of Adults,Third Party Payments,479152,Purchase of Care,11/03/2022,3977871-WORKFORCER&RFUND2/131,"11,000.00",ACTION FOR CARE LTD.
Adult and Health Services,Head of Adults,Third Party Payments,470101,Purchase of Care,17/03/2022,3980269-I-22-3215397,"53,137.28",ACTION FOR CARE LTD.
Adult and Health Services,Head of Adults,Third Party Payments,479152,Purchase of Care,22/03/2022,3982749-WORKFORCER&RFUND2/166,"6,500.00",ACTION FOR CARE LTD.
Children and Young Peoples Services,Head of Childrens Social Care,Third Party Payments,486048,Service level agreements E486,02/03/2022,3974373-R81IN2/00011872,"2,798.27",ACTION FOR CHILDREN SERVICES LTD.*
Children and Young Peoples Services,Head of Childrens Social Care,Supplies and Services,338045,Services,01/03/2022,3974010-AM3849,"1,553.25",ACUTE MEDICAL LTD.
Resources BK0010,Legal & Democratic Services,Supplies and Services,340001,Postages E340,15/03/2022,3979286-PSI0188280,570.87,ADARE SEC LTD.
Adult and Health Services,Public Health CC0450,Third Party Payments,460803,Contract Payments,10/03/2022,3977444-INV03352,"2,500.00",ADFERIAD RECOVERY LTD.
Children and Young Peoples Services,Head of Childrens Social Care,Third Party Payments,425041,Rendered by Voluntary Organisations,22/03/2022,3982750-204066,896.00,ADOPTION MATTERS NORTHWEST.
Regeneration Economy and Growth,Corporate Property and Land,Supplies and Services,304221,Equipment and Materials,02/03/2022,3974376-49272915,895.53,ADT FIRE & SECURITY PLC.
Regeneration Economy and Growth,Business Durham CL0850,Premises,106082,Centrally Controlled Rep and Maint,04/03/2022,3975280-48822405,"1,593.28",ADT FIRE & SECURITY PLC.
Children and Young Peoples Services,Head of Early Help Inclusion & Vulnerable Children.,Premises,108099,Service Repairs and Maintenance,04/03/2022,3975280-49269154,"6,287.00",ADT FIRE & SECURITY PLC.
Regeneration Economy and Growth,Culture Sport and Tourism,Premises,106082,Centrally Controlled Rep and Maint,04/03/2022,3975280-49475646,"1,175.97",ADT FIRE & SECURITY PLC.
Regeneration Economy and Growth,Business Durham CL0850,Premises,106082,Centrally Controlled Rep and Maint,04/03/2022,3975280-49475838,"8,052.11",ADT FIRE & SECURITY PLC.
Neighbourhoods and Climate Change,Environmental Services,Premises,108099,Service Repairs and Maintenance,04/03/2022,3975280-49476871,"7,154.47",ADT FIRE & SECURITY PLC.
Regeneration Economy and Growth,Culture Sport and Tourism,Premises,106082,Centrally Controlled Rep and Maint,04/03/2022,3975280-49477078,"1,695.00",ADT FIRE & SECURITY PLC.
Adult and Health Services,Head of Adults,Premises,106082,Centrally Controlled Rep and Maint,11/03/2022,3977872-49250284,"1,362.99",ADT FIRE & SECURITY PLC.
Regeneration Economy and Growth,Corporate Property and Land,Premises,106082,Centrally Controlled Rep and Maint,18/03/2022,3981526-48580843,946.00,ADT FIRE & SECURITY PLC.
Regeneration Economy and Growth,Corporate Property and Land,Premises,108099,Service Repairs and Maintenance,18/03/2022,3981526-49033826,893.00,ADT FIRE & SECURITY PLC.
Regeneration Economy and Growth,Corporate Property and Land,Premises,108099,Service Repairs and Maintenance,18/03/2022,3981527-49476697,"1,404.00",ADT FIRE & SECURITY PLC.
Regeneration Economy and Growth,Culture Sport and Tourism,Premises,106082,Centrally Controlled Rep and Maint,18/03/2022,3981527-49484958,949.00,ADT FIRE & SECURITY PLC.
Regeneration Economy and Growth,Culture Sport and Tourism,Premises,106080,Centrally Controlled Rep and Maint,25/03/2022,3984013-49025293,"16,230.50",ADT FIRE & SECURITY PLC.
Regeneration Economy and Growth,Culture Sport and Tourism,Premises,106082,Centrally Controlled Rep and Maint,25/03/2022,3984013-49488343,"5,861.82",ADT FIRE & SECURITY PLC.
Neighbourhoods and Climate Change,Environmental Services,Premises,108099,Service Repairs and Maintenance,31/03/2022,3986303-49271780,"3,373.32",ADT FIRE & SECURITY PLC.
Regeneration Economy and Growth,Corporate Property and Land,Premises,106080,Centrally Controlled Rep and Maint,31/03/2022,3986303-49487728,"1,297.32",ADT FIRE & SECURITY PLC.
Neighbourhoods and Climate Change,Environmental Services,Premises,108099,Service Repairs and Maintenance,31/03/2022,3986303-49491376,"4,769.66",ADT FIRE & SECURITY PLC.
Children and Young Peoples Services,Head of Education and Skills,Premises,106082,Centrally Controlled Rep and Maint,31/03/2022,3986303-49491380,"1,244.91",ADT FIRE & SECURITY PLC.
Regeneration Economy and Growth,Corporate Property and Land,Premises,108099,Service Repairs and Maintenance,31/03/2022,3986304-49048897,693.00,ADT FIRE & SECURITY PLC.
Children and Young Peoples Services,Head of Early Help Inclusion & Vulnerable Children.,Premises,108251,Service Repairs and Maintenance,31/03/2022,3986304-49260206,"79,684.37",ADT FIRE & SECURITY PLC.
Children and Young Peoples Services,Head of Education and Skills,Transfer Payments,510034,School Children,01/03/2022,3974011-CAS-02-2022-139,600.00,ADVANCE LEARNING PARTNERSHIP.
Children and Young Peoples Services,Head of Education and Skills,Transfer Payments,510034,School Children,02/03/2022,3974377-CAS-02-2022-135,600.00,ADVANCE LEARNING PARTNERSHIP.
Dedicated Schools Grant BG0015,DSG High Needs Block,Central Support and Other Recharges,689988,Unclassified E690,03/03/2022,3974883-FEBRUARY2022TOPUP-STAINDROP,"1,829.00",ADVANCE LEARNING PARTNERSHIP.
Dedicated Schools Grant BG0015,DSG High Needs Block,Supplies and Services,384302,Miscellaneous Expenses,11/03/2022,3977873-PASI219,974.52,ADVANCE LEARNING PARTNERSHIP.
Dedicated Schools Grant BG0015,DSG High Needs Block,Supplies and Services,384302,Miscellaneous Expenses,11/03/2022,3977873-PASI220,"5,899.12",ADVANCE LEARNING PARTNERSHIP.
Dedicated Schools Grant BG0015,DSG High Needs Block,Supplies and Services,384302,Miscellaneous Expenses,11/03/2022,3977874-BASI7,"24,000.00",ADVANCE LEARNING PARTNERSHIP.
Children and Young Peoples Services,Head of Education and Skills,Transfer Payments,510051,School Children,18/03/2022,3981528-AWPU-05-2021-295,"3,597.51",ADVANCE LEARNING PARTNERSHIP.
Children and Young Peoples Services,Head of Education and Skills,Transfer Payments,510051,School Children,18/03/2022,3981528-AWPU-05-2021-296,"4,054.14",ADVANCE LEARNING PARTNERSHIP.
Children and Young Peoples Services,Head of Education and Skills,Transfer Payments,510051,School Children,18/03/2022,3981528-AWPU-05-2021-302,"3,666.80",ADVANCE LEARNING PARTNERSHIP.
Children and Young Peoples Services,Head of Education and Skills,Transfer Payments,510051,School Children,18/03/2022,3981529-AWPU-05-2021-246,997.98,ADVANCE LEARNING PARTNERSHIP.
Children and Young Peoples Services,Head of Education and Skills,Supplies and Services,384906,Miscellaneous Expenses,23/03/2022,3983172-CAS-03-2022-145,"1,100.00",ADVANCE LEARNING PARTNERSHIP.
Dedicated Schools Grant BG0015,DSG High Needs Block,Central Support and Other Recharges,689995,Unclassified E690,24/03/2022,3983580-CAS-03-2022-152,"11,407.00",ADVANCE LEARNING PARTNERSHIP.
Dedicated Schools Grant BG0015,DSG High Needs Block,Central Support and Other Recharges,689995,Unclassified E690,24/03/2022,3983581-CAS-03-2022-150,"16,370.00",ADVANCE LEARNING PARTNERSHIP.
Children and Young Peoples Services,Head of Education and Skills,Transfer Payments,510034,School Children,29/03/2022,3985351-LACPP21-22ADDITIONAL,850.00,ADVANCE LEARNING PARTNERSHIP.
Children and Young Peoples Services,Head of Education and Skills,Supplies and Services,384906,Miscellaneous Expenses,30/03/2022,3985930-CAS-03-2022-148,"1,100.00",ADVANCE LEARNING PARTNERSHIP.
Children and Young Peoples Services,Head of Education and Skills,Transfer Payments,510051,School Children,31/03/2022,3986305-AWPU-05-2021-350,"3,589.34",ADVANCE LEARNING PARTNERSHIP.
Children and Young Peoples Services,Head of Childrens Social Care,Supplies and Services,338044,Services,14/03/2022,3978371-MWNG1830222,"2,193.50",ADVANCED CHILD CARE ASSESSMENTS LTD.
Children and Young Peoples Services,Head of Childrens Social Care,Supplies and Services,338044,Services,15/03/2022,3979289-MWJW670721,"2,410.90",ADVANCED CHILD CARE ASSESSMENTS LTD.
Children and Young Peoples Services,Head of Childrens Social Care,Supplies and Services,338044,Services,15/03/2022,3979289-MWKA050322,"2,400.60",ADVANCED CHILD CARE ASSESSMENTS LTD.
Neighbourhoods and Climate Change,Environmental Services,Third Party Payments,430100,Rendered by Private Contractors,28/03/2022,3984522-IV1141395,950.00,ADVANCED RADIATORS LTD.
Neighbourhoods and Climate Change,Environmental Services,Fees,901002,Consultants fees 901002,23/03/2022,3983173-6086,500.00,ADVANCED RENEWABLE POWER (ARP).
Regeneration Economy and Growth,Corporate Property and Land,Premises,120037,Energy Costs,24/03/2022,3983583-15092,"1,998.00",AFTERWOOD LTD.
Neighbourhoods and Climate Change,Technical Services CM0300,Supplies and Services,304221,Equipment and Materials,01/03/2022,3974012-32679181,"1,091.90",AGGREGATE INDUSTRIES UK LTD.
Neighbourhoods and Climate Change,Technical Services CM0300,Supplies and Services,304221,Equipment and Materials,02/03/2022,3974379-32686172,"1,089.46",AGGREGATE INDUSTRIES UK LTD.
Neighbourhoods and Climate Change,Technical Services CM0300,Supplies and Services,304221,Equipment and Materials,04/03/2022,3975281-32694301,"2,335.08",AGGREGATE INDUSTRIES UK LTD.
Neighbourhoods and Climate Change,Technical Services CM0300,Supplies and Services,304221,Equipment and Materials,07/03/2022,3975670-32704065,"1,200.48",AGGREGATE INDUSTRIES UK LTD.
Neighbourhoods and Climate Change,Technical Services CM0300,Supplies and Services,304221,Equipment and Materials,09/03/2022,3976931-32710351,"1,102.88",AGGREGATE INDUSTRIES UK LTD.
Neighbourhoods and Climate Change,Technical Services CM0300,Supplies and Services,304221,Equipment and Materials,09/03/2022,3976931-32717944,"1,191.94",AGGREGATE INDUSTRIES UK LTD.
Neighbourhoods and Climate Change,Technical Services CM0300,Supplies and Services,304221,Equipment and Materials,14/03/2022,3978372-32723915,558.76,AGGREGATE INDUSTRIES UK LTD.
Neighbourhoods and Climate Change,Technical Services CM0300,Supplies and Services,304221,Equipment and Materials,14/03/2022,3978372-32723916,605.12,AGGREGATE INDUSTRIES UK LTD.
Neighbourhoods and Climate Change,Technical Services CM0300,Supplies and Services,304221,Equipment and Materials,14/03/2022,3978372-32729752,721.02,AGGREGATE INDUSTRIES UK LTD.
Neighbourhoods and Climate Change,Technical Services CM0300,Supplies and Services,304221,Equipment and Materials,22/03/2022,3982752-32736146,"1,340.78",AGGREGATE INDUSTRIES UK LTD.
Neighbourhoods and Climate Change,Technical Services CM0300,Supplies and Services,304221,Equipment and Materials,22/03/2022,3982752-32743486,"1,222.44",AGGREGATE INDUSTRIES UK LTD.
Neighbourhoods and Climate Change,Technical Services CM0300,Supplies and Services,304221,Equipment and Materials,22/03/2022,3982752-32751009,"1,152.90",AGGREGATE INDUSTRIES UK LTD.
Neighbourhoods and Climate Change,Technical Services CM0300,Supplies and Services,304221,Equipment and Materials,22/03/2022,3982752-32756967,"1,021.14",AGGREGATE INDUSTRIES UK LTD.
Neighbourhoods and Climate Change,Technical Services CM0300,Supplies and Services,304221,Equipment and Materials,22/03/2022,3982752-32763206,"1,052.86",AGGREGATE INDUSTRIES UK LTD.
Neighbourhoods and Climate Change,Technical Services CM0300,Supplies and Services,304221,Equipment and Materials,22/03/2022,3982752-32769513,"1,169.98",AGGREGATE INDUSTRIES UK LTD.
Neighbourhoods and Climate Change,Technical Services CM0300,Supplies and Services,304221,Equipment and Materials,25/03/2022,3984014-32789627,732.00,AGGREGATE INDUSTRIES UK LTD.
Neighbourhoods and Climate Change,Technical Services CM0300,Supplies and Services,304221,Equipment and Materials,25/03/2022,3984014-32789628,617.32,AGGREGATE INDUSTRIES UK LTD.
Neighbourhoods and Climate Change,Technical Services CM0300,Supplies and Services,304221,Equipment and Materials,28/03/2022,3984523-32795937,"1,343.22",AGGREGATE INDUSTRIES UK LTD.
Neighbourhoods and Climate Change,Environmental Services,Supplies and Services,304221,Equipment and Materials,28/03/2022,3984523-32796863,"1,494.68",AGGREGATE INDUSTRIES UK LTD.
Neighbourhoods and Climate Change,Technical Services CM0300,Supplies and Services,304221,Equipment and Materials,31/03/2022,3986308-32789630,734.02,AGGREGATE INDUSTRIES UK LTD.
Neighbourhoods and Climate Change,Technical Services CM0300,Supplies and Services,304221,Equipment and Materials,31/03/2022,3986308-32795939,"1,349.60",AGGREGATE INDUSTRIES UK LTD.
Neighbourhoods and Climate Change,Environmental Services,Supplies and Services,352001,Conference Expenses,24/03/2022,3983585-IC144DCC,"1,125.00",AGRIFOOD TECHNICAL SERVICES LTD.
Neighbourhoods and Climate Change,Environmental Services,Supplies and Services,338099,Services,01/03/2022,3974013-CD971283486,930.00,AGROVISTA UK LTD FORMERLY MAXWELL AMENITY LTD.
Neighbourhoods and Climate Change,Environmental Services,Supplies and Services,338099,Services,01/03/2022,3974013-CD971283487,930.00,AGROVISTA UK LTD FORMERLY MAXWELL AMENITY LTD.
Neighbourhoods and Climate Change,Environmental Services,Supplies and Services,338099,Services,02/03/2022,3974381-CD971285107,"8,760.00",AGROVISTA UK LTD FORMERLY MAXWELL AMENITY LTD.
Neighbourhoods and Climate Change,Environmental Services,Supplies and Services,338099,Services,02/03/2022,3974381-CD971285108,"1,001.00",AGROVISTA UK LTD FORMERLY MAXWELL AMENITY LTD.
Neighbourhoods and Climate Change,Environmental Services,Supplies and Services,338099,Services,09/03/2022,3976933-CD971285958,"4,530.10",AGROVISTA UK LTD FORMERLY MAXWELL AMENITY LTD.
Neighbourhoods and Climate Change,Environmental Services,Supplies and Services,338099,Services,24/03/2022,3983586-CD971288606,"1,966.90",AGROVISTA UK LTD FORMERLY MAXWELL AMENITY LTD.
Neighbourhoods and Climate Change,Environmental Services,Supplies and Services,304221,Equipment and Materials,07/03/2022,3975672-CD971285840,"1,165.64",AGROVISTA UK LTD FORMERLY SHERRIFF AMENITY.
Children and Young Peoples Services,Head of Education and Skills,Transport,230008,Contract Hire,03/03/2022,3974886-06FEB2022,"1,650.00",AIRPORT TRANSFER DURHAM.
Children and Young Peoples Services,Head of Education and Skills,Transport,230010,Contract Hire,28/03/2022,3984524-109,"2,111.90",AJ JOBLING T/A CASTLE TAXIS.
Adult and Health Services,Head of Adults,Third Party Payments,479152,Purchase of Care,11/03/2022,3977879-WORKFORCER&RFUND2/125,"21,000.00",AKARI CARE LTD.
Adult and Health Services,Head of Adults,Third Party Payments,479152,Purchase of Care,11/03/2022,3977879-WORKFORCER&RFUND2/127,"2,282.00",AKARI CARE LTD.
Adult and Health Services,Head of Adults,Third Party Payments,479152,Purchase of Care,11/03/2022,3977880-WORKFORCER&RFUND2/126,"21,000.00",AKARI CARE LTD.
Adult and Health Services,Head of Adults,Third Party Payments,479152,Purchase of Care,11/03/2022,3977880-WORKFORCER&RFUND2/128,"2,282.00",AKARI CARE LTD.
Adult and Health Services,Head of Adults,Third Party Payments,479152,Purchase of Care,16/03/2022,3979729-WORKFORCER&RFUND2/157,"13,900.00",AKARI CARE LTD.
Adult and Health Services,Head of Adults,Third Party Payments,479152,Purchase of Care,16/03/2022,3979730-WORKFORCER&RFUND2/156,"13,900.00",AKARI CARE LTD.
Adult and Health Services,Head of Adults,Third Party Payments,474999,Purchase of Care,17/03/2022,3980276-I-22-3215641,"2,035.42",AKARI CARE LTD.
Adult and Health Services,Head of Adults,Third Party Payments,470101,Purchase of Care,17/03/2022,3980277-I-22-3215413,"83,234.37",AKARI CARE LTD.
Adult and Health Services,Head of Adults,Third Party Payments,474101,Purchase of Care,17/03/2022,3980278-I-22-3215552,"2,559.24",AKARI CARE LTD.
Adult and Health Services,Head of Adults,Third Party Payments,470101,Purchase of Care,17/03/2022,3980279-I-22-3215620,"86,544.37",AKARI CARE LTD.
Adult and Health Services,Head of Adults,Third Party Payments,479154,Purchase of Care,25/03/2022,3984015-OMICRONSUPPORT1/125,"4,650.00",AKARI CARE LTD.
Adult and Health Services,Head of Adults,Third Party Payments,479154,Purchase of Care,25/03/2022,3984016-OMICRONSUPPORT1/124,"4,650.00",AKARI CARE LTD.
Neighbourhoods and Climate Change,Environmental Services,Third Party Payments,430100,Rendered by Private Contractors,31/03/2022,3986311-R184/22/92554,"1,160.00",ALAN M RANSON FUNERAL SERVICE.
Neighbourhoods and Climate Change,Environmental Services,Third Party Payments,430100,Rendered by Private Contractors,31/03/2022,3986312-61212,"3,713.98",ALAN REED LTD.
Children and Young Peoples Services,Head of Education and Skills,Transport,230006,Contract Hire,15/03/2022,3979292-331,"1,869.00",ALANS TAXIS BARNARD CASTLE.
Children and Young Peoples Services,Head of Education and Skills,Transport,230007,Contract Hire,15/03/2022,3979292-332,936.85,ALANS TAXIS BARNARD CASTLE.
Children and Young Peoples Services,Head of Education and Skills,Transport,230007,Contract Hire,15/03/2022,3979292-333,"1,309.00",ALANS TAXIS BARNARD CASTLE.
Children and Young Peoples Services,Head of Education and Skills,Transport,230007,Contract Hire,15/03/2022,3979292-334,"2,050.18",ALANS TAXIS BARNARD CASTLE.
Children and Young Peoples Services,Head of Education and Skills,Transport,230007,Contract Hire,15/03/2022,3979292-335,"1,836.36",ALANS TAXIS BARNARD CASTLE.
Children and Young Peoples Services,Head of Education and Skills,Transport,230007,Contract Hire,30/03/2022,3985932-319,"1,364.00",ALANS TAXIS BARNARD CASTLE.
Neighbourhoods and Climate Change,Environmental Services,Supplies and Services,304259,Equipment and Materials,08/03/2022,3976572-173992,520.00,ALBANY OFFICE EQUIPMENT (WHOLESALE) LTD.
Adult and Health Services,Head of Adults,Supplies and Services,304259,Equipment and Materials,09/03/2022,3976934-174001,914.00,ALBANY OFFICE EQUIPMENT (WHOLESALE) LTD.
Adult and Health Services,Head of Adults,Supplies and Services,304259,Equipment and Materials,11/03/2022,3977881-174042,"1,118.00",ALBANY OFFICE EQUIPMENT (WHOLESALE) LTD.
Adult and Health Services,Head of Adults,Supplies and Services,304259,Equipment and Materials,11/03/2022,3977881-174074,620.00,ALBANY OFFICE EQUIPMENT (WHOLESALE) LTD.
Adult and Health Services,Head of Adults,Supplies and Services,304259,Equipment and Materials,14/03/2022,3978374-174046,984.00,ALBANY OFFICE EQUIPMENT (WHOLESALE) LTD.
Adult and Health Services,Head of Adults,Supplies and Services,304259,Equipment and Materials,16/03/2022,3979731-173937,716.00,ALBANY OFFICE EQUIPMENT (WHOLESALE) LTD.
Children and Young Peoples Services,Head of Early Help Inclusion & Vulnerable Children.,Supplies and Services,308011,Furniture,16/03/2022,3979731-174084,800.00,ALBANY OFFICE EQUIPMENT (WHOLESALE) LTD.
Adult and Health Services,Head of Adults,Supplies and Services,304259,Equipment and Materials,17/03/2022,3981294-174106,"1,224.00",ALBANY OFFICE EQUIPMENT (WHOLESALE) LTD.
Regeneration Economy and Growth,Corporate Property and Land,Supplies and Services,304221,Equipment and Materials,21/03/2022,3981956-174147,"35,800.00",ALBANY OFFICE EQUIPMENT (WHOLESALE) LTD.
Adult and Health Services,Head of Adults,Supplies and Services,304259,Equipment and Materials,22/03/2022,3982754-174184,"1,084.00",ALBANY OFFICE EQUIPMENT (WHOLESALE) LTD.
Regeneration Economy and Growth,Corporate Property and Land,Supplies and Services,308011,Furniture,23/03/2022,3983176-174121,"19,500.00",ALBANY OFFICE EQUIPMENT (WHOLESALE) LTD.
Regeneration Economy and Growth,Corporate Property and Land,Supplies and Services,304083,Equipment and Materials,24/03/2022,3983587-174117,"1,260.00",ALBANY OFFICE EQUIPMENT (WHOLESALE) LTD.
Regeneration Economy and Growth,Corporate Property and Land,Supplies and Services,304083,Equipment and Materials,24/03/2022,3983587-174120,610.00,ALBANY OFFICE EQUIPMENT (WHOLESALE) LTD.
Regeneration Economy and Growth,Corporate Property and Land,Supplies and Services,304221,Equipment and Materials,24/03/2022,3983587-174146,"9,859.45",ALBANY OFFICE EQUIPMENT (WHOLESALE) LTD.
Regeneration Economy and Growth,Business Durham CL0850,Supplies and Services,304259,Equipment and Materials,30/03/2022,3985933-174194,"1,228.00",ALBANY OFFICE EQUIPMENT (WHOLESALE) LTD.
Adult and Health Services,Head of Adults,Supplies and Services,304259,Equipment and Materials,31/03/2022,3986313-174238,939.00,ALBANY OFFICE EQUIPMENT (WHOLESALE) LTD.
Regeneration Economy and Growth,Culture Sport and Tourism,Supplies and Services,304259,Equipment and Materials,31/03/2022,3986313-174265,980.00,ALBANY OFFICE EQUIPMENT (WHOLESALE) LTD.
Adult and Health Services,Head of Adults,Supplies and Services,304259,Equipment and Materials,31/03/2022,3986313-174377,"1,745.00",ALBANY OFFICE EQUIPMENT (WHOLESALE) LTD.
Adult and Health Services,Head of Adults,Supplies and Services,304259,Equipment and Materials,31/03/2022,3986313-174381,"2,145.00",ALBANY OFFICE EQUIPMENT (WHOLESALE) LTD.
Adult and Health Services,Head of Adults,Supplies and Services,304259,Equipment and Materials,31/03/2022,3986313-174382,"1,615.00",ALBANY OFFICE EQUIPMENT (WHOLESALE) LTD.
Dedicated Schools Grant BG0015,DSG Schools Block,Supplies and Services,338075,Services,04/03/2022,3975283-1593,764.35,ALD HAIRDRESSING TRAINING ACADEMY LTD.
Children and Young Peoples Services,Head of Childrens Social Care,Third Party Payments,425021,Rendered by Voluntary Organisations,17/03/2022,3980291-PIG_122488,"36,000.00",ALEXANDERS HOUSE.
Regeneration Economy and Growth,Corporate Property and Land,Supplies and Services,338066,Services,09/03/2022,3976935-APP0000001268,"3,168.90",ALIGN PROPERTY PARTNERS LTD.
Regeneration Economy and Growth,Corporate Property and Land,Supplies and Services,338066,Services,09/03/2022,3976935-APP0000001325,"1,677.50",ALIGN PROPERTY PARTNERS LTD.
Adult and Health Services,Head of Adults,Third Party Payments,479152,Purchase of Care,11/03/2022,3977884-WORKFORCER&RFUND2/102,"11,876.22",ALLIANCE CARE (TRENDLEWOOD) LTD.
Adult and Health Services,Head of Adults,Third Party Payments,470101,Purchase of Care,17/03/2022,3980299-I-22-3215418,"106,470.69",ALLIANCE CARE (TRENDLEWOOD) LTD.
Regeneration Economy and Growth,Culture Sport and Tourism,Construction work A908,908105,Construction work,10/03/2022,3977447-9586,"139,777.94",ALLIANCE LEISURE SERVICES LTD.
Adult and Health Services,Head of Adults,Third Party Payments,472101,Purchase of Care,17/03/2022,3980300-I-22-2975593,"5,876.64",ALLIED HEALTH-SERVICES LTD T/A ALLIED HEALTHCARE.
Adult and Health Services,Head of Adults,Third Party Payments,472101,Purchase of Care,17/03/2022,3980300-I-22-3135874,"7,092.64",ALLIED HEALTH-SERVICES LTD T/A ALLIED HEALTHCARE.
Adult and Health Services,Head of Adults,Third Party Payments,472101,Purchase of Care,17/03/2022,3980300-I-22-3215926,"5,876.64",ALLIED HEALTH-SERVICES LTD T/A ALLIED HEALTHCARE.
Resources BK0010,Procurement Sales & Business Services,Supplies and Services,338099,Services,08/03/2022,3976575-C63134,"2,643.23",ALLIED PUBLICITY SERVICES (MANCHESTER) LTD.
Children and Young Peoples Services,Head of Childrens Social Care,Supplies and Services,336005,Advertising E336,11/03/2022,3977885-INV-1610,"2,023.50",ALLIES GROUP LTD.
Regeneration Economy and Growth,Business Durham CL0850,Third Party Payments,440999,Other third party payments E440,15/03/2022,3979296-DBRG-03-2022-02,"20,250.00",ALM PRODUCTS LTD.
Regeneration Economy and Growth,Business Durham CL0850,Third Party Payments,440999,Other third party payments E440,15/03/2022,3979296-DBRG-03-2022-03,"11,835.17",ALM PRODUCTS LTD.
Regeneration Economy and Growth,Business Durham CL0850,Third Party Payments,440999,Other third party payments E440,15/03/2022,3979296-DBRG-03-2022-04,"3,975.23",ALM PRODUCTS LTD.
Regeneration Economy and Growth,Business Durham CL0850,Third Party Payments,440999,Other third party payments E440,15/03/2022,3979296-DBRG-03-2022-05,"3,932.28",ALM PRODUCTS LTD.
Children and Young Peoples Services,Head of Childrens Social Care,Supplies and Services,338045,Services,11/03/2022,3977886-INV604910,754.00,ALPHA BIOLABORATORIES LTD.
Children and Young Peoples Services,Head of Childrens Social Care,Supplies and Services,338044,Services,16/03/2022,3979732-INV604923,859.00,ALPHA BIOLABORATORIES LTD.
Neighbourhoods and Climate Change,Environmental Services,Third Party Payments,430100,Rendered by Private Contractors,16/03/2022,3979733-B79949,700.00,ALPHA RECOVERY LTD.
Children and Young Peoples Services,Head of Education and Skills,Transport,230007,Contract Hire,02/03/2022,3974385-DCC096A,"2,176.85",ALSTON ROAD GARAGE.
Children and Young Peoples Services,Head of Education and Skills,Transport,230007,Contract Hire,09/03/2022,3976937-DCC102,"1,996.93",ALSTON ROAD GARAGE.
Children and Young Peoples Services,Head of Education and Skills,Transport,230007,Contract Hire,09/03/2022,3976937-DCC103,"2,894.27",ALSTON ROAD GARAGE.
Children and Young Peoples Services,Head of Education and Skills,Transport,230007,Contract Hire,23/03/2022,3983179-DCC104,544.95,ALSTON ROAD GARAGE.
Neighbourhoods and Climate Change,Community Protection,Supplies and Services,372009,Subscriptions E372,29/03/2022,3985360-INV2022-100,"2,010.00",ALTIA SOLUTIONS LTD.
Regeneration Economy and Growth,Culture Sport and Tourism,Supplies and Services,338047,Services,10/03/2022,3977449-19048,607.54,ALTITUDE FILM DISTRIBUTION LTD.
Adult and Health Services,Commissioning inc Supporting People,Supplies and Services,336005,Advertising E336,04/03/2022,3975286-T4-4995,"13,573.00",ALVERN MEDIA LTD.
Children and Young Peoples Services,Head of Education and Skills,Transport,230006,Contract Hire,11/03/2022,3977888-170222,"1,308.72",AMBER TRAVEL.
Children and Young Peoples Services,Head of Early Help Inclusion & Vulnerable Children.,Premises,108099,Service Repairs and Maintenance,03/03/2022,3974889-SI19370,"3,450.00",AMBIC LTD.
Regeneration Economy and Growth,Corporate Property and Land,Third Party Payments,430100,Rendered by Private Contractors,10/03/2022,3977451-SI19345,950.00,AMBIC LTD.
Regeneration Economy and Growth,Corporate Property and Land,Third Party Payments,430100,Rendered by Private Contractors,11/03/2022,3977889-SI19371,"1,400.00",AMBIC LTD.
Regeneration Economy and Growth,Corporate Property and Land,Supplies and Services,304221,Equipment and Materials,16/03/2022,3979734-SI19347,"4,725.00",AMBIC LTD.
Regeneration Economy and Growth,Corporate Property and Land,Third Party Payments,430100,Rendered by Private Contractors,16/03/2022,3979734-SI19402,"1,150.00",AMBIC LTD.
Regeneration Economy and Growth,Corporate Property and Land,Supplies and Services,304221,Equipment and Materials,30/03/2022,3985936-SI19372,"22,075.00",AMBIC LTD.
Regeneration Economy and Growth,Corporate Property and Land,Third Party Payments,430100,Rendered by Private Contractors,16/03/2022,3979735-AEL1609,"62,058.75",AMELIO ENTERPRISES LTD.
Regeneration Economy and Growth,Corporate Property and Land,Third Party Payments,430100,Rendered by Private Contractors,16/03/2022,3979735-AEL1622,"2,655.25",AMELIO ENTERPRISES LTD.
Regeneration Economy and Growth,Corporate Property and Land,Third Party Payments,430100,Rendered by Private Contractors,16/03/2022,3979735-AEL1623,"51,168.00",AMELIO ENTERPRISES LTD.
Regeneration Economy and Growth,Corporate Property and Land,Third Party Payments,430100,Rendered by Private Contractors,16/03/2022,3979735-AEL1627,"64,598.63",AMELIO ENTERPRISES LTD.
Regeneration Economy and Growth,Corporate Property and Land,Third Party Payments,430100,Rendered by Private Contractors,16/03/2022,3979735-AEL1628,"46,288.13",AMELIO ENTERPRISES LTD.
Adult and Health Services,Public Health CC0450,Third Party Payments,460803,Contract Payments,01/03/2022,3974020-INV-1167,"3,585.00",AN COMPUTING LTD.
Resources BK0010,Legal & Democratic Services,Supplies and Services,338102,Services,08/03/2022,3976579-0010891,"9,870.00",ANALYTICAL SERVICES INTERNATIONAL LTD.
Resources BK0010,Legal & Democratic Services,Supplies and Services,338102,Services,15/03/2022,3979297-0010276,"16,710.00",ANALYTICAL SERVICES INTERNATIONAL LTD.
Adult and Health Services,Head of Adults,Third Party Payments,470101,Purchase of Care,17/03/2022,3980303-I-22-3215554,"15,057.71",ANCHOR CAREHOMES LTD.
Regeneration Economy and Growth,Development and Housing,Supplies and Services,342051,Computers and Communications,28/03/2022,3984528-9956236,"1,076.43",ANCHOR COMPUTER SYSTEMS LTD.
Adult and Health Services,Commissioning inc Supporting People,Third Party Payments,441001,Supporting People E441,17/03/2022,3980304-713831,"3,257.12",ANCHOR HANOVER GROUP.
Adult and Health Services,Head of Adults,Third Party Payments,470101,Purchase of Care,17/03/2022,3980305-I-22-3215527,"2,600.00",ANCHOR HANOVER GROUP.
Adult and Health Services,Head of Adults,Third Party Payments,470101,Purchase of Care,17/03/2022,3980306-I-22-3215511,"62,005.28",ANCHOR HANOVER GROUP.
Adult and Health Services,Head of Adults,Third Party Payments,470101,Purchase of Care,29/03/2022,3985363-CAS-03-2022-171,"38,538.63",ANCHOR HANOVER GROUP.
Adult and Health Services,Head of Adults,Third Party Payments,470101,Purchase of Care,17/03/2022,3980307-I-22-3215640,"9,392.00",ANCHOR TRUST.
Regeneration Economy and Growth,Development and Housing,Supplies and Services,384999,Miscellaneous Expenses,11/03/2022,3977892-4100759771,759.98,ANDREW MARSHALL RESIDENTIAL PROPERTIES LTD T/A AMRP.
Regeneration Economy and Growth,Culture Sport and Tourism,Supplies and Services,384199,Miscellaneous Expenses,31/03/2022,3986317-458,612.35,ANDY GREENWOOD FILM & TELEVISION SERVICES LTD.
Children and Young Peoples Services,Head of Education and Skills,Transport,230007,Contract Hire,15/03/2022,3979301-1286-FEB22,975.00,ANGIE`S TAXIS.
Children and Young Peoples Services,Head of Education and Skills,Transport,230009,Contract Hire,15/03/2022,3979301-7373-FEB22,611.10,ANGIE`S TAXIS.
Neighbourhoods and Climate Change,Environmental Services,Supplies and Services,338066,Services,02/03/2022,3974388-BURSARY-MARCH22,725.60,REDACTED - PAYMENT TO INDIVIDUAL
Neighbourhoods and Climate Change,Environmental Services,Supplies and Services,338066,Services,18/03/2022,3981537-BURSARY-MARCH2022,723.13,REDACTED - PAYMENT TO INDIVIDUAL
Neighbourhoods and Climate Change,Environmental Services,Third Party Payments,430100,Rendered by Private Contractors,11/03/2022,3977894-INV-4424,521.72,ANNFIELD AUTO SERVICES.
Neighbourhoods and Climate Change,Environmental Services,Third Party Payments,430100,Rendered by Private Contractors,11/03/2022,3977894-INV-4425,600.00,ANNFIELD AUTO SERVICES.
Neighbourhoods and Climate Change,Environmental Services,Third Party Payments,430100,Rendered by Private Contractors,11/03/2022,3977894-INV-4439,967.28,ANNFIELD AUTO SERVICES.
Neighbourhoods and Climate Change,Environmental Services,Third Party Payments,430100,Rendered by Private Contractors,28/03/2022,3984529-INV-4468,"1,290.96",ANNFIELD AUTO SERVICES.
Neighbourhoods and Climate Change,Environmental Services,Third Party Payments,430100,Rendered by Private Contractors,31/03/2022,3986319-INV-4481,"1,664.78",ANNFIELD AUTO SERVICES.
Neighbourhoods and Climate Change,Partnerships & Community Engagement Div.,Cap Exp on Grants & Other Financial Assistance (REFCUS),918004,Contributions to other bodies 918004,28/03/2022,3984530-VOUCHER20NB-STAN017,"7,500.00",ANNFIELD PLAIN ASSOCIATED FOOTBALL CLUB (AFC).
Neighbourhoods and Climate Change,Partnerships & Community Engagement Div.,Cap Exp on Grants & Other Financial Assistance (REFCUS),918004,Contributions to other bodies 918004,15/03/2022,3979303-VOUCHER20NB-STAN041,"10,000.00",ANNFIELD PLAIN COMMUNITY CENTRE.
Neighbourhoods and Climate Change,Partnerships & Community Engagement Div.,Cap Exp on Grants & Other Financial Assistance (REFCUS),918004,Contributions to other bodies 918004,04/03/2022,3975288-VOUCHER21NB-STAN007,"2,500.00",ANNFIELD PLAIN CRICKET CLUB.
Resources BK0010,Digital and Customer Services,Supplies and Services,304245,Equipment and Materials,24/03/2022,3983592-2186928,538.40,ANTALIS LTD.
Regeneration Economy and Growth,Business Durham CL0850,Third Party Payments,430100,Rendered by Private Contractors,15/03/2022,3979306-DBRG-03-2022-07,"1,514.12",ANVESAKA YOGA & AERIAL DARLINGTON LTD.
Regeneration Economy and Growth,Corporate Property and Land,Third Party Payments,430100,Rendered by Private Contractors,17/03/2022,3981300-5255,"13,360.00",APEX ROOFING SPECIALISTS LTD.
Regeneration Economy and Growth,Corporate Property and Land,Third Party Payments,430100,Rendered by Private Contractors,29/03/2022,3985368-5267,"4,750.00",APEX ROOFING SPECIALISTS LTD.
Adult and Health Services,Head of Adults,Third Party Payments,472101,Purchase of Care,17/03/2022,3980324-I-22-3215697,"1,059.50",APM CLEANING LTD.
Adult and Health Services,Commissioning inc Supporting People,Third Party Payments,479111,Purchase of Care,31/03/2022,3986322-INV-1743,"3,185.00",APM CLEANING LTD.
Children and Young Peoples Services,Head of Childrens Social Care,Third Party Payments,486020,Service level agreements E486,17/03/2022,3980325-PIG_122553,"5,127.27",APOLLO HOME HEALTHCARE LTD.
Regeneration Economy and Growth,Culture Sport and Tourism,Supplies and Services,384700,Miscellaneous Expenses,08/03/2022,3976583-NEI-HCL-03-2022-004,"10,475.00",APOLLO PAVILION PROJECTS CIC.
Children and Young Peoples Services,Head of Childrens Social Care,Third Party Payments,425023,Rendered by Voluntary Organisations,17/03/2022,3980326-PIG_123281,"14,826.00",APPLETREE TREATMENT CENTRE LTD.
Regeneration Economy and Growth,Culture Sport and Tourism,Supplies and Services,304252,Equipment and Materials,07/03/2022,3975677-70019830,635.00,APPLIED TRADING LTD.
Adult and Health Services,Head of Adults,Supplies and Services,338089,Services,22/03/2022,3982762-13526,"4,720.00",APT TRAINING & CONSULTANCY LTD.
Regeneration Economy and Growth,Corporate Property and Land,Premises,108099,Service Repairs and Maintenance,04/03/2022,3975290-36582,792.20,AQUAJET DRAIN CLEANING LTD.
Neighbourhoods and Climate Change,Environmental Services,Premises,106082,Centrally Controlled Rep and Maint,11/03/2022,3977897-36611,"1,415.01",AQUAJET DRAIN CLEANING LTD.
Regeneration Economy and Growth,Corporate Property and Land,Premises,108099,Service Repairs and Maintenance,11/03/2022,3977897-36613,845.00,AQUAJET DRAIN CLEANING LTD.
Neighbourhoods and Climate Change,Technical Services CM0300,Supplies and Services,304358,Equipment and Materials,18/03/2022,3981541-0000036416,"1,275.00",AQUAJET DRAIN CLEANING LTD.
Neighbourhoods and Climate Change,Technical Services CM0300,Supplies and Services,304358,Equipment and Materials,31/03/2022,3986325-0000036678,"20,313.00",AQUAJET DRAIN CLEANING LTD.
Neighbourhoods and Climate Change,Technical Services CM0300,Supplies and Services,304358,Equipment and Materials,31/03/2022,3986325-0000036679,"17,568.00",AQUAJET DRAIN CLEANING LTD.
Neighbourhoods and Climate Change,Technical Services CM0300,Supplies and Services,304221,Equipment and Materials,04/03/2022,3975291-28043,"3,262.73",ARBOR TIMBER & BUILDERS MERCHANTS LTD.
Children and Young Peoples Services,Head of Childrens Social Care,Third Party Payments,486043,Service level agreements E486,04/03/2022,3975292-ARC2122-480,"6,586.67",ARC ADOPTION NORTH EAST.
Children and Young Peoples Services,Head of Childrens Social Care,Third Party Payments,425041,Rendered by Voluntary Organisations,23/03/2022,3983182-ARC2122-502,"52,128.00",ARC ADOPTION NORTH EAST.
Children and Young Peoples Services,Head of Childrens Social Care,Third Party Payments,425041,Rendered by Voluntary Organisations,24/03/2022,3983594-ARC2122-511,"32,320.00",ARC ADOPTION NORTH EAST.
Children and Young Peoples Services,Head of Childrens Social Care,Third Party Payments,425041,Rendered by Voluntary Organisations,24/03/2022,3983594-ARC2122-514,"32,320.00",ARC ADOPTION NORTH EAST.
Neighbourhoods and Climate Change,Technical Services CM0300,Third Party Payments,460224,Contract Payments,08/03/2022,3976585-21866,"140,118.75",ARM PIPETEK LTD.
Neighbourhoods and Climate Change,Technical Services CM0300,Third Party Payments,460224,Contract Payments,14/03/2022,3978379-21972,"250,077.31",ARM PIPETEK LTD.
Adult and Health Services,Public Health CC0450,Supplies and Services,352001,Conference Expenses,29/03/2022,3985372-1469,900.00,ARMSTRONG WILSON ASSOCIATES LTD.
Children and Young Peoples Services,Head of Education and Skills,Transport,230034,Contract Hire,03/03/2022,3974894-FEB22,"1,026.00",ARMSTRONG`S TAXIS.
Children and Young Peoples Services,Head of Education and Skills,Transport,230006,Contract Hire,04/03/2022,3975295-FEB2022-3,"1,208.37",ARMSTRONG`S TAXIS.
Children and Young Peoples Services,Head of Education and Skills,Transport,230007,Contract Hire,11/03/2022,3977899-FEB2022-2,"1,770.00",ARMSTRONG`S TAXIS.
Non-Service Specific,Non Service Specific-Financing,Long Term Debtors,924001,Car loans,14/03/2022,3978380-119219,543.00,ARRIVA DURHAM COUNTY LTD.
Children and Young Peoples Services,Head of Education and Skills,Transport,235005,Public Transport,14/03/2022,3978381-118503,635.00,ARRIVA DURHAM COUNTY LTD.
Children and Young Peoples Services,Head of Education and Skills,Transport,235005,Public Transport,14/03/2022,3978381-118533,"1,905.00",ARRIVA DURHAM COUNTY LTD.
Non-Service Specific,Non Service Specific-Financing,Long Term Debtors,924001,Car loans,14/03/2022,3978381-118832,543.00,ARRIVA DURHAM COUNTY LTD.
Non-Service Specific,Non Service Specific-Financing,Long Term Debtors,924001,Car loans,14/03/2022,3978381-119071,543.00,ARRIVA DURHAM COUNTY LTD.
Regeneration Economy and Growth,Development and Housing,Transport,235073,Public Transport,14/03/2022,3978381-119214,"1,070.00",ARRIVA DURHAM COUNTY LTD.
Children and Young Peoples Services,Head of Education and Skills,Transport,235073,Public Transport,15/03/2022,3979310-119213,"1,470.00",ARRIVA DURHAM COUNTY LTD.
Regeneration Economy and Growth,Transport and Contracted Services,Third Party Payments,430100,Rendered by Private Contractors,15/03/2022,3979310-CONCFAREPAY21-7-MAR22,"1,989,233.20",ARRIVA DURHAM COUNTY LTD.
Regeneration Economy and Growth,Transport and Contracted Services,Third Party Payments,430106,Rendered by Private Contractors,25/03/2022,3984030-119194,"43,689.52",ARRIVA DURHAM COUNTY LTD.
Regeneration Economy and Growth,Transport and Contracted Services,Third Party Payments,430106,Rendered by Private Contractors,25/03/2022,3984030-119195,"39,849.38",ARRIVA DURHAM COUNTY LTD.
Regeneration Economy and Growth,Transport and Contracted Services,Third Party Payments,430106,Rendered by Private Contractors,29/03/2022,3985373-119094,"44,467.83",ARRIVA DURHAM COUNTY LTD.
Children and Young Peoples Services,Head of Childrens Social Care,Third Party Payments,425021,Rendered by Voluntary Organisations,04/03/2022,3975296-INV-1595,"17,000.00",ARTEMIS SUPPORT LTD.
Children and Young Peoples Services,Head of Childrens Social Care,Third Party Payments,425021,Rendered by Voluntary Organisations,08/03/2022,3976586-INV-1580,"17,000.00",ARTEMIS SUPPORT LTD.
Children and Young Peoples Services,Head of Childrens Social Care,Third Party Payments,425021,Rendered by Voluntary Organisations,16/03/2022,3979740-INV-1597,"26,455.00",ARTEMIS SUPPORT LTD.
Children and Young Peoples Services,Head of Childrens Social Care,Third Party Payments,425021,Rendered by Voluntary Organisations,17/03/2022,3980327-PIG_122490,"52,910.00",ARTEMIS SUPPORT LTD.
Adult and Health Services,Head of Adults,Third Party Payments,472101,Purchase of Care,17/03/2022,3980329-I-22-3215766,"3,413.76",ASCOT CARE AGENCY LTD.
Adult and Health Services,Head of Adults,Third Party Payments,470101,Purchase of Care,17/03/2022,3980330-I-22-3215574,"39,636.69",ASCOT CARE NORTH EAST LTD..
Adult and Health Services,Public Health CC0450,Third Party Payments,460803,Contract Payments,01/03/2022,3974025-DTPB/00000292,856.00,ASDA PHARMACY.*
Adult and Health Services,Public Health CC0450,Third Party Payments,460803,Contract Payments,01/03/2022,3974025-DTPB/00000293NRT,587.36,ASDA PHARMACY.*
Adult and Health Services,Public Health CC0450,Third Party Payments,460803,Contract Payments,01/03/2022,3974026-DPQX/00000306NRT,841.68,ASDA PHARMACY.*
Adult and Health Services,Public Health CC0450,Third Party Payments,460803,Contract Payments,30/03/2022,3985942-DVMM/00000202NRT,987.39,ASDA PHARMACY.*
Adult and Health Services,Public Health CC0450,Third Party Payments,460803,Contract Payments,31/03/2022,3986333-DTPB/00000296SC,582.00,ASDA PHARMACY.*
Adult and Health Services,Head of Adults,Third Party Payments,470101,Purchase of Care,17/03/2022,3980331-I-22-3215631,"5,403.80",ASHBOURNE LODGE CARE HOME.
Regeneration Economy and Growth,Culture Sport and Tourism,Supplies and Services,312017,Newspapers books and periodicals E312,01/03/2022,3974029-6656012,651.36,ASKEWS & HOLTS LIBRARY SERVICES LTD.
Regeneration Economy and Growth,Culture Sport and Tourism,Supplies and Services,312017,Newspapers books and periodicals E312,09/03/2022,3976947-6655996,569.20,ASKEWS & HOLTS LIBRARY SERVICES LTD.
Regeneration Economy and Growth,Culture Sport and Tourism,Supplies and Services,312017,Newspapers books and periodicals E312,09/03/2022,3976947-6655998,"1,154.04",ASKEWS & HOLTS LIBRARY SERVICES LTD.
Regeneration Economy and Growth,Culture Sport and Tourism,Supplies and Services,312017,Newspapers books and periodicals E312,09/03/2022,3976947-6656002,815.84,ASKEWS & HOLTS LIBRARY SERVICES LTD.
Regeneration Economy and Growth,Culture Sport and Tourism,Supplies and Services,312013,Newspapers books and periodicals E312,09/03/2022,3976947-6656004,710.67,ASKEWS & HOLTS LIBRARY SERVICES LTD.
Regeneration Economy and Growth,Culture Sport and Tourism,Supplies and Services,312017,Newspapers books and periodicals E312,09/03/2022,3976947-6656009,972.33,ASKEWS & HOLTS LIBRARY SERVICES LTD.
Regeneration Economy and Growth,Culture Sport and Tourism,Supplies and Services,312017,Newspapers books and periodicals E312,09/03/2022,3976947-6656010,889.92,ASKEWS & HOLTS LIBRARY SERVICES LTD.
Regeneration Economy and Growth,Culture Sport and Tourism,Supplies and Services,312013,Newspapers books and periodicals E312,09/03/2022,3976947-6656014,678.43,ASKEWS & HOLTS LIBRARY SERVICES LTD.
Regeneration Economy and Growth,Culture Sport and Tourism,Supplies and Services,312017,Newspapers books and periodicals E312,09/03/2022,3976947-6656016,829.56,ASKEWS & HOLTS LIBRARY SERVICES LTD.
Regeneration Economy and Growth,Culture Sport and Tourism,Supplies and Services,312017,Newspapers books and periodicals E312,09/03/2022,3976947-6656019,"1,000.04",ASKEWS & HOLTS LIBRARY SERVICES LTD.
Regeneration Economy and Growth,Culture Sport and Tourism,Supplies and Services,312017,Newspapers books and periodicals E312,09/03/2022,3976947-6656020,550.42,ASKEWS & HOLTS LIBRARY SERVICES LTD.
Regeneration Economy and Growth,Culture Sport and Tourism,Supplies and Services,312017,Newspapers books and periodicals E312,09/03/2022,3976947-6656025,510.31,ASKEWS & HOLTS LIBRARY SERVICES LTD.
Regeneration Economy and Growth,Culture Sport and Tourism,Supplies and Services,312017,Newspapers books and periodicals E312,09/03/2022,3976947-6656045,862.68,ASKEWS & HOLTS LIBRARY SERVICES LTD.
Regeneration Economy and Growth,Culture Sport and Tourism,Supplies and Services,312017,Newspapers books and periodicals E312,09/03/2022,3976947-6656047,667.76,ASKEWS & HOLTS LIBRARY SERVICES LTD.
Regeneration Economy and Growth,Culture Sport and Tourism,Supplies and Services,312013,Newspapers books and periodicals E312,09/03/2022,3976947-6656048,667.97,ASKEWS & HOLTS LIBRARY SERVICES LTD.
Regeneration Economy and Growth,Culture Sport and Tourism,Supplies and Services,312017,Newspapers books and periodicals E312,09/03/2022,3976947-6656049,586.64,ASKEWS & HOLTS LIBRARY SERVICES LTD.
Regeneration Economy and Growth,Culture Sport and Tourism,Supplies and Services,312017,Newspapers books and periodicals E312,09/03/2022,3976947-6656051,767.05,ASKEWS & HOLTS LIBRARY SERVICES LTD.
Regeneration Economy and Growth,Culture Sport and Tourism,Supplies and Services,312013,Newspapers books and periodicals E312,15/03/2022,3979312-6662726,641.91,ASKEWS & HOLTS LIBRARY SERVICES LTD.
Regeneration Economy and Growth,Culture Sport and Tourism,Supplies and Services,312013,Newspapers books and periodicals E312,15/03/2022,3979312-6662807,621.03,ASKEWS & HOLTS LIBRARY SERVICES LTD.
Regeneration Economy and Growth,Culture Sport and Tourism,Supplies and Services,312013,Newspapers books and periodicals E312,15/03/2022,3979312-6663769,839.99,ASKEWS & HOLTS LIBRARY SERVICES LTD.
Regeneration Economy and Growth,Culture Sport and Tourism,Supplies and Services,312013,Newspapers books and periodicals E312,23/03/2022,3983186-6662397,616.68,ASKEWS & HOLTS LIBRARY SERVICES LTD.
Regeneration Economy and Growth,Culture Sport and Tourism,Supplies and Services,312013,Newspapers books and periodicals E312,23/03/2022,3983186-6666510,542.80,ASKEWS & HOLTS LIBRARY SERVICES LTD.
Regeneration Economy and Growth,Culture Sport and Tourism,Supplies and Services,312013,Newspapers books and periodicals E312,23/03/2022,3983186-6666977,544.47,ASKEWS & HOLTS LIBRARY SERVICES LTD.
Regeneration Economy and Growth,Culture Sport and Tourism,Supplies and Services,312013,Newspapers books and periodicals E312,23/03/2022,3983186-6670362,567.71,ASKEWS & HOLTS LIBRARY SERVICES LTD.
Neighbourhoods and Climate Change,Technical Services CM0300,Supplies and Services,304221,Equipment and Materials,11/03/2022,3977902-8970,"3,127.00",ASPHALT REINFORCEMENT SERVICES LTD.
Dedicated Schools Grant BG0015,DSG Schools Block,Supplies and Services,338075,Services,10/03/2022,3977461-162,"3,600.00",ASPIRE ALTERNATIVE EDUCATION LTD.
Dedicated Schools Grant BG0015,DSG Schools Block,Supplies and Services,338075,Services,15/03/2022,3979313-163,"4,880.00",ASPIRE ALTERNATIVE EDUCATION LTD.
Dedicated Schools Grant BG0015,DSG Schools Block,Supplies and Services,338075,Services,24/03/2022,3983601-164,"4,800.00",ASPIRE ALTERNATIVE EDUCATION LTD.
Dedicated Schools Grant BG0015,DSG Schools Block,Supplies and Services,338075,Services,30/03/2022,3985948-165,"4,880.00",ASPIRE ALTERNATIVE EDUCATION LTD.
Adult and Health Services,Head of Adults,Third Party Payments,470101,Purchase of Care,17/03/2022,3980334-I-22-3215578,"1,324.72",ASPIRE CARE GROUP T/A GRASMERE LODGE.
Adult and Health Services,Head of Adults,Third Party Payments,470101,Purchase of Care,17/03/2022,3980335-I-22-3215555,"12,032.88",ASPIRE CARE GROUP.
Adult and Health Services,Head of Adults,Third Party Payments,470101,Purchase of Care,17/03/2022,3980336-I-22-3215484,"4,378.88",ASPIRE CARE GROUP.
Adult and Health Services,Head of Adults,Third Party Payments,470101,Purchase of Care,17/03/2022,3980337-I-22-3215406,"13,584.80",ASPIRE CARE GROUP.
Adult and Health Services,Head of Adults,Third Party Payments,470101,Purchase of Care,17/03/2022,3980337-I-22-3215702,691.20,ASPIRE CARE GROUP.
Children and Young Peoples Services,Head of Early Help Inclusion & Vulnerable Children.,Premises,108099,Service Repairs and Maintenance,23/03/2022,3983187-1221918648,672.00,ASSA ABLOY LTD.*
Children and Young Peoples Services,Head of Education and Skills,Supplies and Services,338035,Services,16/03/2022,3979744-AA000525367,"1,424.00",ASSOCIATED BOARD OF THE SCHOOL OF MUSIC (ABRSM).
Children and Young Peoples Services,Head of Education and Skills,Transport,230034,Contract Hire,11/03/2022,3977903-894,"1,652.00",AT TAXIS LTD.
Children and Young Peoples Services,Head of Education and Skills,Transport,230007,Contract Hire,11/03/2022,3977903-896,"1,888.12",AT TAXIS LTD.
Children and Young Peoples Services,Head of Education and Skills,Transport,230034,Contract Hire,14/03/2022,3978384-895,"1,305.30",AT TAXIS LTD.
Children and Young Peoples Services,Head of Education and Skills,Transport,230008,Contract Hire,15/03/2022,3979316-891,"2,643.00",AT TAXIS LTD.
Children and Young Peoples Services,Head of Education and Skills,Transport,230008,Contract Hire,15/03/2022,3979316-892,"2,175.00",AT TAXIS LTD.
Children and Young Peoples Services,Head of Education and Skills,Transport,230007,Contract Hire,15/03/2022,3979316-893,"1,659.70",AT TAXIS LTD.
Children and Young Peoples Services,Head of Education and Skills,Transport,230008,Contract Hire,18/03/2022,3981547-897,"1,659.70",AT TAXIS LTD.
Children and Young Peoples Services,Childrens Services Operational Support,Supplies and Services,338089,Services,28/03/2022,3984536-ASD063,"6,300.00",ATEN-SHEARWOOD DEVELOPMENT LTD.
Children and Young Peoples Services,Childrens Services Operational Support,Supplies and Services,338089,Services,29/03/2022,3985376-ASD064,"6,300.00",ATEN-SHEARWOOD DEVELOPMENT LTD.
Neighbourhoods and Climate Change,Environmental Services,Supplies and Services,338066,Services,29/03/2022,3985377-179,625.00,ATEVENTS.
Children and Young Peoples Services,Head of Education and Skills,Fees,901002,Consultants fees 901002,23/03/2022,3983188-22010629,"5,065.00",ATKINS GLOBAL.
Regeneration Economy and Growth,Corporate Property and Land,Supplies and Services,384199,Miscellaneous Expenses,23/03/2022,3983188-22010634,"1,460.00",ATKINS GLOBAL.
Children and Young Peoples Services,Head of Education and Skills,Supplies and Services,384199,Miscellaneous Expenses,24/03/2022,3983602-22010637,"1,600.00",ATKINS GLOBAL.
Regeneration Economy and Growth,Corporate Property and Land,Construction work A908,908105,Construction work,24/03/2022,3983602-22010641,"2,500.00",ATKINS GLOBAL.
Neighbourhoods and Climate Change,Environmental Services,Construction work A908,908105,Construction work,24/03/2022,3983602-22010643,"6,415.10",ATKINS GLOBAL.
Regeneration Economy and Growth,Development and Housing,Construction work A908,908105,Construction work,24/03/2022,3983602-22010644,"2,630.00",ATKINS GLOBAL.
Regeneration Economy and Growth,Business Durham CL0850,Supplies and Services,384199,Miscellaneous Expenses,24/03/2022,3983602-22010991,"33,808.75",ATKINS GLOBAL.
Regeneration Economy and Growth,Corporate Property and Land,Fees,901002,Consultants fees 901002,25/03/2022,3984032-22010632,"1,173.75",ATKINS GLOBAL.
Adult and Health Services,Head of Adults,Transport,230005,Contract Hire,09/03/2022,3976951-DCC13FEB2022,"1,312.40",ATLAS TAXIS BISHOP AUCKLAND.
Children and Young Peoples Services,Head of Education and Skills,Transport,230008,Contract Hire,09/03/2022,3976951-DCC14FEB22,"1,260.00",ATLAS TAXIS BISHOP AUCKLAND.
Children and Young Peoples Services,Head of Education and Skills,Transport,230008,Contract Hire,09/03/2022,3976951-DCC7FEB22,"3,193.94",ATLAS TAXIS BISHOP AUCKLAND.
Children and Young Peoples Services,Head of Education and Skills,Transport,230008,Contract Hire,15/03/2022,3979317-DCC04FEB22,"3,737.61",ATLAS TAXIS BISHOP AUCKLAND.
Children and Young Peoples Services,Head of Education and Skills,Transport,230008,Contract Hire,15/03/2022,3979317-DCC10FEB22,"5,409.47",ATLAS TAXIS BISHOP AUCKLAND.
Adult and Health Services,Head of Adults,Transport,230005,Contract Hire,15/03/2022,3979317-DCC5FEB22,"1,513.14",ATLAS TAXIS BISHOP AUCKLAND.
Children and Young Peoples Services,Head of Education and Skills,Transport,230008,Contract Hire,15/03/2022,3979317-DCC8-FEB-22,"3,217.78",ATLAS TAXIS BISHOP AUCKLAND.
Children and Young Peoples Services,Head of Education and Skills,Transport,230008,Contract Hire,18/03/2022,3981548-DCC-03FEB22,"2,535.00",ATLAS TAXIS BISHOP AUCKLAND.
Children and Young Peoples Services,Head of Education and Skills,Transport,230004,Contract Hire,30/03/2022,3985950-04274,"1,210.97",ATLAS TAXIS CONSETT.
Children and Young Peoples Services,Head of Education and Skills,Transport,230008,Contract Hire,09/03/2022,3976952-DCC11FEB22,"2,298.00",ATLAS TAXIS MANAGEMENT LTD.
Children and Young Peoples Services,Head of Education and Skills,Transport,230008,Contract Hire,09/03/2022,3976952-DCC12FEB22,"2,385.00",ATLAS TAXIS MANAGEMENT LTD.
Children and Young Peoples Services,Head of Education and Skills,Transport,230008,Contract Hire,09/03/2022,3976952-DCC2FEB2022,"2,820.00",ATLAS TAXIS MANAGEMENT LTD.
Children and Young Peoples Services,Head of Education and Skills,Transport,230006,Contract Hire,09/03/2022,3976952-DCC6FEB2022,"2,608.20",ATLAS TAXIS MANAGEMENT LTD.
Children and Young Peoples Services,Head of Education and Skills,Transport,230008,Contract Hire,09/03/2022,3976952-DCC9FEB2022,"2,400.00",ATLAS TAXIS MANAGEMENT LTD.
Regeneration Economy and Growth,Corporate Property and Land,Third Party Payments,430100,Rendered by Private Contractors,09/03/2022,3976953-8249,"7,488.00",ATLAS WASHROOM SYSTEMS LTD.
Children and Young Peoples Services,Head of Education and Skills,Transport,230013,Contract Hire,02/03/2022,3974393-078,"1,195.40",AUCKLAND TRAVEL.
Children and Young Peoples Services,Head of Education and Skills,Transport,230008,Contract Hire,02/03/2022,3974393-079,"2,130.00",AUCKLAND TRAVEL.
Children and Young Peoples Services,Head of Education and Skills,Transport,230008,Contract Hire,03/03/2022,3974896-076,"2,212.00",AUCKLAND TRAVEL.
Children and Young Peoples Services,Head of Education and Skills,Transport,230006,Contract Hire,09/03/2022,3976954-081,"1,206.00",AUCKLAND TRAVEL.
Children and Young Peoples Services,Head of Education and Skills,Transport,230008,Contract Hire,11/03/2022,3977904-080,"2,370.00",AUCKLAND TRAVEL.
Children and Young Peoples Services,Head of Education and Skills,Transport,230010,Contract Hire,14/03/2022,3978385-077,"2,072.00",AUCKLAND TRAVEL.
Children and Young Peoples Services,Head of Education and Skills,Transport,230008,Contract Hire,16/03/2022,3979746-082,"2,337.20",AUCKLAND TRAVEL.
Regeneration Economy and Growth,Culture Sport and Tourism,Supplies and Services,384302,Miscellaneous Expenses,03/03/2022,3974897-AYCC2017,"1,500.00",AUCKLAND YOUTH & COMMUNITY CENTRE LTD.
Adult and Health Services,Head of Adults,Third Party Payments,470101,Purchase of Care,17/03/2022,3980343-I-22-3215475,"19,357.20",AUTISM CARE UK (4) LTD.
Adult and Health Services,Head of Adults,Third Party Payments,478101,Purchase of Care,17/03/2022,3980343-I-22-3215713,"10,559.72",AUTISM CARE UK (4) LTD.
Adult and Health Services,Head of Adults,Third Party Payments,478101,Purchase of Care,17/03/2022,3980343-I-22-3215882,"22,708.80",AUTISM CARE UK (4) LTD.
Adult and Health Services,Head of Adults,Third Party Payments,478101,Purchase of Care,17/03/2022,3980343-I-22-3215966,"13,417.84",AUTISM CARE UK (4) LTD.
Adult and Health Services,Head of Adults,Third Party Payments,478101,Purchase of Care,17/03/2022,3980343-I-22-3215973,"13,568.64",AUTISM CARE UK (4) LTD.
Adult and Health Services,Head of Adults,Third Party Payments,478151,Purchase of Care,31/03/2022,3986336-D720004052,"3,943.80",AUTISM CARE UK (4) LTD.
Adult and Health Services,Head of Adults,Third Party Payments,478151,Purchase of Care,31/03/2022,3986336-D720004053,"3,943.80",AUTISM CARE UK (4) LTD.
Neighbourhoods and Climate Change,Environmental Services,Third Party Payments,460305,Contract Payments,15/03/2022,3979318-126217,"2,090.00",AUTOCRAFT EQUIPMENT LTD.
Regeneration Economy and Growth,Culture Sport and Tourism,Supplies and Services,338047,Services,24/03/2022,3983603-EG250222,"5,483.45",AVALON PROMOTIONS LTD.
Regeneration Economy and Growth,Culture Sport and Tourism,Supplies and Services,338047,Services,31/03/2022,3986338-EG18-02-22,"5,491.56",AVALON PROMOTIONS LTD.
Adult and Health Services,Head of Adults,Transport,230005,Contract Hire,02/03/2022,3974394-28222,"1,200.00",AVALON TAXIS.
Children and Young Peoples Services,Head of Education and Skills,Transport,230007,Contract Hire,02/03/2022,3974394-282221,"1,920.00",AVALON TAXIS.
Children and Young Peoples Services,Head of Education and Skills,Transport,230034,Contract Hire,02/03/2022,3974394-282222,"1,530.00",AVALON TAXIS.
Regeneration Economy and Growth,Business Durham CL0850,Supplies and Services,368008,Incentives to Industrialists,04/03/2022,3975298-RED-03-2022-031,"5,000.00",AYCLIFFE BUSINESS PARK COMMUNITY LTD.
Dedicated Schools Grant BG0015,DSG Early Years Block,Transfer Payments,510030,School Children,22/03/2022,3982767-29725,803.55,AYCLIFFE DAY NURSERY.
Children and Young Peoples Services,Childrens Services Operational Support,Intangible Assets,917001,Software capitalised licence fees,31/03/2022,3986339-UKINV-523,"4,500.00",AZEUS UK LTD.
Children and Young Peoples Services,Childrens Services Operational Support,Intangible Assets,917001,Software capitalised licence fees,31/03/2022,3986339-UKINV-524,"1,800.00",AZEUS UK LTD.
Children and Young Peoples Services,Childrens Services Operational Support,Intangible Assets,917001,Software capitalised licence fees,31/03/2022,3986339-UKINV-525,"1,800.00",AZEUS UK LTD.
Children and Young Peoples Services,Childrens Services Operational Support,Intangible Assets,917001,Software capitalised licence fees,31/03/2022,3986339-UKINV-526,"4,500.00",AZEUS UK LTD.
Children and Young Peoples Services,Childrens Services Operational Support,Intangible Assets,917001,Software capitalised licence fees,31/03/2022,3986339-UKINV-527,"1,150.00",AZEUS UK LTD.
Neighbourhoods and Climate Change,Environmental Services,Supplies and Services,338099,Services,02/03/2022,3974395-INV150106,634.74,AZTEC CHEMICALS LTD.
Neighbourhoods and Climate Change,Technical Services CM0300,Supplies and Services,304221,Equipment and Materials,24/03/2022,3983604-9889,"1,150.00",AZTEC STONE & RECLAMATIONS.
Children and Young Peoples Services,Head of Education and Skills,Transport,230006,Contract Hire,09/03/2022,3976955-6FEB22,714.00,B&C YELLOWCAB TAXI`S.
Regeneration Economy and Growth,Business Durham CL0850,Supplies and Services,338066,Services,17/03/2022,3981301-1529,"12,000.00",B2B NORTH LTD.
Adult and Health Services,Head of Adults,Supplies and Services,308011,Furniture,22/03/2022,3982769-101014,753.00,BACK CARE SOLUTIONS LTD.
Neighbourhoods and Climate Change,Technical Services CM0300,Supplies and Services,304358,Equipment and Materials,25/03/2022,3984035-MG07871,750.00,BAILEY CONCRETE PUMPING LTD.
Neighbourhoods and Climate Change,Environmental Services,Premises,108099,Service Repairs and Maintenance,16/03/2022,3979748-99354,504.00,BAILEYS BLINDS LTD.
Regeneration Economy and Growth,Corporate Property and Land,Supplies and Services,308013,Furniture,21/03/2022,3981960-99355,"1,044.00",BAILEYS BLINDS LTD.
Regeneration Economy and Growth,Culture Sport and Tourism,Supplies and Services,384237,Miscellaneous Expenses,31/03/2022,3986340-S01360786,"1,081.27",BAKER ROSS LTD.
Neighbourhoods and Climate Change,Technical Services CM0300,Third Party Payments,430100,Rendered by Private Contractors,08/03/2022,3976587-CSUKOU/INV/121273,"2,713.15",BALFOUR BEATTY LIVING PLACES LTD.*
Neighbourhoods and Climate Change,Technical Services CM0300,Third Party Payments,430100,Rendered by Private Contractors,09/03/2022,3976957-CSUKOU/INV/121292,"8,125.64",BALFOUR BEATTY LIVING PLACES LTD.*
Neighbourhoods and Climate Change,Technical Services CM0300,Third Party Payments,430100,Rendered by Private Contractors,10/03/2022,3977468-CSUKOU/INV/121360,917.09,BALFOUR BEATTY LIVING PLACES LTD.*
Neighbourhoods and Climate Change,Technical Services CM0300,Third Party Payments,430100,Rendered by Private Contractors,10/03/2022,3977468-CSUKOU/INV/121382,"1,588.69",BALFOUR BEATTY LIVING PLACES LTD.*
Neighbourhoods and Climate Change,Technical Services CM0300,Third Party Payments,430100,Rendered by Private Contractors,22/03/2022,3982770-CSUKOU/INV/121566,"8,012.41",BALFOUR BEATTY LIVING PLACES LTD.*
Neighbourhoods and Climate Change,Technical Services CM0300,Third Party Payments,430100,Rendered by Private Contractors,24/03/2022,3983605-CSUKOU/INV/122391,"2,162.56",BALFOUR BEATTY LIVING PLACES LTD.*
Neighbourhoods and Climate Change,Technical Services CM0300,Third Party Payments,430100,Rendered by Private Contractors,30/03/2022,3985954-CSUKOU/INV/121541,"2,870.70",BALFOUR BEATTY LIVING PLACES LTD.*
Neighbourhoods and Climate Change,Environmental Services,Supplies and Services,304221,Equipment and Materials,11/03/2022,3977907-98862998,"1,516.07",BALL COLEGRAVE LTD.
Neighbourhoods and Climate Change,Environmental Services,Supplies and Services,304221,Equipment and Materials,15/03/2022,3979320-98862997,"1,210.52",BALL COLEGRAVE LTD.
Neighbourhoods and Climate Change,Environmental Services,Supplies and Services,304221,Equipment and Materials,17/03/2022,3981303-98902883,916.39,BALL COLEGRAVE LTD.
Neighbourhoods and Climate Change,Environmental Services,Supplies and Services,304221,Equipment and Materials,18/03/2022,3981551-98902886,811.21,BALL COLEGRAVE LTD.
Neighbourhoods and Climate Change,Environmental Services,Supplies and Services,304221,Equipment and Materials,30/03/2022,3985955-98932182,"2,670.96",BALL COLEGRAVE LTD.
Children and Young Peoples Services,Head of Education and Skills,Transfer Payments,510034,School Children,02/03/2022,317517-CAS-02-2022-127,"1,200.00",BALLYHASS NATIONAL SCHOOL.
Children and Young Peoples Services,Head of Childrens Social Care,Third Party Payments,425040,Rendered by Voluntary Organisations,17/03/2022,3980344-PIG_123308,"4,482.38",BANYA FAMILY PLACEMENT AGENCY LTD.
Adult and Health Services,Central/Other,Creditors,952287,Creditor-DHSC Infection Control Grant,16/03/2022,3979750-INFECTIONCONTROLFUND5-2/53,"15,923.88",BARCHESTER HEALTHCARE HOMES LTD.
Adult and Health Services,Central/Other,Creditors,952288,Creditor-DHSC Rapid Testing Fund Grant,16/03/2022,3979750-RAPIDTESTINGFUND5-2/53,"8,880.90",BARCHESTER HEALTHCARE HOMES LTD.
Adult and Health Services,Central/Other,Creditors,952289,Creditor-DHSC Vaccine Control Fund Grant,16/03/2022,3979750-VACCINEFUND-2/53,"1,099.98",BARCHESTER HEALTHCARE HOMES LTD.
Adult and Health Services,Head of Adults,Third Party Payments,470101,Purchase of Care,17/03/2022,3980347-I-22-3135430,"12,262.00",BARCHESTER HEALTHCARE HOMES LTD.
Adult and Health Services,Head of Adults,Third Party Payments,470101,Purchase of Care,17/03/2022,3980347-I-22-3215483,"12,262.00",BARCHESTER HEALTHCARE HOMES LTD.
Adult and Health Services,Head of Adults,Third Party Payments,470101,Purchase of Care,17/03/2022,3980348-I-22-3215517,"4,400.00",BARCHESTER HEALTHCARE HOMES LTD.
Adult and Health Services,Head of Adults,Third Party Payments,474101,Purchase of Care,17/03/2022,3980349-I-22-3215526,"1,900.00",BARCHESTER HEALTHCARE HOMES LTD.
Adult and Health Services,Head of Adults,Third Party Payments,470101,Purchase of Care,17/03/2022,3980350-I-22-3215492,"1,233.12",BARCHESTER HEALTHCARE HOMES LTD.
Adult and Health Services,Head of Adults,Third Party Payments,474101,Purchase of Care,17/03/2022,3980351-I-22-3215491,"13,400.80",BARCHESTER HEALTHCARE HOMES LTD.
Adult and Health Services,Head of Adults,Third Party Payments,474101,Purchase of Care,17/03/2022,3980351-I-22-3215643,"35,442.46",BARCHESTER HEALTHCARE HOMES LTD.
Adult and Health Services,Head of Adults,Third Party Payments,470101,Purchase of Care,17/03/2022,3980352-I-22-3215503,"29,161.76",BARCHESTER HEALTHCARE HOMES LTD.
Adult and Health Services,Head of Adults,Third Party Payments,474101,Purchase of Care,17/03/2022,3980353-I-22-3215570,"92,432.34",BARCHESTER HEALTHCARE HOMES LTD.
Adult and Health Services,Head of Adults,Third Party Payments,470101,Purchase of Care,17/03/2022,3980354-I-22-3215528,"4,993.44",BARCHESTER HEALTHCARE HOMES LTD.
Adult and Health Services,Head of Adults,Third Party Payments,474101,Purchase of Care,24/03/2022,3983607-CAS-03-2022-172,"6,562.00",BARCHESTER HEALTHCARE HOMES LTD.
Neighbourhoods and Climate Change,Technical Services CM0300,Supplies and Services,304221,Equipment and Materials,23/03/2022,3983191-93181,900.50,BARHALE CONSTRUCTION SERVICES LTD (BCS).
Children and Young Peoples Services,Head of Childrens Social Care,Supplies and Services,338045,Services,01/03/2022,3974035-241002465,"3,000.00",BARNARDO SERVICES LTD.
Children and Young Peoples Services,Childrens Services Operational Support,Supplies and Services,338089,Services,02/03/2022,3974396-209100137,"1,200.00",BARNARDO SERVICES LTD.
Children and Young Peoples Services,Head of Childrens Social Care,Supplies and Services,384199,Miscellaneous Expenses,11/03/2022,3977908-241002521,"1,260.00",BARNARDO SERVICES LTD.
Children and Young Peoples Services,Head of Childrens Social Care,Third Party Payments,486051,Service level agreements E486,22/03/2022,3982773-141012590,"41,368.41",BARNARDO SERVICES LTD.
Children and Young Peoples Services,Head of Childrens Social Care,Third Party Payments,486051,Service level agreements E486,22/03/2022,3982773-141012784,"41,368.41",BARNARDO SERVICES LTD.
Children and Young Peoples Services,Head of Childrens Social Care,Third Party Payments,425040,Rendered by Voluntary Organisations,17/03/2022,3980355-PIG_122554,"20,415.39",BARNARDOS BELIEVE IN CHILDREN.
Neighbourhoods and Climate Change,Partnerships & Community Engagement Div.,Cap Exp on Grants & Other Financial Assistance (REFCUS),918004,Contributions to other bodies 918004,04/03/2022,3975301-VOUCHER21NB-TEES012,"4,300.00",BARNINGHAM VILLAGE HALL ASSOCIATION.
Children and Young Peoples Services,Head of Education and Skills,Construction work A908,908105,Construction work,10/03/2022,3977470-BE4741,750.00,BARRETT ENVIRONMENTAL LTD.
Regeneration Economy and Growth,Communications Management,Supplies and Services,336005,Advertising E336,09/03/2022,3976959-8061787,"3,160.08",BAUER RADIO LTD.
Regeneration Economy and Growth,Culture Sport and Tourism,Supplies and Services,304259,Equipment and Materials,04/03/2022,3975302-96888,"4,320.16",BAYDALE CONTROL SYSTEMS LTD.
Regeneration Economy and Growth,Transport and Contracted Services,Third Party Payments,440999,Other third party payments E440,08/03/2022,3976590-97826,"6,514.32",BAYDALE CONTROL SYSTEMS LTD.
Regeneration Economy and Growth,Transport and Contracted Services,Third Party Payments,440999,Other third party payments E440,11/03/2022,3977909-98004,"6,514.32",BAYDALE CONTROL SYSTEMS LTD.
Neighbourhoods and Climate Change,Community Protection,Supplies and Services,304259,Equipment and Materials,29/03/2022,3985381-98521,"3,216.56",BAYDALE CONTROL SYSTEMS LTD.
Neighbourhoods and Climate Change,Community Protection,Supplies and Services,304259,Equipment and Materials,29/03/2022,3985381-98522,"5,142.88",BAYDALE CONTROL SYSTEMS LTD.
Regeneration Economy and Growth,Business Durham CL0850,Supplies and Services,336005,Advertising E336,02/03/2022,3974397-3805,"4,995.00",BDAILY LTD.
Children and Young Peoples Services,Head of Childrens Social Care,Third Party Payments,440047,Other third party payments E440,04/03/2022,3975303-DURHAMRM0004,"3,611.75",BDT CARE SOLUTIONS LTD.
Children and Young Peoples Services,Head of Childrens Social Care,Third Party Payments,425021,Rendered by Voluntary Organisations,17/03/2022,3980357-PIG_122544,"35,968.53",BDT CARE SOLUTIONS LTD.
Children and Young Peoples Services,Head of Childrens Social Care,Third Party Payments,425021,Rendered by Voluntary Organisations,17/03/2022,3980357-PIG_122573,"15,583.17",BDT CARE SOLUTIONS LTD.
Children and Young Peoples Services,Head of Childrens Social Care,Third Party Payments,425021,Rendered by Voluntary Organisations,17/03/2022,3980357-PIG_123302,"73,235.46",BDT CARE SOLUTIONS LTD.
Adult and Health Services,Head of Adults,Third Party Payments,470101,Purchase of Care,17/03/2022,3980358-I-22-3215454,"67,116.02",BEAMISH RESIDENTIAL CARE HOME LTD.
Neighbourhoods and Climate Change,Environmental Services,Transport,210057,Repair and Maintenance of Vehicles,04/03/2022,3975304-314487,547.45,BEARING TRADERS LTD.
Adult and Health Services,Head of Adults,Third Party Payments,478101,Purchase of Care,17/03/2022,3980360-I-22-3215751,"15,289.80",BEECHFIELD CARE & SUPPORT LTD.
Children and Young Peoples Services,Head of Education and Skills,Transport,230008,Contract Hire,02/03/2022,3974400-990,"1,596.45",BEELINE MINI BUSES.
Children and Young Peoples Services,Head of Education and Skills,Transport,230008,Contract Hire,02/03/2022,3974400-991,"1,457.25",BEELINE MINI BUSES.
Children and Young Peoples Services,Head of Education and Skills,Transport,230008,Contract Hire,02/03/2022,3974400-992,"1,001.28",BEELINE MINI BUSES.
Children and Young Peoples Services,Head of Education and Skills,Transport,230008,Contract Hire,09/03/2022,3976963-FEB22,"1,924.75",BEELINE PRIVATE HIRE.
Children and Young Peoples Services,Head of Education and Skills,Transport,230008,Contract Hire,18/03/2022,3981554-SMITH2/FEBURARY22,879.49,BEELINE PRIVATE HIRE.
Children and Young Peoples Services,Head of Education and Skills,Transport,230003,Contract Hire,11/03/2022,3977910-INCREASE80322,553.54,BELL BROTHERS TRAVEL.
Children and Young Peoples Services,Head of Education and Skills,Transport,230003,Contract Hire,15/03/2022,3979324-STJOHNS8030222,"2,100.00",BELL BROTHERS TRAVEL.
Regeneration Economy and Growth,Corporate Property and Land,Third Party Payments,430100,Rendered by Private Contractors,14/03/2022,3978389-SI-6999,"1,741.00",BELL CONTROL SOLUTIONS LTD.
Regeneration Economy and Growth,Corporate Property and Land,Third Party Payments,430100,Rendered by Private Contractors,24/03/2022,3983610-SI-7014,"1,432.00",BELL CONTROL SOLUTIONS LTD.
Neighbourhoods and Climate Change,Environmental Services,Transport,210057,Repair and Maintenance of Vehicles,02/03/2022,3974401-35218645,538.66,BELL TRUCK SALES LTD T/A BELL TRUCK & VAN.
Neighbourhoods and Climate Change,Environmental Services,Transport,210057,Repair and Maintenance of Vehicles,02/03/2022,3974401-35218914,519.00,BELL TRUCK SALES LTD T/A BELL TRUCK & VAN.
Neighbourhoods and Climate Change,Environmental Services,Transport,210057,Repair and Maintenance of Vehicles,11/03/2022,3977911-35218740,810.88,BELL TRUCK SALES LTD T/A BELL TRUCK & VAN.
Neighbourhoods and Climate Change,Environmental Services,Transport,210057,Repair and Maintenance of Vehicles,11/03/2022,3977911-35219650,606.00,BELL TRUCK SALES LTD T/A BELL TRUCK & VAN.
Neighbourhoods and Climate Change,Environmental Services,Transport,210057,Repair and Maintenance of Vehicles,15/03/2022,3979325-45069679,"1,103.00",BELL TRUCK SALES LTD T/A BELL TRUCK & VAN.
Neighbourhoods and Climate Change,Environmental Services,Transport,210057,Repair and Maintenance of Vehicles,16/03/2022,3979752-15199323,615.00,BELL TRUCK SALES LTD T/A BELL TRUCK & VAN.
Neighbourhoods and Climate Change,Environmental Services,Stock A926,926004,Stock,16/03/2022,3979752-15200166,"1,246.59",BELL TRUCK SALES LTD T/A BELL TRUCK & VAN.
Neighbourhoods and Climate Change,Environmental Services,Transport,210057,Repair and Maintenance of Vehicles,16/03/2022,3979752-15200181,954.87,BELL TRUCK SALES LTD T/A BELL TRUCK & VAN.
Neighbourhoods and Climate Change,Environmental Services,Transport,210057,Repair and Maintenance of Vehicles,16/03/2022,3979752-35219386,"2,121.74",BELL TRUCK SALES LTD T/A BELL TRUCK & VAN.
Neighbourhoods and Climate Change,Environmental Services,Transport,210057,Repair and Maintenance of Vehicles,16/03/2022,3979752-35219856,593.86,BELL TRUCK SALES LTD T/A BELL TRUCK & VAN.
Neighbourhoods and Climate Change,Environmental Services,Transport,210057,Repair and Maintenance of Vehicles,21/03/2022,3981962-45069810,769.16,BELL TRUCK SALES LTD T/A BELL TRUCK & VAN.
Neighbourhoods and Climate Change,Environmental Services,Transport,210057,Repair and Maintenance of Vehicles,22/03/2022,3982776-35220354,"1,153.20",BELL TRUCK SALES LTD T/A BELL TRUCK & VAN.
Neighbourhoods and Climate Change,Environmental Services,Transport,210057,Repair and Maintenance of Vehicles,25/03/2022,3984040-35220782,"2,414.83",BELL TRUCK SALES LTD T/A BELL TRUCK & VAN.
Neighbourhoods and Climate Change,Environmental Services,Transport,210057,Repair and Maintenance of Vehicles,31/03/2022,3986345-35220803,901.75,BELL TRUCK SALES LTD T/A BELL TRUCK & VAN.
Neighbourhoods and Climate Change,Environmental Services,Transport,210057,Repair and Maintenance of Vehicles,31/03/2022,3986345-35220877,"2,397.53",BELL TRUCK SALES LTD T/A BELL TRUCK & VAN.
Regeneration Economy and Growth,Corporate Property and Land,Premises,106082,Centrally Controlled Rep and Maint,18/03/2022,3981557-240151,590.00,BELLWOOD REWINDS LTD.
Children and Young Peoples Services,Head of Early Help Inclusion & Vulnerable Children.,Premises,108099,Service Repairs and Maintenance,18/03/2022,3981557-240186,870.00,BELLWOOD REWINDS LTD.
Children and Young Peoples Services,Head of Education and Skills,Transport,230006,Contract Hire,04/03/2022,3975306-31,"1,950.54",BELMONT TAXIS.
Dedicated Schools Grant BG0015,DSG High Needs Block,Supplies and Services,304259,Equipment and Materials,18/03/2022,3981558-133726,"1,617.00",BENNETT WORKPLACE.
Children and Young Peoples Services,Head of Education and Skills,Transport,230007,Contract Hire,09/03/2022,3976966-1/2,945.00,BENNETTS TAXIS.
Children and Young Peoples Services,Head of Education and Skills,Transport,230007,Contract Hire,09/03/2022,3976966-1FEB22,880.00,BENNETTS TAXIS.
Children and Young Peoples Services,Head of Education and Skills,Transport,230007,Contract Hire,04/03/2022,3975307-SH-PITT0222,940.50,BENS TAXIS.
Children and Young Peoples Services,Head of Education and Skills,Transport,230034,Contract Hire,04/03/2022,3975307-SUNHASBEL0222,"1,395.00",BENS TAXIS.
Adult and Health Services,Head of Adults,Third Party Payments,470101,Purchase of Care,17/03/2022,3980363-I-22-3215599,"19,921.40",BENTON CARE SERVICES LTD.
Adult and Health Services,Head of Adults,Third Party Payments,478151,Purchase of Care,08/03/2022,3976592-05/2021/MULB3,580.96,BERNICIA GROUP LTD.*
Adult and Health Services,Head of Adults,Supplies and Services,384616,Miscellaneous Expenses,08/03/2022,3976592-7/2122/RUSHG,931.32,BERNICIA GROUP LTD.*
Adult and Health Services,Head of Adults,Supplies and Services,384616,Miscellaneous Expenses,21/03/2022,3981963-733803638,931.32,BERNICIA GROUP LTD.*
Adult and Health Services,Head of Adults,Supplies and Services,338365,Services,23/03/2022,3983194-DHP0125,"29,124.87",BERNICIA GROUP LTD.*
Adult and Health Services,Commissioning inc Supporting People,Third Party Payments,479111,Purchase of Care,23/03/2022,3983194-DHP0127,"103,614.13",BERNICIA GROUP LTD.*
Adult and Health Services,Public Health CC0450,Third Party Payments,460803,Contract Payments,01/03/2022,3974037-DYPD/00000325,574.00,BESTWAY NATIONAL CHEMIST LTD T/A WELL.
Adult and Health Services,Public Health CC0450,Third Party Payments,460803,Contract Payments,01/03/2022,3974038-FQYW/00000280,786.00,BESTWAY NATIONAL CHEMIST LTD T/A WELL.
Adult and Health Services,Public Health CC0450,Third Party Payments,460803,Contract Payments,30/03/2022,3985959-FKLX/00000319NRT,992.08,BESTWAY NATIONAL CHEMIST LTD T/A WELL.
Adult and Health Services,Public Health CC0450,Third Party Payments,460803,Contract Payments,30/03/2022,3985961-DYPD/00000331NRT,"1,021.84",BESTWAY NATIONAL CHEMIST LTD T/A WELL.
Adult and Health Services,Public Health CC0450,Third Party Payments,460803,Contract Payments,31/03/2022,3986351-DYPD/00000330SC,632.00,BESTWAY NATIONAL CHEMIST LTD T/A WELL.
Adult and Health Services,Public Health CC0450,Premises,145050,Cleaning and Domestic Supplies,09/03/2022,3976968-409776,"1,570.41",BETTAKLEEN LTD.
Adult and Health Services,Public Health CC0450,Premises,145050,Cleaning and Domestic Supplies,29/03/2022,3985386-409985,"1,103.21",BETTAKLEEN LTD.
Regeneration Economy and Growth,Business Durham CL0850,Supplies and Services,338027,Services,07/03/2022,3975685-934,"9,340.00",BETTER BRAND AGENCY LTD.
Regeneration Economy and Growth,Communications Management,Supplies and Services,336005,Advertising E336,22/03/2022,3982782-INV-0865,"3,630.00",BEYOND DIGITAL SOLUTIONS LTD.
Children and Young Peoples Services,Head of Early Help Inclusion & Vulnerable Children.,Construction work A908,908105,Construction work,16/03/2022,3979754-41660,"3,242.00",BGP CONSULTING LTD T/A BILLINGHURST GEORGE & PARTNERS.
Neighbourhoods and Climate Change,Environmental Services,Fees,901002,Consultants fees 901002,17/03/2022,3981306-41497,"1,591.70",BGP CONSULTING LTD T/A BILLINGHURST GEORGE & PARTNERS.
Regeneration Economy and Growth,Development and Housing,Fees,901002,Consultants fees 901002,17/03/2022,3981306-41585,"6,623.00",BGP CONSULTING LTD T/A BILLINGHURST GEORGE & PARTNERS.
Regeneration Economy and Growth,Development and Housing,Supplies and Services,384199,Miscellaneous Expenses,17/03/2022,3981306-41605,"1,125.00",BGP CONSULTING LTD T/A BILLINGHURST GEORGE & PARTNERS.
Regeneration Economy and Growth,Development and Housing,Supplies and Services,384199,Miscellaneous Expenses,17/03/2022,3981306-41609,"1,518.00",BGP CONSULTING LTD T/A BILLINGHURST GEORGE & PARTNERS.
Regeneration Economy and Growth,Development and Housing,Supplies and Services,384199,Miscellaneous Expenses,17/03/2022,3981306-41610,"1,075.00",BGP CONSULTING LTD T/A BILLINGHURST GEORGE & PARTNERS.
Regeneration Economy and Growth,Development and Housing,Supplies and Services,384199,Miscellaneous Expenses,17/03/2022,3981306-41611,"1,518.00",BGP CONSULTING LTD T/A BILLINGHURST GEORGE & PARTNERS.
Regeneration Economy and Growth,Development and Housing,Supplies and Services,384199,Miscellaneous Expenses,17/03/2022,3981306-41612,540.00,BGP CONSULTING LTD T/A BILLINGHURST GEORGE & PARTNERS.
Regeneration Economy and Growth,Corporate Property and Land,Supplies and Services,384199,Miscellaneous Expenses,22/03/2022,3982783-41680,875.00,BGP CONSULTING LTD T/A BILLINGHURST GEORGE & PARTNERS.
Neighbourhoods and Climate Change,Environmental Services,Fees,901002,Consultants fees 901002,29/03/2022,3985387-41584,"1,049.64",BGP CONSULTING LTD T/A BILLINGHURST GEORGE & PARTNERS.
Children and Young Peoples Services,Head of Education and Skills,Fees,901002,Consultants fees 901002,31/03/2022,3986355-41721,"3,000.00",BGP CONSULTING LTD T/A BILLINGHURST GEORGE & PARTNERS.
Children and Young Peoples Services,Head of Education and Skills,Transport,230006,Contract Hire,03/03/2022,3974902-1-FEB22,"1,800.00",BH TRAVEL.
Children and Young Peoples Services,Head of Education and Skills,Transport,230008,Contract Hire,09/03/2022,3976969-3,768.00,BH TRAVEL.
Neighbourhoods and Climate Change,Environmental Services,Transport,230005,Contract Hire,09/03/2022,3976970-347944,"1,790.00",BICKFORD TRUCK HIRE LTD.
Adult and Health Services,Commissioning inc Supporting People,Third Party Payments,442002,Supporting People E442,17/03/2022,3980367-723802,"16,246.64",BID SERVICES.
Dedicated Schools Grant BG0015,DSG High Needs Block,Central Support and Other Recharges,689986,Unclassified E690,03/03/2022,3974903-FEBRUARY2022TOPUP,"3,533.00",BIDDICK ACADEMY.
Regeneration Economy and Growth,Culture Sport and Tourism,Supplies and Services,324117,Provisions E324,15/03/2022,3979329-50366343,852.27,BIDFOOD.
Regeneration Economy and Growth,Culture Sport and Tourism,Supplies and Services,324117,Provisions E324,15/03/2022,3979329-50554601,705.27,BIDFOOD.
Regeneration Economy and Growth,Culture Sport and Tourism,Supplies and Services,324117,Provisions E324,15/03/2022,3979329-50662177,903.89,BIDFOOD.
Regeneration Economy and Growth,Culture Sport and Tourism,Supplies and Services,324117,Provisions E324,28/03/2022,3984541-50769173,911.12,BIDFOOD.
Neighbourhoods and Climate Change,Technical Services CM0300,Third Party Payments,430100,Rendered by Private Contractors,10/03/2022,3977476-207R01668-MAR22,636.30,BIFFA WASTE SERVICES LTD.
Neighbourhoods and Climate Change,Technical Services CM0300,Third Party Payments,430100,Rendered by Private Contractors,10/03/2022,3977476-207R01683,"1,218.70",BIFFA WASTE SERVICES LTD.
Neighbourhoods and Climate Change,Technical Services CM0300,Third Party Payments,430100,Rendered by Private Contractors,10/03/2022,3977476-207R01697-MAR22,962.50,BIFFA WASTE SERVICES LTD.
Neighbourhoods and Climate Change,Environmental Services,Third Party Payments,430114,Rendered by Private Contractors,22/03/2022,3982784-509M00416,"31,416.39",BIFFA WASTE SERVICES LTD.
Children and Young Peoples Services,Head of Education and Skills,Transport,230007,Contract Hire,09/03/2022,3976971-FEB22,"1,050.00",BIG MAMA`S TAXI.
Children and Young Peoples Services,Head of Education and Skills,Transport,230010,Contract Hire,09/03/2022,3976971-FEB223,"1,007.76",BIG MAMA`S TAXI.
Children and Young Peoples Services,Head of Education and Skills,Transport,230006,Contract Hire,09/03/2022,3976971-FEB224,"1,638.12",BIG MAMA`S TAXI.
Children and Young Peoples Services,Head of Education and Skills,Transport,230006,Contract Hire,09/03/2022,3976971-FEB226,606.42,BIG MAMA`S TAXI.
Children and Young Peoples Services,Head of Education and Skills,Transport,230006,Contract Hire,15/03/2022,3979330-F131-FEB22,"1,964.40",BIG MAMA`S TAXI.
Regeneration Economy and Growth,Culture Sport and Tourism,Supplies and Services,352001,Conference Expenses,02/03/2022,3974404-8246,"4,000.00",BIKERIGHT LTD.
Regeneration Economy and Growth,Transport and Contracted Services,Supplies and Services,352001,Conference Expenses,04/03/2022,3975312-8248,"1,000.00",BIKERIGHT LTD.
Children and Young Peoples Services,Head of Education and Skills,Transport,230009,Contract Hire,09/03/2022,3976973-0522,884.55,BIRDS TAXIS LTD.
Children and Young Peoples Services,Head of Education and Skills,Transport,230008,Contract Hire,10/03/2022,3977478-0523,"1,449.45",BIRDS TAXIS LTD.
Children and Young Peoples Services,Head of Education and Skills,Transport,230008,Contract Hire,10/03/2022,3977478-0524,"1,952.44",BIRDS TAXIS LTD.
Adult and Health Services,Head of Adults,Transport,230005,Contract Hire,10/03/2022,3977478-0525,622.20,BIRDS TAXIS LTD.
Children and Young Peoples Services,Head of Education and Skills,Transport,230005,Contract Hire,10/03/2022,3977478-0527,760.00,BIRDS TAXIS LTD.
Adult and Health Services,Head of Adults,Transport,230005,Contract Hire,10/03/2022,3977478-0528,622.20,BIRDS TAXIS LTD.
Adult and Health Services,Head of Adults,Transport,230005,Contract Hire,10/03/2022,3977478-0529,"1,812.76",BIRDS TAXIS LTD.
Adult and Health Services,Head of Adults,Transport,230005,Contract Hire,10/03/2022,3977478-0530,788.20,BIRDS TAXIS LTD.
Adult and Health Services,Head of Adults,Transport,230005,Contract Hire,11/03/2022,3977916-0526,630.56,BIRDS TAXIS LTD.
Dedicated Schools Grant BG0015,DSG Early Years Block,Transfer Payments,510030,School Children,22/03/2022,3982785-29726,615.00,BISHOP AUCKLAND COLLEGE NURSERY.
Dedicated Schools Grant BG0015,DSG High Needs Block,Third Party Payments,440080,Other third party payments E440,03/03/2022,3974904-FEBRUARY2022TOPUP,"83,553.00",BISHOP AUCKLAND COLLEGE.
Adult and Health Services,Commissioning inc Supporting People,Supplies and Services,352001,Conference Expenses,25/03/2022,3984046-SLINV/00000909,"1,000.00",BISHOP AUCKLAND COLLEGE.
Regeneration Economy and Growth,Development and Housing,Supplies and Services,384899,Miscellaneous Expenses,31/03/2022,3986359-SD017/7,"11,341.15",BISHOP AUCKLAND COLLEGE.
Regeneration Economy and Growth,Development and Housing,Supplies and Services,384700,Miscellaneous Expenses,18/03/2022,3981563-RED-03-2022-150,"2,160.00",BISHOP AUCKLAND TOWN COUNCIL.
Regeneration Economy and Growth,Development and Housing,Cap Exp on Grants & Other Financial Assistance (REFCUS),918501,Exp assets not owned by authority,15/03/2022,3979332-HERITAGEACTIONZONE,"3,000.00",BISHOP AUCKLAND TOWN TEAM.
Dedicated Schools Grant BG0015,DSG High Needs Block,Central Support and Other Recharges,689989,Unclassified E690,03/03/2022,3974905-FEBRUARY2022TOPUP,"1,134.00",BISHOP CHADWICK CATHOLIC EDUCATION TRUST (NSCET).
Dedicated Schools Grant BG0015,DSG High Needs Block,Central Support and Other Recharges,689988,Unclassified E690,03/03/2022,3974906-FEBRUARY2022TOPUP,"3,245.00",BISHOP CHADWICK CATHOLIC EDUCATION TRUST (NSCET).
Dedicated Schools Grant BG0015,DSG High Needs Block,Central Support and Other Recharges,689988,Unclassified E690,03/03/2022,3974907-FEBRUARY2022TOPUP,772.00,BISHOP CHADWICK CATHOLIC EDUCATION TRUST (NSCET).
Dedicated Schools Grant BG0015,DSG High Needs Block,Central Support and Other Recharges,689989,Unclassified E690,03/03/2022,3974907-FEBRUARY2022TOPUP-1,"5,435.00",BISHOP CHADWICK CATHOLIC EDUCATION TRUST (NSCET).
Dedicated Schools Grant BG0015,DSG High Needs Block,Supplies and Services,384302,Miscellaneous Expenses,31/03/2022,3986360-BBSI21,"2,550.00",BISHOP CHADWICK CATHOLIC EDUCATION TRUST (NSCET).
Dedicated Schools Grant BG0015,DSG High Needs Block,Supplies and Services,384302,Miscellaneous Expenses,31/03/2022,3986360-BBSI22,"2,000.00",BISHOP CHADWICK CATHOLIC EDUCATION TRUST (NSCET).
Dedicated Schools Grant BG0015,DSG High Needs Block,Supplies and Services,384302,Miscellaneous Expenses,31/03/2022,3986360-BBSI25,850.00,BISHOP CHADWICK CATHOLIC EDUCATION TRUST (NSCET).
Dedicated Schools Grant BG0015,DSG High Needs Block,Supplies and Services,384302,Miscellaneous Expenses,31/03/2022,3986360-BBSI26,"1,700.00",BISHOP CHADWICK CATHOLIC EDUCATION TRUST (NSCET).
Dedicated Schools Grant BG0015,DSG High Needs Block,Supplies and Services,384302,Miscellaneous Expenses,31/03/2022,3986360-BBSI27,"5,000.00",BISHOP CHADWICK CATHOLIC EDUCATION TRUST (NSCET).
Dedicated Schools Grant BG0015,DSG High Needs Block,Supplies and Services,384302,Miscellaneous Expenses,31/03/2022,3986360-BBSI28,"2,000.00",BISHOP CHADWICK CATHOLIC EDUCATION TRUST (NSCET).
Children and Young Peoples Services,Head of Education and Skills,Third Party Payments,440999,Other third party payments E440,08/03/2022,3976599-KICKSTART-SALARY5,941.16,BISHOP CHADWICK CATHOLIC EDUCATION TRUST.
Children and Young Peoples Services,Head of Education and Skills,Third Party Payments,440999,Other third party payments E440,14/03/2022,3978391-NEI-EXP-03-2022-040,"1,010.75",BISHOP CHADWICK CATHOLIC EDUCATION TRUST.
Children and Young Peoples Services,Head of Education and Skills,Third Party Payments,440999,Other third party payments E440,23/03/2022,3983200-KICK5044718INVOICE000668,941.16,BISHOP CHADWICK CATHOLIC EDUCATION TRUST.
Children and Young Peoples Services,Head of Education and Skills,Transfer Payments,510034,School Children,29/03/2022,3985395-LACPP21-22ADDITIONAL,"1,300.00",BISHOP HOGARTH CATHOLIC EDUCATION TRUST T/A ST JOSEPHS PRIMARY SCHOOL.
Children and Young Peoples Services,Head of Education and Skills,Transfer Payments,510027,School Children,03/03/2022,3974908-FEBRUARY2022TOPUP,760.00,BISHOP HOGARTH CATHOLIC EDUCATION TRUST.
Dedicated Schools Grant BG0015,DSG High Needs Block,Transfer Payments,510025,School Children,03/03/2022,3974909-FEBRUARY2022TOPUP,"1,513.00",BISHOP HOGARTH CATHOLIC EDUCATION TRUST.
Dedicated Schools Grant BG0015,DSG High Needs Block,Central Support and Other Recharges,689988,Unclassified E690,03/03/2022,3974910-FEBRUARY2022TOPUP,567.00,BISHOP HOGARTH CATHOLIC EDUCATION TRUST.
Dedicated Schools Grant BG0015,DSG High Needs Block,Transfer Payments,510025,School Children,03/03/2022,3974910-FEBRUARY2022TOPUP-1,"1,610.00",BISHOP HOGARTH CATHOLIC EDUCATION TRUST.
Children and Young Peoples Services,Head of Education and Skills,Transfer Payments,510051,School Children,31/03/2022,3986362-AWPU-05-2021-334,"1,993.53",BISHOP HOGARTH CATHOLIC EDUCATION TRUST.
Children and Young Peoples Services,Head of Education and Skills,Transfer Payments,510051,School Children,31/03/2022,3986362-AWPU-05-2021-335,"2,131.01",BISHOP HOGARTH CATHOLIC EDUCATION TRUST.
Children and Young Peoples Services,Head of Education and Skills,Transfer Payments,510051,School Children,31/03/2022,3986362-AWPU-05-2021-341,"4,239.11",BISHOP HOGARTH CATHOLIC EDUCATION TRUST.
Children and Young Peoples Services,Head of Education and Skills,Transfer Payments,510051,School Children,31/03/2022,3986362-AWPU-05-2021-342,"4,239.11",BISHOP HOGARTH CATHOLIC EDUCATION TRUST.
Children and Young Peoples Services,Head of Education and Skills,Transfer Payments,510051,School Children,31/03/2022,3986362-AWPU-05-2021-343,"4,239.11",BISHOP HOGARTH CATHOLIC EDUCATION TRUST.
Children and Young Peoples Services,Head of Education and Skills,Transfer Payments,510051,School Children,31/03/2022,3986362-AWPU-05-2021-344,"4,699.71",BISHOP HOGARTH CATHOLIC EDUCATION TRUST.
Children and Young Peoples Services,Head of Education and Skills,Transfer Payments,510051,School Children,31/03/2022,3986362-AWPU-05-2021-345,"4,570.59",BISHOP HOGARTH CATHOLIC EDUCATION TRUST.
Children and Young Peoples Services,Head of Education and Skills,Transfer Payments,510051,School Children,31/03/2022,3986362-AWPU-05-2021-346,"3,482.94",BISHOP HOGARTH CATHOLIC EDUCATION TRUST.
Children and Young Peoples Services,Head of Education and Skills,Transfer Payments,510051,School Children,31/03/2022,3986362-AWPU-05-2021-347,"3,368.37",BISHOP HOGARTH CATHOLIC EDUCATION TRUST.
Children and Young Peoples Services,Head of Education and Skills,Transfer Payments,510028,School Children,09/03/2022,3976974-CAS-03-2022-041,"10,000.00",BISHOP IAN RAMSEY C OF E PRIMARY SCHOOL.
Regeneration Economy and Growth,Culture Sport and Tourism,Supplies and Services,304359,Equipment and Materials,16/03/2022,3979758-BMPR/836/SKIPS,700.00,BISHOP MIDDLEHAM PLANT & RECYCLING LTD.
Dedicated Schools Grant BG0015,DSG High Needs Block,Central Support and Other Recharges,689988,Unclassified E690,03/03/2022,3974912-FEBRUARY2022TOPUP,"2,082.00",BISHOP WILKINSON CE TRUST.
Dedicated Schools Grant BG0015,DSG High Needs Block,Central Support and Other Recharges,689988,Unclassified E690,03/03/2022,3974914-FEBRUARY2022TOPUP,614.00,BISHOP WILKINSON CE TRUST.
Dedicated Schools Grant BG0015,DSG High Needs Block,Central Support and Other Recharges,689988,Unclassified E690,03/03/2022,3974915-FEBRUARY2022TOPUP,"1,115.00",BISHOP WILKINSON CE TRUST.
Children and Young Peoples Services,Head of Education and Skills,Transfer Payments,510051,School Children,18/03/2022,3981565-AWPU-05-2021-283,"2,563.01",BISHOP WILKINSON CE TRUST.
Children and Young Peoples Services,Head of Education and Skills,Transfer Payments,510051,School Children,18/03/2022,3981565-AWPU-05-2021-284,"4,055.80",BISHOP WILKINSON CE TRUST.
Children and Young Peoples Services,Head of Early Help Inclusion & Vulnerable Children.,Supplies and Services,384700,Miscellaneous Expenses,22/03/2022,3982789-CAS-03-2022-124,600.00,BISHOP WILKINSON CE TRUST.
Children and Young Peoples Services,Head of Education and Skills,Transfer Payments,510034,School Children,29/03/2022,3985404-LACPP21-22ADDITIONAL,700.00,BISHOP WILKINSON CE TRUST.
Children and Young Peoples Services,Head of Education and Skills,Transfer Payments,510051,School Children,31/03/2022,3986365-AWPU-05-2021-348,"1,757.72",BISHOP WILKINSON CE TRUST.
Regeneration Economy and Growth,Business Durham CL0850,Third Party Payments,430100,Rendered by Private Contractors,04/03/2022,3975313-DBRG-02-2022-43A,"22,374.40",BISHOPS BEDS LTD.
Neighbourhoods and Climate Change,Environmental Services,Transport,210057,Repair and Maintenance of Vehicles,02/03/2022,3974406-57441,556.85,BJ LUKE NIELSEN DIRECT.
Children and Young Peoples Services,Head of Education and Skills,Transport,230035,Contract Hire,10/03/2022,3977480-4-4504FEB22,684.00,BL TAXIS.
Neighbourhoods and Climate Change,Technical Services CM0300,Third Party Payments,430100,Rendered by Private Contractors,22/03/2022,3982790-SI54528,"85,602.20",BLACHERE ILLUMINATION UK LTD.
Neighbourhoods and Climate Change,Technical Services CM0300,Supplies and Services,338066,Services,16/03/2022,3979759-5416/X91/559,770.00,BLACKETT-ORD CONSERVATION ENGINEERING.
Neighbourhoods and Climate Change,Technical Services CM0300,Supplies and Services,338066,Services,16/03/2022,3979759-5417/X84/559,900.00,BLACKETT-ORD CONSERVATION ENGINEERING.
Regeneration Economy and Growth,Culture Sport and Tourism,Supplies and Services,384999,Miscellaneous Expenses,30/03/2022,317627-30166918,"1,000.00",BLACKPOOL BOROUGH COUNCIL.
Resources BK0010,Digital and Customer Services,Supplies and Services,338066,Services,02/03/2022,3974407-SIN031125,"19,060.00",BLOOM PROCUREMENT SERVICES LTD (FORMERLY NEPRO LTD).
Neighbourhoods and Climate Change,Technical Services CM0300,Supplies and Services,338066,Services,10/03/2022,3977481-SIN031421,"173,403.02",BLOOM PROCUREMENT SERVICES LTD (FORMERLY NEPRO LTD).
Regeneration Economy and Growth,Transport and Contracted Services,Fees,901002,Consultants fees 901002,17/03/2022,3981307-SIN031616,"139,903.92",BLOOM PROCUREMENT SERVICES LTD (FORMERLY NEPRO LTD).
Regeneration Economy and Growth,Development and Housing,Supplies and Services,338066,Services,23/03/2022,3983201-SIN031814,"199,002.88",BLOOM PROCUREMENT SERVICES LTD (FORMERLY NEPRO LTD).
Resources BK0010,Finance & Transactional Services,Supplies and Services,338066,Services,30/03/2022,3985966-SIN032064,"98,816.50",BLOOM PROCUREMENT SERVICES LTD (FORMERLY NEPRO LTD).
Adult and Health Services,Head of Adults,Third Party Payments,479152,Purchase of Care,11/03/2022,3977918-WORKFORCER&RFUND2/152,"2,120.00",BLOSSOM HOME CARE.
Adult and Health Services,Head of Adults,Third Party Payments,479152,Purchase of Care,11/03/2022,3977918-WORKFORCER&RFUND2/153,800.00,BLOSSOM HOME CARE.
Adult and Health Services,Head of Adults,Third Party Payments,472101,Purchase of Care,17/03/2022,3980370-I-22-3215737,"8,044.29",BLOSSOM HOME CARE.
Children and Young Peoples Services,Head of Education and Skills,Third Party Payments,440999,Other third party payments E440,14/03/2022,3978392-NEI-EXP-03-2022-047,716.39,BLUE SKY CHILDCARE.
Adult and Health Services,Head of Adults,Third Party Payments,479152,Purchase of Care,11/03/2022,3977919-WORKFORCER&RFUND2/137,"8,000.00",BLUEBIRD CARE DURHAM NORTH.
Adult and Health Services,Head of Adults,Third Party Payments,479152,Purchase of Care,16/03/2022,3979760-WORKFORCER&RFUND2/154,"3,500.00",BLUEBIRD CARE DURHAM NORTH.
Adult and Health Services,Public Health CC0450,Third Party Payments,460803,Contract Payments,09/03/2022,3976977-1303,"8,995.00",BLUEGRASS RESEARCH LTD.
Regeneration Economy and Growth,Culture Sport and Tourism,Supplies and Services,384199,Miscellaneous Expenses,29/03/2022,3985410-13016,"5,387.50",BLUEGRASS RESEARCH LTD.
Adult and Health Services,Public Health CC0450,Third Party Payments,460803,Contract Payments,29/03/2022,3985410-1307,"19,150.00",BLUEGRASS RESEARCH LTD.
Children and Young Peoples Services,Head of Education and Skills,Transport,230016,Contract Hire,03/03/2022,3974916-39269,"1,744.00",BLUELINE TAXIS.
Children and Young Peoples Services,Head of Education and Skills,Transport,230006,Contract Hire,15/03/2022,3979336-39839,"1,367.10",BLUELINE TAXIS.
Children and Young Peoples Services,Head of Education and Skills,Transport,230008,Contract Hire,15/03/2022,3979336-39846,"1,320.00",BLUELINE TAXIS.
Children and Young Peoples Services,Head of Education and Skills,Transport,230035,Contract Hire,15/03/2022,3979336-39847,"1,469.94",BLUELINE TAXIS.
Children and Young Peoples Services,Head of Education and Skills,Transport,230008,Contract Hire,18/03/2022,3981566-37652,"1,728.00",BLUELINE TAXIS.
Children and Young Peoples Services,Head of Education and Skills,Transport,230006,Contract Hire,18/03/2022,3981566-39842,900.00,BLUELINE TAXIS.
Children and Young Peoples Services,Head of Education and Skills,Transport,230006,Contract Hire,18/03/2022,3981566-39848,"1,152.00",BLUELINE TAXIS.
Children and Young Peoples Services,Head of Education and Skills,Transport,230008,Contract Hire,18/03/2022,3981566-39849,"1,920.00",BLUELINE TAXIS.
Children and Young Peoples Services,Head of Education and Skills,Transport,230007,Contract Hire,18/03/2022,3981566-39852,930.00,BLUELINE TAXIS.
Children and Young Peoples Services,Head of Education and Skills,Transport,230007,Contract Hire,21/03/2022,3981968-39913,681.30,BLUELINE TAXIS.
Adult and Health Services,Head of Adults,Transport,230005,Contract Hire,21/03/2022,3981968-39914,"1,429.65",BLUELINE TAXIS.
Children and Young Peoples Services,Head of Education and Skills,Transport,230008,Contract Hire,21/03/2022,3981968-39917,"2,308.88",BLUELINE TAXIS.
Children and Young Peoples Services,Head of Education and Skills,Transport,230008,Contract Hire,21/03/2022,3981968-39924,"1,404.00",BLUELINE TAXIS.
Children and Young Peoples Services,Head of Education and Skills,Transport,230012,Contract Hire,21/03/2022,3981968-39929,"1,829.76",BLUELINE TAXIS.
Children and Young Peoples Services,Head of Education and Skills,Transport,230009,Contract Hire,23/03/2022,3983202-38776,614.12,BLUELINE TAXIS.
Children and Young Peoples Services,Head of Education and Skills,Transport,230016,Contract Hire,24/03/2022,3983616-39824,"1,440.50",BLUELINE TAXIS.
Children and Young Peoples Services,Head of Education and Skills,Transport,230007,Contract Hire,24/03/2022,3983616-39937,"1,680.00",BLUELINE TAXIS.
Children and Young Peoples Services,Head of Education and Skills,Transport,230008,Contract Hire,28/03/2022,3984544-38772,"2,272.22",BLUELINE TAXIS.
Children and Young Peoples Services,Head of Education and Skills,Transport,230008,Contract Hire,28/03/2022,3984544-38795,"1,664.00",BLUELINE TAXIS.
Children and Young Peoples Services,Head of Education and Skills,Transport,230006,Contract Hire,28/03/2022,3984544-38796,"1,404.65",BLUELINE TAXIS.
Children and Young Peoples Services,Head of Education and Skills,Transport,230007,Contract Hire,28/03/2022,3984544-38798,806.00,BLUELINE TAXIS.
Children and Young Peoples Services,Head of Education and Skills,Transport,230006,Contract Hire,28/03/2022,3984544-39283,"1,822.80",BLUELINE TAXIS.
Children and Young Peoples Services,Head of Education and Skills,Transport,230006,Contract Hire,28/03/2022,3984544-39293,"1,888.40",BLUELINE TAXIS.
Children and Young Peoples Services,Head of Education and Skills,Transport,230012,Contract Hire,28/03/2022,3984544-39812,"1,715.40",BLUELINE TAXIS.
Children and Young Peoples Services,Head of Education and Skills,Transport,230006,Contract Hire,28/03/2022,3984544-39850,"1,292.12",BLUELINE TAXIS.
Children and Young Peoples Services,Head of Education and Skills,Transport,230007,Contract Hire,28/03/2022,3984544-39962,"2,228.40",BLUELINE TAXIS.
Children and Young Peoples Services,Head of Education and Skills,Transport,230006,Contract Hire,30/03/2022,3985968-38270,"2,429.42",BLUELINE TAXIS.
Children and Young Peoples Services,Head of Education and Skills,Transport,230007,Contract Hire,30/03/2022,3985968-39819,986.40,BLUELINE TAXIS.
Children and Young Peoples Services,Head of Education and Skills,Transport,230006,Contract Hire,30/03/2022,3985968-39822,"1,650.00",BLUELINE TAXIS.
Children and Young Peoples Services,Head of Education and Skills,Transport,230007,Contract Hire,30/03/2022,3985968-39851,"1,200.00",BLUELINE TAXIS.
Children and Young Peoples Services,Head of Education and Skills,Transport,230008,Contract Hire,30/03/2022,3985968-39964,"3,095.79",BLUELINE TAXIS.
Children and Young Peoples Services,Head of Education and Skills,Transport,230009,Contract Hire,30/03/2022,3985968-39966,888.70,BLUELINE TAXIS.
Children and Young Peoples Services,Head of Education and Skills,Transport,230008,Contract Hire,30/03/2022,3985968-39969,"2,052.00",BLUELINE TAXIS.
Children and Young Peoples Services,Head of Education and Skills,Transport,230007,Contract Hire,03/03/2022,3974917-DF,524.20,BOBS TAXIS.
Children and Young Peoples Services,Head of Education and Skills,Transport,230007,Contract Hire,10/03/2022,3977482-F1,559.00,BOBS TAXIS.
Children and Young Peoples Services,Head of Education and Skills,Transport,230007,Contract Hire,30/03/2022,3985969-F,"2,395.50",BOBS TAXIS.
Neighbourhoods and Climate Change,Environmental Services,Supplies and Services,304403,Equipment and Materials,10/03/2022,3977483-3067062271,500.80,BOC LTD.
Regeneration Economy and Growth,Culture Sport and Tourism,Supplies and Services,312013,Newspapers books and periodicals E312,02/03/2022,3974409-80629,875.52,BOLINDA DIGITAL LTD.
Regeneration Economy and Growth,Culture Sport and Tourism,Supplies and Services,312013,Newspapers books and periodicals E312,10/03/2022,3977484-80999,509.90,BOLINDA DIGITAL LTD.
Regeneration Economy and Growth,Culture Sport and Tourism,Supplies and Services,312013,Newspapers books and periodicals E312,16/03/2022,3979761-82397,"5,856.91",BOLINDA DIGITAL LTD.
Regeneration Economy and Growth,Culture Sport and Tourism,Supplies and Services,312013,Newspapers books and periodicals E312,22/03/2022,3982791-30082,"9,348.77",BOLINDA DIGITAL LTD.
Regeneration Economy and Growth,Culture Sport and Tourism,Supplies and Services,312013,Newspapers books and periodicals E312,22/03/2022,3982791-82527,500.00,BOLINDA DIGITAL LTD.
Regeneration Economy and Growth,Culture Sport and Tourism,Supplies and Services,312013,Newspapers books and periodicals E312,28/03/2022,3984545-83239,"2,371.57",BOLINDA DIGITAL LTD.
Regeneration Economy and Growth,Culture Sport and Tourism,Supplies and Services,312013,Newspapers books and periodicals E312,28/03/2022,3984545-83372,"4,387.81",BOLINDA DIGITAL LTD.
Children and Young Peoples Services,Head of Education and Skills,Transport,230034,Contract Hire,03/03/2022,3974918-02FEB22,"1,950.00",BON VOYAGE TAXIS LTD.
Children and Young Peoples Services,Head of Education and Skills,Transport,230008,Contract Hire,10/03/2022,3977485-06/MARCH,"2,800.00",BON VOYAGE TAXIS LTD.
Children and Young Peoples Services,Head of Education and Skills,Transport,230008,Contract Hire,11/03/2022,3977920-01-N342,"1,536.00",BON VOYAGE TAXIS LTD.
Children and Young Peoples Services,Head of Education and Skills,Transport,230008,Contract Hire,11/03/2022,3977920-06-N029,"2,640.00",BON VOYAGE TAXIS LTD.
Children and Young Peoples Services,Head of Education and Skills,Transport,230008,Contract Hire,11/03/2022,3977920-06-N070,"2,016.00",BON VOYAGE TAXIS LTD.
Children and Young Peoples Services,Head of Education and Skills,Transport,230008,Contract Hire,11/03/2022,3977920-06/MARCH/22,"2,925.00",BON VOYAGE TAXIS LTD.
Children and Young Peoples Services,Head of Education and Skills,Transport,230008,Contract Hire,11/03/2022,3977920-06/MARCH/N324,"2,729.70",BON VOYAGE TAXIS LTD.
Adult and Health Services,Head of Adults,Supplies and Services,338089,Services,15/03/2022,3979338-DS110114524,"2,000.00",BOND SOLON TRAINING LTD.*
Adult and Health Services,Head of Adults,Third Party Payments,479154,Purchase of Care,02/03/2022,3974410-OMICRONSUPPORT1/78,"3,974.40",BONDCARE WILLINGTON LTD.
Adult and Health Services,Head of Adults,Third Party Payments,479154,Purchase of Care,02/03/2022,3974411-OMICRONSUPPORT1/77,"4,868.64",BONDCARE WILLINGTON LTD.
Adult and Health Services,Head of Adults,Third Party Payments,479154,Purchase of Care,02/03/2022,3974412-OMICRONSUPPORT1/79,"4,868.64",BONDCARE WILLINGTON LTD.
Adult and Health Services,Head of Adults,Third Party Payments,470101,Purchase of Care,17/03/2022,3980371-I-22-3215636,"109,612.39",BONDCARE WILLINGTON LTD.
Adult and Health Services,Head of Adults,Third Party Payments,470101,Purchase of Care,17/03/2022,3980371-I-22-3215990,"2,597.40",BONDCARE WILLINGTON LTD.
Adult and Health Services,Head of Adults,Third Party Payments,470101,Purchase of Care,17/03/2022,3980372-I-22-3215487,"73,092.44",BONDCARE WILLINGTON LTD.
Adult and Health Services,Head of Adults,Third Party Payments,470101,Purchase of Care,17/03/2022,3980372-I-22-3215785,"1,731.60",BONDCARE WILLINGTON LTD.
Adult and Health Services,Head of Adults,Third Party Payments,478101,Purchase of Care,17/03/2022,3980373-I-22-3215819,"28,023.00",BONDCARE WILLINGTON LTD.
Adult and Health Services,Head of Adults,Third Party Payments,478101,Purchase of Care,17/03/2022,3980373-I-22-3215967,"47,634.32",BONDCARE WILLINGTON LTD.
Adult and Health Services,Head of Adults,Third Party Payments,474101,Purchase of Care,17/03/2022,3980374-I-22-3215532,"119,910.55",BONDCARE WILLINGTON LTD.
Adult and Health Services,Head of Adults,Third Party Payments,470101,Purchase of Care,17/03/2022,3980374-I-22-3215867,"1,847.04",BONDCARE WILLINGTON LTD.
Adult and Health Services,Head of Adults,Third Party Payments,479152,Purchase of Care,22/03/2022,3982792-WORKFORCER&RFUND2/163,"22,000.00",BONDCARE WILLINGTON LTD.
Adult and Health Services,Head of Adults,Third Party Payments,479152,Purchase of Care,22/03/2022,3982793-WORKFORCER&RFUND2/164,"22,000.00",BONDCARE WILLINGTON LTD.
Adult and Health Services,Head of Adults,Third Party Payments,479152,Purchase of Care,22/03/2022,3982794-WORKFORCER&RFUND2/165,"22,000.00",BONDCARE WILLINGTON LTD.
Adult and Health Services,Head of Adults,Third Party Payments,479152,Purchase of Care,22/03/2022,3982795-WORKFORCER&RFUND2/174,"12,000.00",BONDCARE WILLINGTON LTD.
Adult and Health Services,Head of Adults,Third Party Payments,479152,Purchase of Care,22/03/2022,3982795-WORKFORCER&RFUND2/175,"12,000.00",BONDCARE WILLINGTON LTD.
Neighbourhoods and Climate Change,Environmental Services,Supplies and Services,304259,Equipment and Materials,24/03/2022,3983618-623902,755.00,BONINGALE NURSERIES.
Adult and Health Services,Public Health CC0450,Third Party Payments,460803,Contract Payments,01/03/2022,3974048-FPPB/00000351NRT,520.66,BOOTS THE CHEMISTS LTD.*
Adult and Health Services,Public Health CC0450,Third Party Payments,460803,Contract Payments,01/03/2022,3974051-DRJY/00000325,784.00,BOOTS THE CHEMISTS LTD.*
Adult and Health Services,Public Health CC0450,Third Party Payments,460803,Contract Payments,01/03/2022,3974051-FCWX/00000199NRT,669.71,BOOTS THE CHEMISTS LTD.*
Adult and Health Services,Public Health CC0450,Third Party Payments,460803,Contract Payments,01/03/2022,3974052-FNHN/00000201,592.00,BOOTS THE CHEMISTS LTD.*
Adult and Health Services,Public Health CC0450,Third Party Payments,460803,Contract Payments,01/03/2022,3974054-FKAT/00000326,564.00,BOOTS THE CHEMISTS LTD.*
Adult and Health Services,Public Health CC0450,Third Party Payments,460803,Contract Payments,01/03/2022,3974058-FCPT/00000258NRT,505.59,BOOTS THE CHEMISTS LTD.*
Adult and Health Services,Public Health CC0450,Third Party Payments,460803,Contract Payments,01/03/2022,3974059-FMMG/00000228NRT,795.13,BOOTS THE CHEMISTS LTD.*
Adult and Health Services,Public Health CC0450,Third Party Payments,460803,Contract Payments,01/03/2022,3974060-FHRN/00000276,674.00,BOOTS THE CHEMISTS LTD.*
Adult and Health Services,Public Health CC0450,Third Party Payments,460803,Contract Payments,01/03/2022,3974066-DWTP/00000296,"1,622.00",BOOTS THE CHEMISTS LTD.*
Adult and Health Services,Public Health CC0450,Third Party Payments,460803,Contract Payments,01/03/2022,3974066-DWTP/00000297NRT,605.14,BOOTS THE CHEMISTS LTD.*
Adult and Health Services,Public Health CC0450,Third Party Payments,460803,Contract Payments,30/03/2022,3985975-DPWT/00000330NRT,514.41,BOOTS THE CHEMISTS LTD.*
Adult and Health Services,Public Health CC0450,Third Party Payments,460803,Contract Payments,30/03/2022,3985977-DYTC/00000316NRT,622.56,BOOTS THE CHEMISTS LTD.*
Adult and Health Services,Public Health CC0450,Third Party Payments,460803,Contract Payments,30/03/2022,3985978-DRJY/00000331NRT,534.92,BOOTS THE CHEMISTS LTD.*
Adult and Health Services,Public Health CC0450,Third Party Payments,460803,Contract Payments,31/03/2022,3986377-DYTC/00000315SC,508.00,BOOTS THE CHEMISTS LTD.*
Adult and Health Services,Public Health CC0450,Third Party Payments,460803,Contract Payments,31/03/2022,3986378-DWTP/00000299SC,"1,248.00",BOOTS THE CHEMISTS LTD.*
Adult and Health Services,Public Health CC0450,Third Party Payments,460803,Contract Payments,31/03/2022,3986379-FNHN/00000203SC,794.00,BOOTS THE CHEMISTS LTD.*
Adult and Health Services,Public Health CC0450,Third Party Payments,460803,Contract Payments,31/03/2022,3986380-DRJY/00000330SC,828.00,BOOTS THE CHEMISTS LTD.*
Adult and Health Services,Public Health CC0450,Third Party Payments,460803,Contract Payments,31/03/2022,3986387-FKAT/00000330SC,806.00,BOOTS THE CHEMISTS LTD.*
Neighbourhoods and Climate Change,Partnerships & Community Engagement Div.,Cap Exp on Grants & Other Financial Assistance (REFCUS),918004,Contributions to other bodies 918004,10/03/2022,3977487-VOUCHER21AB-CHES004,"23,396.00",BOURNMOOR CRICKET CLUB (SENIORS).
Neighbourhoods and Climate Change,Partnerships & Community Engagement Div.,Supplies and Services,384086,Miscellaneous Expenses,11/03/2022,3977922-VOUCHER21NB-CHES015,"2,000.00",BOURNMOOR YOUTH & COMMUNITY PROJECT.
Adult and Health Services,Public Health CC0450,Third Party Payments,460803,Contract Payments,01/03/2022,3974070-DPPN/00000252,590.00,BOWBURN PHARMACY.
Adult and Health Services,Public Health CC0450,Third Party Payments,460803,Contract Payments,30/03/2022,3985985-DPPN/00000258NRT,516.12,BOWBURN PHARMACY.
Children and Young Peoples Services,Head of Education and Skills,Transport,230034,Contract Hire,11/03/2022,3977923-005FEB22,"1,775.48",BOWBURN TAXIS.
Children and Young Peoples Services,Head of Education and Skills,Transport,230007,Contract Hire,11/03/2022,3977923-006FEB22,653.20,BOWBURN TAXIS.
Adult and Health Services,Head of Adults,Third Party Payments,470101,Purchase of Care,17/03/2022,3980375-I-22-3215411,"4,412.00",BOWDEN DERRA PARK LTD.
Neighbourhoods and Climate Change,Technical Services CM0300,Supplies and Services,384899,Miscellaneous Expenses,17/03/2022,3981308-RED-03-2022-145,"1,013.00",BOWES PARISH COUNCIL.
Children and Young Peoples Services,Head of Education and Skills,Transport,230008,Contract Hire,04/03/2022,3975317-N098-FEB22,"1,776.00",BOWES TRAVEL.
Children and Young Peoples Services,Central Charges (CYPS),Supplies and Services,384197,Miscellaneous Expenses,07/03/2022,3975689-0029443,"1,889.22",BOX-IT NORTH.
Children and Young Peoples Services,Central Charges (CYPS),Supplies and Services,384197,Miscellaneous Expenses,15/03/2022,3979340-0029442,711.01,BOX-IT NORTH.
Resources BK0010,Legal & Democratic Services,Premises,120021,Energy Costs,29/03/2022,3985413-32957,"1,219.55",BRADLEY HALL LTD.
Neighbourhoods and Climate Change,Environmental Services,Third Party Payments,430100,Rendered by Private Contractors,24/03/2022,3983620-210812,"51,703.95",BRAMBLEDOWN LANDSCAPE SERVICES LTD.
Adult and Health Services,Public Health CC0450,Third Party Payments,460803,Contract Payments,01/03/2022,3974071-DWZN/00000065NRT,560.89,BRANDON PHARMACY.
Adult and Health Services,Public Health CC0450,Third Party Payments,460803,Contract Payments,30/03/2022,3985987-DWZN/00000068NRT,"1,123.00",BRANDON PHARMACY.
Children and Young Peoples Services,Head of Education and Skills,Supplies and Services,304252,Equipment and Materials,29/03/2022,3985415-34,715.00,BRASS (INSTRUMENT REPAIRER).
Neighbourhoods and Climate Change,Partnerships & Community Engagement Div.,Supplies and Services,384086,Miscellaneous Expenses,16/03/2022,3979762-VOUCHERCOUB10-21,500.00,BREATHING SPACE ST MICHAELS.
Neighbourhoods and Climate Change,Technical Services CM0300,Supplies and Services,304221,Equipment and Materials,28/03/2022,3984548-20596085,569.66,BREEDON TRADING LTD.
Regeneration Economy and Growth,Culture Sport and Tourism,Premises,145023,Cleaning and Domestic Supplies,09/03/2022,3976979-22SI2278906,750.00,BRENNTAG UK LTD.
Regeneration Economy and Growth,Culture Sport and Tourism,Premises,145023,Cleaning and Domestic Supplies,09/03/2022,3976979-22SI2278909,750.00,BRENNTAG UK LTD.
Regeneration Economy and Growth,Culture Sport and Tourism,Premises,145023,Cleaning and Domestic Supplies,10/03/2022,3977490-22SI2278943,750.00,BRENNTAG UK LTD.
Regeneration Economy and Growth,Culture Sport and Tourism,Premises,145023,Cleaning and Domestic Supplies,10/03/2022,3977490-22SI2278945,750.00,BRENNTAG UK LTD.
Regeneration Economy and Growth,Culture Sport and Tourism,Premises,145023,Cleaning and Domestic Supplies,10/03/2022,3977490-22SI2278947,750.00,BRENNTAG UK LTD.
Regeneration Economy and Growth,Culture Sport and Tourism,Premises,145023,Cleaning and Domestic Supplies,10/03/2022,3977490-22SI2278948,750.00,BRENNTAG UK LTD.
Regeneration Economy and Growth,Culture Sport and Tourism,Premises,145023,Cleaning and Domestic Supplies,10/03/2022,3977490-22SI2278950,750.00,BRENNTAG UK LTD.
Regeneration Economy and Growth,Culture Sport and Tourism,Premises,145023,Cleaning and Domestic Supplies,14/03/2022,3978395-22SI2278951,750.00,BRENNTAG UK LTD.
Regeneration Economy and Growth,Culture Sport and Tourism,Premises,145023,Cleaning and Domestic Supplies,16/03/2022,3979763-22SI2279043,750.00,BRENNTAG UK LTD.
Children and Young Peoples Services,Head of Education and Skills,Transport,230008,Contract Hire,02/03/2022,3974415-BZ00392,855.00,BREZ`S TAXIS.
Children and Young Peoples Services,Head of Education and Skills,Transport,230008,Contract Hire,18/03/2022,3981568-BZ009393,"1,415.30",BREZ`S TAXIS.
Neighbourhoods and Climate Change,Technical Services CM0300,Supplies and Services,338066,Services,16/03/2022,3979764-50282,"6,904.50",BRIDGEWAY CONSULTING LTD.
Regeneration Economy and Growth,Transport and Contracted Services,Supplies and Services,338066,Services,29/03/2022,3985418-62876,924.00,BRITISH PARKING ASSOCIATION.
Children and Young Peoples Services,Childrens Services Operational Support,Supplies and Services,338089,Services,25/03/2022,3984055-INV0008137,"4,260.00",BRITISH REFUGEE COUNCIL.
Regeneration Economy and Growth,Transport and Contracted Services,Supplies and Services,344033,Telephones,23/03/2022,3983206-VP07599470Q05101,"4,257.49",BRITISH TELECOMMUNICATIONS PLC.
Adult and Health Services,Public Health CC0450,Third Party Payments,460803,Contract Payments,01/03/2022,3974074-DXNF/00000264NRT,"1,815.92",BRITTON & ROBSON LTD.
Children and Young Peoples Services,Head of Childrens Social Care,Employees,080025,Agency Staff,11/03/2022,3977926-21563804,"2,966.16",BROOK STREET UK LTD T/A BS SOCIAL CARE.
Children and Young Peoples Services,Head of Childrens Social Care,Employees,080025,Agency Staff,15/03/2022,3979344-21576561,"2,966.16",BROOK STREET UK LTD T/A BS SOCIAL CARE.
Children and Young Peoples Services,Head of Childrens Social Care,Employees,080025,Agency Staff,25/03/2022,3984056-21600712,"2,966.16",BROOK STREET UK LTD T/A BS SOCIAL CARE.
Children and Young Peoples Services,Head of Childrens Social Care,Employees,080025,Agency Staff,29/03/2022,3985420-21600700,"2,966.16",BROOK STREET UK LTD T/A BS SOCIAL CARE.
Children and Young Peoples Services,Head of Childrens Social Care,Employees,080025,Agency Staff,29/03/2022,3985420-21600701,"2,966.16",BROOK STREET UK LTD T/A BS SOCIAL CARE.
Children and Young Peoples Services,Head of Childrens Social Care,Employees,080025,Agency Staff,29/03/2022,3985420-21600702,"2,966.16",BROOK STREET UK LTD T/A BS SOCIAL CARE.
Children and Young Peoples Services,Head of Childrens Social Care,Employees,080025,Agency Staff,29/03/2022,3985420-21600720,"2,966.16",BROOK STREET UK LTD T/A BS SOCIAL CARE.
Children and Young Peoples Services,Head of Childrens Social Care,Employees,080025,Agency Staff,29/03/2022,3985420-21613289,"2,966.16",BROOK STREET UK LTD T/A BS SOCIAL CARE.
Children and Young Peoples Services,Head of Childrens Social Care,Employees,080025,Agency Staff,29/03/2022,3985420-21613290,"2,966.16",BROOK STREET UK LTD T/A BS SOCIAL CARE.
Adult and Health Services,Head of Adults,Third Party Payments,479152,Purchase of Care,11/03/2022,3977927-WORKFORCER&RFUND2/99,"1,280.00",BROOMHOUSE CARE LTD.
Adult and Health Services,Head of Adults,Third Party Payments,470101,Purchase of Care,17/03/2022,3980380-I-22-3215655,"47,579.55",BROOMHOUSE CARE LTD.
Adult and Health Services,Head of Adults,Third Party Payments,479154,Purchase of Care,25/03/2022,3984057-OMICRONSUPPORT1/139,"9,641.64",BROOMHOUSE CARE LTD.
Regeneration Economy and Growth,Culture Sport and Tourism,Supplies and Services,384199,Miscellaneous Expenses,29/03/2022,3985421-16934,646.55,BROWN & ILLINGWORTH LTD.
Children and Young Peoples Services,Head of Early Help Inclusion & Vulnerable Children.,Supplies and Services,384700,Miscellaneous Expenses,29/03/2022,3985423-CAS-03-2022-191,700.00,BROWNEY PRIMARY ACADEMY.
Regeneration Economy and Growth,Development and Housing,Supplies and Services,304259,Equipment and Materials,01/03/2022,3974076-INV286312,"36,350.00",BROXAP LTD.
Regeneration Economy and Growth,Corporate Property and Land,Premises,145009,Cleaning and Domestic Supplies,10/03/2022,3977494-1650/0486106,"1,222.09",BSS GROUP PLC.
Regeneration Economy and Growth,Corporate Property and Land,Supplies and Services,304221,Equipment and Materials,10/03/2022,3977494-1660/0499045,931.59,BSS GROUP PLC.
Regeneration Economy and Growth,Business Durham CL0850,Third Party Payments,440999,Other third party payments E440,23/03/2022,3983208-DBRG-03-2022-35,"7,837.50",BTS FABRICATIONS LTD.
Regeneration Economy and Growth,Business Durham CL0850,Construction work A908,908105,Construction work,31/03/2022,3986398-J0043,"69,966.17",BUCKINGHAMSHIRE PROPERTIES LTD.
Regeneration Economy and Growth,Business Durham CL0850,Construction work A908,908105,Construction work,31/03/2022,3986398-J0044,"12,454.75",BUCKINGHAMSHIRE PROPERTIES LTD.
Regeneration Economy and Growth,Business Durham CL0850,Construction work A908,908105,Construction work,31/03/2022,3986398-J0045,"66,924.00",BUCKINGHAMSHIRE PROPERTIES LTD.
Regeneration Economy and Growth,Business Durham CL0850,Supplies and Services,352001,Conference Expenses,11/03/2022,3977929-INV-11748,"14,000.00",BUILT ENVIRONMENT NETWORKING LTD.
Adult and Health Services,Head of Adults,Third Party Payments,473101,Purchase of Care,17/03/2022,3980381-I-22-3215905,"1,800.00",BULLION COMMUNITY RESOURCE CENTRE.
Adult and Health Services,Head of Adults,Third Party Payments,470101,Purchase of Care,17/03/2022,3980382-I-22-3215622,"2,360.00",BURLINGTON CARE LTD.
Children and Young Peoples Services,Head of Education and Skills,Third Party Payments,440999,Other third party payments E440,02/03/2022,3974419-KICKSTART-ZGAA-WLGJ,716.39,BURNS PETCARE LTD T/A WOOFS N SCRUFFS.
Children and Young Peoples Services,Head of Education and Skills,Third Party Payments,440999,Other third party payments E440,08/03/2022,3976610-KICKSTART-SETUP,750.00,BURNS PETCARE LTD T/A WOOFS N SCRUFFS.
Children and Young Peoples Services,Head of Education and Skills,Third Party Payments,440999,Other third party payments E440,14/03/2022,3978398-NEI-EXP-03-2022-037,750.00,BURNS PETCARE LTD T/A WOOFS N SCRUFFS.
Children and Young Peoples Services,Head of Education and Skills,Third Party Payments,440999,Other third party payments E440,14/03/2022,3978398-NEI-EXP-03-2022-041,716.39,BURNS PETCARE LTD T/A WOOFS N SCRUFFS.
Children and Young Peoples Services,Head of Education and Skills,Transfer Payments,510026,School Children,03/03/2022,3974924-FEBRUARY2022TOPUP,611.00,BUSY BEARS (DURHAM) LTD.
Dedicated Schools Grant BG0015,DSG Early Years Block,Transfer Payments,510030,School Children,22/03/2022,3982802-29727,703.80,BUSY BEARS (DURHAM) LTD.
Adult and Health Services,Head of Adults,Third Party Payments,478101,Purchase of Care,17/03/2022,3980383-I-22-3215701,"37,872.00",BYKARE SOLUTIONS LTD.
Children and Young Peoples Services,Head of Education and Skills,Transport,230008,Contract Hire,11/03/2022,3977933-W030028,"2,433.05",C & R TAXIS.
Children and Young Peoples Services,Head of Education and Skills,Transport,230008,Contract Hire,11/03/2022,3977933-W112031,"1,677.65",C & R TAXIS.
Children and Young Peoples Services,Head of Education and Skills,Transport,230008,Contract Hire,14/03/2022,3978399-W046028,"2,113.25",C & R TAXIS.
Children and Young Peoples Services,Head of Education and Skills,Transport,230008,Contract Hire,24/03/2022,3983627-S006028,"1,627.00",C & R TAXIS.
Resources BK0010,Legal & Democratic Services,Supplies and Services,338101,Services,02/03/2022,3974421-CKDPMSFEB2022,"4,082.40",C&K DIAGNOSTICS LTD.
Dedicated Schools Grant BG0015,DSG Schools Block,Transport,230031,Contract Hire,08/03/2022,3976613-6026/03032022,"4,620.00",CABLES TAXI CONTRACTS.
Dedicated Schools Grant BG0015,DSG Schools Block,Transport,230031,Contract Hire,15/03/2022,3979348-6041,"3,694.00",CABLES TAXI CONTRACTS.
Dedicated Schools Grant BG0015,DSG Schools Block,Transport,230031,Contract Hire,24/03/2022,3983628-6042/2,"4,330.00",CABLES TAXI CONTRACTS.
Dedicated Schools Grant BG0015,DSG Schools Block,Transport,230031,Contract Hire,29/03/2022,3985427-6043/2,"3,930.00",CABLES TAXI CONTRACTS.
Regeneration Economy and Growth,Culture Sport and Tourism,Premises,120037,Energy Costs,01/03/2022,3974079-34834046,949.76,CALOR GAS LTD.
Neighbourhoods and Climate Change,Environmental Services,Premises,120021,Energy Costs,10/03/2022,3977498-36163031,"1,025.36",CALOR GAS LTD.
Neighbourhoods and Climate Change,Environmental Services,Premises,120021,Energy Costs,10/03/2022,3977498-36667557,"1,048.76",CALOR GAS LTD.
Dedicated Schools Grant BG0015,DSG High Needs Block,Third Party Payments,425005,Rendered by Voluntary Organisations,17/03/2022,3980386-PIG_123284,"3,386.68",CAMBIAN CHILDCARE LTD T/A HARTLEPOOL SCHOOL.
Children and Young Peoples Services,Head of Childrens Social Care,Third Party Payments,425023,Rendered by Voluntary Organisations,17/03/2022,3980387-PIG_122512,"18,035.72",CAMBIAN WHINFELL SCHOOL LTD.
Adult and Health Services,Head of Adults,Supplies and Services,338366,Services,04/03/2022,3975325-81774,906.27,CARE ABILITY HEALTHCARE LTD.
Adult and Health Services,Head of Adults,Supplies and Services,338366,Services,04/03/2022,3975326-81775,"1,294.01",CARE ABILITY HEALTHCARE LTD.
Adult and Health Services,Head of Adults,Supplies and Services,338366,Services,04/03/2022,3975326-81995,"1,299.00",CARE ABILITY HEALTHCARE LTD.
Adult and Health Services,Head of Adults,Supplies and Services,338366,Services,04/03/2022,3975326-81996,852.89,CARE ABILITY HEALTHCARE LTD.
Adult and Health Services,Head of Adults,Supplies and Services,338366,Services,04/03/2022,3975326-81997,"1,170.44",CARE ABILITY HEALTHCARE LTD.
Adult and Health Services,Head of Adults,Supplies and Services,338366,Services,04/03/2022,3975326-81998,669.98,CARE ABILITY HEALTHCARE LTD.
Adult and Health Services,Head of Adults,Supplies and Services,338366,Services,04/03/2022,3975326-81999,"1,358.67",CARE ABILITY HEALTHCARE LTD.
Adult and Health Services,Head of Adults,Supplies and Services,338366,Services,04/03/2022,3975326-82126,"2,169.31",CARE ABILITY HEALTHCARE LTD.
Adult and Health Services,Head of Adults,Supplies and Services,338366,Services,04/03/2022,3975326-82127,"1,591.13",CARE ABILITY HEALTHCARE LTD.
Adult and Health Services,Head of Adults,Supplies and Services,338366,Services,04/03/2022,3975326-82128,"1,170.44",CARE ABILITY HEALTHCARE LTD.
Adult and Health Services,Head of Adults,Supplies and Services,338366,Services,04/03/2022,3975326-82129,"1,170.44",CARE ABILITY HEALTHCARE LTD.
Adult and Health Services,Head of Adults,Supplies and Services,338366,Services,04/03/2022,3975326-82130,"1,170.44",CARE ABILITY HEALTHCARE LTD.
Adult and Health Services,Head of Adults,Supplies and Services,338366,Services,04/03/2022,3975326-82131,"1,170.44",CARE ABILITY HEALTHCARE LTD.
Adult and Health Services,Head of Adults,Supplies and Services,338366,Services,04/03/2022,3975326-82132,"1,239.09",CARE ABILITY HEALTHCARE LTD.
Dedicated Schools Grant BG0015,DSG High Needs Block,Supplies and Services,304259,Equipment and Materials,15/03/2022,3979350-82525,"1,099.00",CARE ABILITY HEALTHCARE LTD.
Adult and Health Services,Head of Adults,Supplies and Services,338366,Services,18/03/2022,3981573-82425,861.71,CARE ABILITY HEALTHCARE LTD.
Adult and Health Services,Head of Adults,Supplies and Services,338366,Services,18/03/2022,3981573-82526,758.41,CARE ABILITY HEALTHCARE LTD.
Adult and Health Services,Head of Adults,Supplies and Services,338366,Services,25/03/2022,3984064-82754,"1,106.36",CARE ABILITY HEALTHCARE LTD.
Adult and Health Services,Head of Adults,Supplies and Services,338366,Services,25/03/2022,3984064-82755,647.10,CARE ABILITY HEALTHCARE LTD.
Adult and Health Services,Head of Adults,Supplies and Services,338366,Services,25/03/2022,3984064-82756,837.04,CARE ABILITY HEALTHCARE LTD.
Adult and Health Services,Head of Adults,Supplies and Services,338366,Services,25/03/2022,3984064-82757,837.04,CARE ABILITY HEALTHCARE LTD.
Adult and Health Services,Head of Adults,Supplies and Services,338366,Services,25/03/2022,3984064-82758,606.38,CARE ABILITY HEALTHCARE LTD.
Adult and Health Services,Head of Adults,Supplies and Services,338366,Services,25/03/2022,3984064-82759,657.23,CARE ABILITY HEALTHCARE LTD.
Adult and Health Services,Head of Adults,Supplies and Services,338366,Services,25/03/2022,3984064-82760,657.23,CARE ABILITY HEALTHCARE LTD.
Adult and Health Services,Head of Adults,Supplies and Services,338366,Services,25/03/2022,3984064-82761,"1,099.00",CARE ABILITY HEALTHCARE LTD.
Adult and Health Services,Head of Adults,Supplies and Services,338366,Services,25/03/2022,3984064-82762,"1,099.00",CARE ABILITY HEALTHCARE LTD.
Adult and Health Services,Head of Adults,Supplies and Services,338366,Services,25/03/2022,3984064-82771,"1,429.87",CARE ABILITY HEALTHCARE LTD.
Adult and Health Services,Head of Adults,Supplies and Services,338069,Services,21/03/2022,3981978-43074787,"11,883.00",CARE QUALITY COMMISSION.
Adult and Health Services,Head of Adults,Third Party Payments,479154,Purchase of Care,02/03/2022,3974423-OMICRONSUPPORT1/81,"3,676.32",CARE UK COMMUNITY PARTNERSHIPS LTD.
Adult and Health Services,Head of Adults,Third Party Payments,470101,Purchase of Care,17/03/2022,3980391-I-22-3215589,"2,397.36",CARE UK COMMUNITY PARTNERSHIPS LTD.
Adult and Health Services,Head of Adults,Third Party Payments,470101,Purchase of Care,17/03/2022,3980392-I-22-3215567,"46,267.93",CARE UK COMMUNITY PARTNERSHIPS LTD.
Adult and Health Services,Head of Adults,Third Party Payments,470101,Purchase of Care,17/03/2022,3980393-I-22-3215645,"5,413.68",CARE UK COMMUNITY PARTNERSHIPS LTD.
Adult and Health Services,Head of Adults,Third Party Payments,470101,Purchase of Care,17/03/2022,3980394-I-22-3215540,"60,684.39",CARE UK COMMUNITY PARTNERSHIPS LTD.
Adult and Health Services,Head of Adults,Third Party Payments,470101,Purchase of Care,17/03/2022,3980395-I-22-3215535,"2,747.20",CARE UK COMMUNITY PARTNERSHIPS LTD.
Adult and Health Services,Head of Adults,Third Party Payments,470101,Purchase of Care,17/03/2022,3980396-I-22-3215506,"2,496.00",CARE UK COMMUNITY PARTNERSHIPS LTD.
Adult and Health Services,Head of Adults,Third Party Payments,474101,Purchase of Care,17/03/2022,3980397-I-22-3215481,"1,758.40",CARE UK COMMUNITY PARTNERSHIPS LTD.
Adult and Health Services,Head of Adults,Third Party Payments,479152,Purchase of Care,11/03/2022,3977935-WORKFORCER&RFUND2/141,"4,626.00",CARE VANTAGE LTD.
Adult and Health Services,Head of Adults,Third Party Payments,472101,Purchase of Care,17/03/2022,3980398-I-22-3215827,"41,375.13",CARE VANTAGE LTD.
Adult and Health Services,Head of Adults,Supplies and Services,304259,Equipment and Materials,14/03/2022,3978401-SI-2295,"3,318.00",CAREFREE MOBILITY SERVICES LTD.
Adult and Health Services,Head of Adults,Third Party Payments,474101,Purchase of Care,17/03/2022,3980399-I-22-3215436,"8,298.76",CARELINE LIFESTYLES (UK) LTD.
Adult and Health Services,Head of Adults,Third Party Payments,474101,Purchase of Care,17/03/2022,3980400-I-22-3215463,"12,971.20",CARELINE LIFESTYLES (UK) LTD.
Adult and Health Services,Head of Adults,Third Party Payments,470101,Purchase of Care,17/03/2022,3980401-I-22-3215482,"3,676.96",CARELINE LIFESTYLES (UK) LTD.
Adult and Health Services,Head of Adults,Third Party Payments,470101,Purchase of Care,17/03/2022,3980402-I-22-3215587,"2,796.52",CARELINE LIFESTYLES (UK) LTD.
Adult and Health Services,Head of Adults,Third Party Payments,474101,Purchase of Care,17/03/2022,3980403-I-22-3215497,"22,725.56",CARELINE LIFESTYLES.
Adult and Health Services,Commissioning inc Supporting People,Third Party Payments,479111,Purchase of Care,09/03/2022,3976987-5171,"4,846.66",CARERS FEDERATION LTD.
Adult and Health Services,Commissioning inc Supporting People,Supplies and Services,372009,Subscriptions E372,04/03/2022,3975327-SIN030589,"2,250.00",CARERS UK.
Adult and Health Services,Head of Adults,Third Party Payments,479152,Purchase of Care,11/03/2022,3977936-WORKFORCER&RFUND2/111,"7,142.86",CAREWELL (HEALTH CARE) LTD.
Adult and Health Services,Head of Adults,Third Party Payments,470101,Purchase of Care,17/03/2022,3980404-I-22-3215638,"71,057.51",CAREWELL (HEALTH CARE) LTD.
Adult and Health Services,Head of Adults,Third Party Payments,479154,Purchase of Care,24/03/2022,3983630-OMICRONSUPPORT1/108,"5,365.44",CAREWELL (HEALTH CARE) LTD.
Adult and Health Services,Head of Adults,Third Party Payments,479154,Purchase of Care,25/03/2022,3984065-OMICRONSUPPORT1/126,"5,200.00",CAREWELL (HEALTH CARE) LTD.
Regeneration Economy and Growth,Corporate Property and Land,Supplies and Services,304221,Equipment and Materials,15/03/2022,3979351-10717601,"2,144.15",CARPET & FLOORING (TRADING) LTD.
Regeneration Economy and Growth,Corporate Property and Land,Supplies and Services,304221,Equipment and Materials,24/03/2022,3983631-10726598,575.94,CARPET & FLOORING (TRADING) LTD.
Regeneration Economy and Growth,Corporate Property and Land,Supplies and Services,304221,Equipment and Materials,25/03/2022,3984066-10727731,705.13,CARPET & FLOORING (TRADING) LTD.
Children and Young Peoples Services,Head of Education and Skills,Transport,230034,Contract Hire,10/03/2022,3977500-2093-FEB,"1,526.00",CARR`S CARS (TAXIS).
Neighbourhoods and Climate Change,Environmental Services,Transport,210057,Repair and Maintenance of Vehicles,11/03/2022,3977939-254623,565.55,CARRS BILLINGTON AGRICULTURE.
Neighbourhoods and Climate Change,Environmental Services,Transport,210057,Repair and Maintenance of Vehicles,11/03/2022,3977939-254624,613.71,CARRS BILLINGTON AGRICULTURE.
Neighbourhoods and Climate Change,Environmental Services,Transport,210057,Repair and Maintenance of Vehicles,11/03/2022,3977939-254629,687.96,CARRS BILLINGTON AGRICULTURE.
Neighbourhoods and Climate Change,Environmental Services,Supplies and Services,304999,Equipment and Materials,11/03/2022,3977939-562419,"3,600.00",CARRS BILLINGTON AGRICULTURE.
Neighbourhoods and Climate Change,Environmental Services,Supplies and Services,304259,Equipment and Materials,16/03/2022,3979771-426567,587.70,CARRS BILLINGTON AGRICULTURE.
Neighbourhoods and Climate Change,Technical Services CM0300,Supplies and Services,304221,Equipment and Materials,16/03/2022,3979771-426573,712.75,CARRS BILLINGTON AGRICULTURE.
Neighbourhoods and Climate Change,Environmental Services,Supplies and Services,304259,Equipment and Materials,31/03/2022,3986404-427078,540.00,CARRS BILLINGTON AGRICULTURE.
Regeneration Economy and Growth,Culture Sport and Tourism,Supplies and Services,338047,Services,30/03/2022,3985998-178856,"2,000.00",CASAROTTO RAMSAY & ASSOCIATES LTD.
Regeneration Economy and Growth,Culture Sport and Tourism,Supplies and Services,338047,Services,30/03/2022,3985998-178858,"2,110.00",CASAROTTO RAMSAY & ASSOCIATES LTD.
Regeneration Economy and Growth,Culture Sport and Tourism,Supplies and Services,338047,Services,31/03/2022,3986405-178857,"2,000.00",CASAROTTO RAMSAY & ASSOCIATES LTD.
Neighbourhoods and Climate Change,Partnerships & Community Engagement Div.,Supplies and Services,384086,Miscellaneous Expenses,09/03/2022,3976992-VOUCHERBLAJ05-21,999.00,CASSOP COMMUNITY CENTRE.
Neighbourhoods and Climate Change,Partnerships & Community Engagement Div.,Cap Exp on Grants & Other Financial Assistance (REFCUS),918004,Contributions to other bodies 918004,24/03/2022,3983634-VOUCHER21NB-EDRC006,"4,000.00",CASSOP COMMUNITY CENTRE.
Adult and Health Services,Head of Adults,Third Party Payments,472101,Purchase of Care,17/03/2022,3980410-I-22-3215743,"29,559.55",CASTLE CARE TEESDALE LTD.
Regeneration Economy and Growth,Corporate Property and Land,Supplies and Services,384199,Miscellaneous Expenses,15/03/2022,3979353-1013,"1,295.00",CASTLE KEEP SURVEYS LTD.
Regeneration Economy and Growth,Corporate Property and Land,Supplies and Services,384199,Miscellaneous Expenses,25/03/2022,3984071-1044,"1,895.00",CASTLE KEEP SURVEYS LTD.
Dedicated Schools Grant BG0015,DSG Early Years Block,Transfer Payments,510032,School Children,22/03/2022,3982804-29694,710.10,CASTLE KINDERGARTEN LTD.
Dedicated Schools Grant BG0015,DSG Early Years Block,Transfer Payments,510030,School Children,22/03/2022,3982804-29728,"1,243.50",CASTLE KINDERGARTEN LTD.
Children and Young Peoples Services,Head of Childrens Social Care,Third Party Payments,440046,Other third party payments E440,08/03/2022,3976618-21523,"6,720.00",CASTLE VIEW GROUP TRAINING.
Children and Young Peoples Services,Head of Childrens Social Care,Third Party Payments,440046,Other third party payments E440,08/03/2022,3976618-21574,"5,860.00",CASTLE VIEW GROUP TRAINING.
Children and Young Peoples Services,Head of Childrens Social Care,Third Party Payments,440046,Other third party payments E440,08/03/2022,3976618-21575,"6,720.00",CASTLE VIEW GROUP TRAINING.
Children and Young Peoples Services,Head of Childrens Social Care,Third Party Payments,440046,Other third party payments E440,09/03/2022,3976993-21518,"4,340.19",CASTLE VIEW GROUP TRAINING.
Children and Young Peoples Services,Head of Childrens Social Care,Third Party Payments,440046,Other third party payments E440,09/03/2022,3976993-21519,"5,843.40",CASTLE VIEW GROUP TRAINING.
Children and Young Peoples Services,Head of Childrens Social Care,Third Party Payments,440046,Other third party payments E440,09/03/2022,3976993-21520,"9,539.24",CASTLE VIEW GROUP TRAINING.
Children and Young Peoples Services,Head of Childrens Social Care,Third Party Payments,440046,Other third party payments E440,09/03/2022,3976993-21521,"5,470.00",CASTLE VIEW GROUP TRAINING.
Children and Young Peoples Services,Head of Childrens Social Care,Third Party Payments,440046,Other third party payments E440,09/03/2022,3976993-21522,"10,320.23",CASTLE VIEW GROUP TRAINING.
Children and Young Peoples Services,Head of Childrens Social Care,Third Party Payments,440046,Other third party payments E440,09/03/2022,3976993-21570,"1,073.00",CASTLE VIEW GROUP TRAINING.
Children and Young Peoples Services,Head of Childrens Social Care,Third Party Payments,440046,Other third party payments E440,09/03/2022,3976993-21571,"7,256.00",CASTLE VIEW GROUP TRAINING.
Children and Young Peoples Services,Head of Childrens Social Care,Third Party Payments,440046,Other third party payments E440,09/03/2022,3976993-21572,"9,001.95",CASTLE VIEW GROUP TRAINING.
Children and Young Peoples Services,Head of Childrens Social Care,Third Party Payments,440046,Other third party payments E440,09/03/2022,3976993-21573,"7,316.00",CASTLE VIEW GROUP TRAINING.
Children and Young Peoples Services,Head of Childrens Social Care,Third Party Payments,440046,Other third party payments E440,24/03/2022,3983635-21770,"5,746.60",CASTLE VIEW GROUP TRAINING.
Children and Young Peoples Services,Head of Childrens Social Care,Third Party Payments,440046,Other third party payments E440,24/03/2022,3983635-21772,"4,020.00",CASTLE VIEW GROUP TRAINING.
Children and Young Peoples Services,Head of Childrens Social Care,Third Party Payments,440046,Other third party payments E440,24/03/2022,3983635-21774,"1,680.00",CASTLE VIEW GROUP TRAINING.
Children and Young Peoples Services,Head of Childrens Social Care,Third Party Payments,440046,Other third party payments E440,24/03/2022,3983635-21776,"2,520.00",CASTLE VIEW GROUP TRAINING.
Children and Young Peoples Services,Head of Childrens Social Care,Third Party Payments,440046,Other third party payments E440,24/03/2022,3983635-21779,"6,805.00",CASTLE VIEW GROUP TRAINING.
Children and Young Peoples Services,Head of Childrens Social Care,Third Party Payments,440046,Other third party payments E440,24/03/2022,3983635-21781,"10,100.00",CASTLE VIEW GROUP TRAINING.
Children and Young Peoples Services,Head of Childrens Social Care,Third Party Payments,440046,Other third party payments E440,24/03/2022,3983635-21784,"8,100.00",CASTLE VIEW GROUP TRAINING.
Children and Young Peoples Services,Head of Childrens Social Care,Third Party Payments,440046,Other third party payments E440,24/03/2022,3983635-21786,"2,470.00",CASTLE VIEW GROUP TRAINING.
Children and Young Peoples Services,Head of Childrens Social Care,Third Party Payments,440046,Other third party payments E440,24/03/2022,3983635-21787,"6,720.00",CASTLE VIEW GROUP TRAINING.
Children and Young Peoples Services,Head of Childrens Social Care,Third Party Payments,440046,Other third party payments E440,24/03/2022,3983635-21824,"4,180.00",CASTLE VIEW GROUP TRAINING.
Children and Young Peoples Services,Head of Childrens Social Care,Third Party Payments,440046,Other third party payments E440,24/03/2022,3983635-21826,"6,480.00",CASTLE VIEW GROUP TRAINING.
Children and Young Peoples Services,Head of Childrens Social Care,Third Party Payments,440046,Other third party payments E440,24/03/2022,3983635-21828,"8,580.00",CASTLE VIEW GROUP TRAINING.
Children and Young Peoples Services,Head of Childrens Social Care,Third Party Payments,440046,Other third party payments E440,24/03/2022,3983635-21830,"9,075.00",CASTLE VIEW GROUP TRAINING.
Children and Young Peoples Services,Head of Childrens Social Care,Third Party Payments,440046,Other third party payments E440,24/03/2022,3983635-21832,"7,000.00",CASTLE VIEW GROUP TRAINING.
Children and Young Peoples Services,Head of Childrens Social Care,Third Party Payments,440046,Other third party payments E440,24/03/2022,3983635-21834,"6,720.00",CASTLE VIEW GROUP TRAINING.
Children and Young Peoples Services,Head of Childrens Social Care,Third Party Payments,440046,Other third party payments E440,24/03/2022,3983635-21879,"1,265.00",CASTLE VIEW GROUP TRAINING.
Children and Young Peoples Services,Head of Childrens Social Care,Third Party Payments,440046,Other third party payments E440,24/03/2022,3983635-21880,"4,120.00",CASTLE VIEW GROUP TRAINING.
Children and Young Peoples Services,Head of Childrens Social Care,Third Party Payments,440046,Other third party payments E440,24/03/2022,3983635-21882,720.00,CASTLE VIEW GROUP TRAINING.
Children and Young Peoples Services,Head of Childrens Social Care,Third Party Payments,440046,Other third party payments E440,24/03/2022,3983635-21884,"6,960.00",CASTLE VIEW GROUP TRAINING.
Children and Young Peoples Services,Head of Childrens Social Care,Third Party Payments,440046,Other third party payments E440,24/03/2022,3983635-21886,"5,150.00",CASTLE VIEW GROUP TRAINING.
Children and Young Peoples Services,Head of Childrens Social Care,Third Party Payments,440046,Other third party payments E440,24/03/2022,3983635-21888,"7,575.00",CASTLE VIEW GROUP TRAINING.
Children and Young Peoples Services,Head of Childrens Social Care,Third Party Payments,440046,Other third party payments E440,24/03/2022,3983635-21890,"2,770.00",CASTLE VIEW GROUP TRAINING.
Children and Young Peoples Services,Head of Childrens Social Care,Third Party Payments,440046,Other third party payments E440,24/03/2022,3983635-21894,"6,720.00",CASTLE VIEW GROUP TRAINING.
Children and Young Peoples Services,Head of Childrens Social Care,Third Party Payments,440046,Other third party payments E440,28/03/2022,3984552-21626,"4,684.00",CASTLE VIEW GROUP TRAINING.
Children and Young Peoples Services,Head of Childrens Social Care,Third Party Payments,440046,Other third party payments E440,28/03/2022,3984552-21628,"9,795.00",CASTLE VIEW GROUP TRAINING.
Children and Young Peoples Services,Head of Childrens Social Care,Third Party Payments,440046,Other third party payments E440,28/03/2022,3984552-21629,"10,505.90",CASTLE VIEW GROUP TRAINING.
Children and Young Peoples Services,Head of Childrens Social Care,Third Party Payments,440046,Other third party payments E440,28/03/2022,3984552-21630,"10,098.00",CASTLE VIEW GROUP TRAINING.
Children and Young Peoples Services,Head of Childrens Social Care,Third Party Payments,440046,Other third party payments E440,28/03/2022,3984552-21631,"6,720.00",CASTLE VIEW GROUP TRAINING.
Children and Young Peoples Services,Head of Childrens Social Care,Third Party Payments,440046,Other third party payments E440,28/03/2022,3984552-21674,"7,040.00",CASTLE VIEW GROUP TRAINING.
Children and Young Peoples Services,Head of Childrens Social Care,Third Party Payments,440046,Other third party payments E440,28/03/2022,3984552-21675,"5,746.15",CASTLE VIEW GROUP TRAINING.
Children and Young Peoples Services,Head of Childrens Social Care,Third Party Payments,440046,Other third party payments E440,28/03/2022,3984552-21676,"7,600.15",CASTLE VIEW GROUP TRAINING.
Children and Young Peoples Services,Head of Childrens Social Care,Third Party Payments,440046,Other third party payments E440,28/03/2022,3984552-21677,"8,109.00",CASTLE VIEW GROUP TRAINING.
Children and Young Peoples Services,Head of Childrens Social Care,Third Party Payments,440046,Other third party payments E440,28/03/2022,3984552-21678,"3,930.00",CASTLE VIEW GROUP TRAINING.
Children and Young Peoples Services,Head of Childrens Social Care,Third Party Payments,440046,Other third party payments E440,28/03/2022,3984552-21679,"10,479.30",CASTLE VIEW GROUP TRAINING.
Children and Young Peoples Services,Head of Childrens Social Care,Third Party Payments,440046,Other third party payments E440,28/03/2022,3984552-21680,"6,720.00",CASTLE VIEW GROUP TRAINING.
Children and Young Peoples Services,Head of Childrens Social Care,Third Party Payments,440046,Other third party payments E440,28/03/2022,3984552-21722,"6,225.04",CASTLE VIEW GROUP TRAINING.
Children and Young Peoples Services,Head of Childrens Social Care,Third Party Payments,440046,Other third party payments E440,28/03/2022,3984552-21724,"1,100.00",CASTLE VIEW GROUP TRAINING.
Children and Young Peoples Services,Head of Childrens Social Care,Third Party Payments,440046,Other third party payments E440,28/03/2022,3984552-21726,740.00,CASTLE VIEW GROUP TRAINING.
Children and Young Peoples Services,Head of Childrens Social Care,Third Party Payments,440046,Other third party payments E440,28/03/2022,3984552-21729,"8,117.10",CASTLE VIEW GROUP TRAINING.
Children and Young Peoples Services,Head of Childrens Social Care,Third Party Payments,440046,Other third party payments E440,28/03/2022,3984552-21730,"6,720.00",CASTLE VIEW GROUP TRAINING.
Children and Young Peoples Services,Head of Childrens Social Care,Third Party Payments,440046,Other third party payments E440,28/03/2022,3984552-21917,"6,740.00",CASTLE VIEW GROUP TRAINING.
Children and Young Peoples Services,Head of Childrens Social Care,Third Party Payments,440046,Other third party payments E440,28/03/2022,3984552-21922,"11,700.00",CASTLE VIEW GROUP TRAINING.
Children and Young Peoples Services,Head of Childrens Social Care,Third Party Payments,440046,Other third party payments E440,28/03/2022,3984552-21926,530.00,CASTLE VIEW GROUP TRAINING.
Children and Young Peoples Services,Head of Childrens Social Care,Third Party Payments,440046,Other third party payments E440,28/03/2022,3984552-21927,"5,040.00",CASTLE VIEW GROUP TRAINING.
Children and Young Peoples Services,Head of Childrens Social Care,Third Party Payments,440046,Other third party payments E440,28/03/2022,3984552-21928,"6,720.00",CASTLE VIEW GROUP TRAINING.
Children and Young Peoples Services,Head of Childrens Social Care,Third Party Payments,440046,Other third party payments E440,29/03/2022,3985433-21627,"5,565.00",CASTLE VIEW GROUP TRAINING.
Children and Young Peoples Services,Head of Childrens Social Care,Third Party Payments,440046,Other third party payments E440,29/03/2022,3985433-21723,"3,262.70",CASTLE VIEW GROUP TRAINING.
Children and Young Peoples Services,Head of Childrens Social Care,Third Party Payments,440046,Other third party payments E440,29/03/2022,3985433-21725,"6,614.32",CASTLE VIEW GROUP TRAINING.
Children and Young Peoples Services,Head of Childrens Social Care,Third Party Payments,440046,Other third party payments E440,29/03/2022,3985433-21727,"9,340.04",CASTLE VIEW GROUP TRAINING.
Children and Young Peoples Services,Head of Childrens Social Care,Third Party Payments,440046,Other third party payments E440,29/03/2022,3985433-21728,"4,500.97",CASTLE VIEW GROUP TRAINING.
Adult and Health Services,Head of Adults,Third Party Payments,479154,Purchase of Care,08/03/2022,3976619-OMICRONSUPPORT1/45,"2,782.08",CASTLEBANK CARE HOME LTD.
Adult and Health Services,Head of Adults,Third Party Payments,479152,Purchase of Care,08/03/2022,3976619-WORKFORCER&RFUND2/64,"21,000.00",CASTLEBANK CARE HOME LTD.
Adult and Health Services,Head of Adults,Third Party Payments,470101,Purchase of Care,17/03/2022,3980411-I-22-3135370,"22,208.76",CASTLEBANK CARE HOME LTD.
Adult and Health Services,Head of Adults,Third Party Payments,470101,Purchase of Care,17/03/2022,3980411-I-22-3215424,"19,931.16",CASTLEBANK CARE HOME LTD.
Adult and Health Services,Head of Adults,Third Party Payments,473101,Purchase of Care,17/03/2022,3980412-I-22-3215763,"2,708.58",CATCOTE FUTURES.
Regeneration Economy and Growth,Corporate Property and Land,Third Party Payments,430100,Rendered by Private Contractors,01/03/2022,3974082-9080-2022,924.00,CATHEDRAL LOCK & SAFE SERVICES LTD.
Regeneration Economy and Growth,Corporate Property and Land,Third Party Payments,430100,Rendered by Private Contractors,01/03/2022,3974082-9112,"13,391.00",CATHEDRAL LOCK & SAFE SERVICES LTD.
Regeneration Economy and Growth,Corporate Property and Land,Third Party Payments,430100,Rendered by Private Contractors,01/03/2022,3974082-9134-2022,"1,441.65",CATHEDRAL LOCK & SAFE SERVICES LTD.
Regeneration Economy and Growth,Corporate Property and Land,Third Party Payments,430100,Rendered by Private Contractors,01/03/2022,3974082-9163,575.40,CATHEDRAL LOCK & SAFE SERVICES LTD.
Regeneration Economy and Growth,Business Durham CL0850,Premises,106082,Centrally Controlled Rep and Maint,04/03/2022,3975330-9081,"2,866.75",CATHEDRAL LOCK & SAFE SERVICES LTD.
Children and Young Peoples Services,Head of Childrens Social Care,Premises,106082,Centrally Controlled Rep and Maint,04/03/2022,3975330-9189,"1,023.50",CATHEDRAL LOCK & SAFE SERVICES LTD.
Regeneration Economy and Growth,Corporate Property and Land,Third Party Payments,430100,Rendered by Private Contractors,11/03/2022,3977940-8905,"12,456.57",CATHEDRAL LOCK & SAFE SERVICES LTD.
Regeneration Economy and Growth,Corporate Property and Land,Third Party Payments,430100,Rendered by Private Contractors,16/03/2022,3979772-9113,"1,836.33",CATHEDRAL LOCK & SAFE SERVICES LTD.
Regeneration Economy and Growth,Business Durham CL0850,Supplies and Services,338099,Services,18/03/2022,3981576-9152,"1,167.67",CATHEDRAL LOCK & SAFE SERVICES LTD.
Regeneration Economy and Growth,Culture Sport and Tourism,Premises,106082,Centrally Controlled Rep and Maint,18/03/2022,3981576-9243,"1,475.71",CATHEDRAL LOCK & SAFE SERVICES LTD.
Regeneration Economy and Growth,Business Durham CL0850,Supplies and Services,338099,Services,18/03/2022,3981576-9289,"1,020.00",CATHEDRAL LOCK & SAFE SERVICES LTD.
Regeneration Economy and Growth,Corporate Property and Land,Third Party Payments,430100,Rendered by Private Contractors,24/03/2022,3983636-9315,548.63,CATHEDRAL LOCK & SAFE SERVICES LTD.
Regeneration Economy and Growth,Corporate Property and Land,Third Party Payments,430100,Rendered by Private Contractors,30/03/2022,3985999-9338,"3,912.29",CATHEDRAL LOCK & SAFE SERVICES LTD.
Children and Young Peoples Services,Head of Education and Skills,Premises,108099,Service Repairs and Maintenance,31/03/2022,3986407-9251,576.43,CATHEDRAL LOCK & SAFE SERVICES LTD.
Regeneration Economy and Growth,Culture Sport and Tourism,Supplies and Services,384302,Miscellaneous Expenses,11/03/2022,3977941-447,"1,000.00",CATHERINE BERTOLA.
Regeneration Economy and Growth,Culture Sport and Tourism,Supplies and Services,384302,Miscellaneous Expenses,29/03/2022,3985436-448,"2,400.00",CATHERINE BERTOLA.
Children and Young Peoples Services,Head of Education and Skills,Supplies and Services,338027,Services,31/03/2022,3986408-NCTP22001-5,"3,846.90",CATHERINE BUTT (SWIM ENGLAND TUTOR).
Regeneration Economy and Growth,Business Durham CL0850,Supplies and Services,338066,Services,09/03/2022,3976996-08032022,"24,952.50",CDC ENTERPRISE AGENCY LTD.
Regeneration Economy and Growth,Development and Housing,Supplies and Services,338094,Services,09/03/2022,3976996-401,"1,515.54",CDC ENTERPRISE AGENCY LTD.
Regeneration Economy and Growth,Development and Housing,Supplies and Services,338094,Services,09/03/2022,3976996-402,757.77,CDC ENTERPRISE AGENCY LTD.
Regeneration Economy and Growth,Corporate Property and Land,Third Party Payments,430100,Rendered by Private Contractors,11/03/2022,3977942-662,"1,104.40",CEILINGS DIRECT LTD.
Regeneration Economy and Growth,Corporate Property and Land,Third Party Payments,430100,Rendered by Private Contractors,15/03/2022,3979356-665,722.80,CEILINGS DIRECT LTD.
Regeneration Economy and Growth,Corporate Property and Land,Third Party Payments,430100,Rendered by Private Contractors,21/03/2022,3981982-661,"5,146.01",CEILINGS DIRECT LTD.
Regeneration Economy and Growth,Corporate Property and Land,Third Party Payments,430100,Rendered by Private Contractors,24/03/2022,3983638-668,523.25,CEILINGS DIRECT LTD.
Regeneration Economy and Growth,Corporate Property and Land,Third Party Payments,430100,Rendered by Private Contractors,30/03/2022,3986000-671,"1,809.28",CEILINGS DIRECT LTD.
Regeneration Economy and Growth,Corporate Property and Land,Supplies and Services,304221,Equipment and Materials,30/03/2022,3986000-675,555.60,CEILINGS DIRECT LTD.
Adult and Health Services,Head of Adults,Third Party Payments,479152,Purchase of Care,11/03/2022,3977943-WORKFORCER&RFUND2/151,"7,320.00",CEL HOMECARE LTD.
Adult and Health Services,Head of Adults,Third Party Payments,472101,Purchase of Care,17/03/2022,3980415-I-22-3215689,"1,840.86",CEL HOMECARE LTD.
Neighbourhoods and Climate Change,Environmental Services,Supplies and Services,384700,Miscellaneous Expenses,24/03/2022,3983640-RED-03-2022-223,"7,271.44",REDACTED - PAYMENT TO INDIVIDUAL
Adult and Health Services,Public Health CC0450,Third Party Payments,460803,Contract Payments,01/03/2022,3974083-DVQC/00000234,730.00,CENTRECHEM DISPENSING CHEMIST.
Regeneration Economy and Growth,Culture Sport and Tourism,Premises,106080,Centrally Controlled Rep and Maint,11/03/2022,3977945-22500789,974.29,CENTRICA BUSINESS SOLUTIONS UK LTD.*
Regeneration Economy and Growth,Culture Sport and Tourism,Premises,106082,Centrally Controlled Rep and Maint,11/03/2022,3977945-22500790,786.17,CENTRICA BUSINESS SOLUTIONS UK LTD.*
Neighbourhoods and Climate Change,Environmental Services,Supplies and Services,304337,Equipment and Materials,04/03/2022,3975332-6941831,677.04,CERTAS ENERGY UK LTD.
Resources BK0010,Finance & Transactional Services,Supplies and Services,304040,Equipment and Materials,24/03/2022,3983643-CS65820701,"3,797.50",CFH TOTAL DOCUMENT MANAGEMENT LTD.
Resources BK0010,Finance & Transactional Services,Supplies and Services,304040,Equipment and Materials,31/03/2022,3986411-065227,"79,588.44",CFH TOTAL DOCUMENT MANAGEMENT LTD.
Resources BK0010,Finance & Transactional Services,Supplies and Services,304040,Equipment and Materials,31/03/2022,3986411-065406,"19,468.04",CFH TOTAL DOCUMENT MANAGEMENT LTD.
Resources BK0010,Finance & Transactional Services,Supplies and Services,304040,Equipment and Materials,31/03/2022,3986411-CS65820801,"7,451.10",CFH TOTAL DOCUMENT MANAGEMENT LTD.
Resources BK0010,Finance & Transactional Services,Supplies and Services,304040,Equipment and Materials,31/03/2022,3986411-CS65820901,"1,804.80",CFH TOTAL DOCUMENT MANAGEMENT LTD.
Neighbourhoods and Climate Change,Technical Services CM0300,Supplies and Services,304358,Equipment and Materials,21/03/2022,3981985-1850,"4,291.40",CG SIMPSON & SON.
Neighbourhoods and Climate Change,Technical Services CM0300,Supplies and Services,304358,Equipment and Materials,31/03/2022,3986412-1855,"4,291.28",CG SIMPSON & SON.
Regeneration Economy and Growth,Transport and Contracted Services,Supplies and Services,336005,Advertising E336,02/03/2022,3974431-INV-1152,"6,500.00",CHALLENGE FOR CHANGE LTD T/A LOVE TO RIDE.
Children and Young Peoples Services,Head of Childrens Social Care,Third Party Payments,425040,Rendered by Voluntary Organisations,17/03/2022,3980417-PIG_122525,"11,289.84",CHANGING FUTURES FOSTERING.
Children and Young Peoples Services,Head of Education and Skills,Third Party Payments,440999,Other third party payments E440,08/03/2022,3976621-KICKSTART-SALARY3,"1,010.75",CHANGING RELATIONS CIC.
Regeneration Economy and Growth,Culture Sport and Tourism,Supplies and Services,384199,Miscellaneous Expenses,01/03/2022,3974084-INV-0726,"3,000.00",CHANNELL EVENTS LTD.
Children and Young Peoples Services,Head of Education and Skills,Transport,230008,Contract Hire,02/03/2022,3974432-071,"2,006.10",CHANNER`S CABS.
Children and Young Peoples Services,Head of Early Help Inclusion & Vulnerable Children.,Third Party Payments,486180,Service level agreements E486,22/03/2022,3982806-4/21,"3,700.00",CHAPEL MEDIATION & CONSULTANCY SERVICES.
Children and Young Peoples Services,Head of Early Help Inclusion & Vulnerable Children.,Third Party Payments,486180,Service level agreements E486,22/03/2022,3982806-RF/22,"5,000.00",CHAPEL MEDIATION & CONSULTANCY SERVICES.
Children and Young Peoples Services,Head of Education and Skills,Transport,230006,Contract Hire,04/03/2022,3975333-05-F125,976.00,CHAPMAN TRAVEL.
Children and Young Peoples Services,Head of Education and Skills,Transport,230035,Contract Hire,04/03/2022,3975333-05-FEB22,"1,465.20",CHAPMAN TRAVEL.
Children and Young Peoples Services,Head of Education and Skills,Transport,230007,Contract Hire,11/03/2022,3977948-14FEB22,831.85,CHAPMAN TRAVEL.
Adult and Health Services,Head of Adults,Third Party Payments,473101,Purchase of Care,17/03/2022,3980418-I-21-2836372,"1,035.23",CHARITY REGISTERED AS ONE TO ONE.
Adult and Health Services,Head of Adults,Third Party Payments,473101,Purchase of Care,17/03/2022,3980418-I-22-2975381,666.54,CHARITY REGISTERED AS ONE TO ONE.
Neighbourhoods and Climate Change,Environmental Services,Transport,210057,Repair and Maintenance of Vehicles,22/03/2022,3982808-737011,"1,174.45",CHATFIELDS T/A EVANS HALSHAW.
Neighbourhoods and Climate Change,Environmental Services,Transport,210057,Repair and Maintenance of Vehicles,31/03/2022,3986414-424108,674.86,CHATFIELDS T/A EVANS HALSHAW.
Adult and Health Services,Public Health CC0450,Third Party Payments,460802,Contract Payments,01/03/2022,3974087-N0007046,508.53,CHELSEA & WESTMINSTER HOSPITAL NHS FOUNDATION TRUST.
Adult and Health Services,Public Health CC0450,Third Party Payments,460802,Contract Payments,01/03/2022,3974087-N0008837-A,678.04,CHELSEA & WESTMINSTER HOSPITAL NHS FOUNDATION TRUST.
Adult and Health Services,Public Health CC0450,Third Party Payments,460802,Contract Payments,01/03/2022,3974087-N0015685,847.55,CHELSEA & WESTMINSTER HOSPITAL NHS FOUNDATION TRUST.
Adult and Health Services,Public Health CC0450,Third Party Payments,460802,Contract Payments,01/03/2022,3974087-N0016650-A,952.06,CHELSEA & WESTMINSTER HOSPITAL NHS FOUNDATION TRUST.
Adult and Health Services,Public Health CC0450,Third Party Payments,460802,Contract Payments,01/03/2022,3974087-N0018074-A,678.04,CHELSEA & WESTMINSTER HOSPITAL NHS FOUNDATION TRUST.
Adult and Health Services,Public Health CC0450,Third Party Payments,460802,Contract Payments,01/03/2022,3974087-N0018939,508.53,CHELSEA & WESTMINSTER HOSPITAL NHS FOUNDATION TRUST.
Neighbourhoods and Climate Change,Environmental Services,Transport,215012,Running Costs of Vehicles,07/03/2022,3975703-196426,941.50,CHEVIN FLEET SOLUTIONS LTD.
Neighbourhoods and Climate Change,Environmental Services,Transport,215995,Running Costs of Vehicles,11/03/2022,3977953-196440,933.31,CHEVIN FLEET SOLUTIONS LTD.
Children and Young Peoples Services,Head of Education and Skills,Transport,230034,Contract Hire,04/03/2022,3975336-1714,"1,170.00",CHEVRON TAXIS LTD.
Children and Young Peoples Services,Head of Education and Skills,Transport,230007,Contract Hire,04/03/2022,3975336-1715,"1,020.00",CHEVRON TAXIS LTD.
Children and Young Peoples Services,Head of Education and Skills,Transport,230009,Contract Hire,04/03/2022,3975336-1716,"1,215.00",CHEVRON TAXIS LTD.
Children and Young Peoples Services,Head of Education and Skills,Transport,230008,Contract Hire,04/03/2022,3975336-1717,986.00,CHEVRON TAXIS LTD.
Children and Young Peoples Services,Head of Education and Skills,Transport,230006,Contract Hire,04/03/2022,3975336-1718,864.00,CHEVRON TAXIS LTD.
Children and Young Peoples Services,Head of Education and Skills,Transport,230006,Contract Hire,04/03/2022,3975336-1719,738.00,CHEVRON TAXIS LTD.
Children and Young Peoples Services,Head of Education and Skills,Transport,230006,Contract Hire,11/03/2022,3977954-1724,774.00,CHEVRON TAXIS LTD.
Children and Young Peoples Services,Head of Education and Skills,Transport,230006,Contract Hire,11/03/2022,3977954-1729,"1,179.00",CHEVRON TAXIS LTD.
Children and Young Peoples Services,Head of Education and Skills,Transport,230006,Contract Hire,15/03/2022,3979358-1607,"1,192.00",CHEVRON TAXIS LTD.
Children and Young Peoples Services,Head of Education and Skills,Transport,230006,Contract Hire,15/03/2022,3979358-1634,"1,000.80",CHEVRON TAXIS LTD.
Children and Young Peoples Services,Head of Education and Skills,Transport,230008,Contract Hire,18/03/2022,3981580-1728,"1,484.00",CHEVRON TAXIS LTD.
Neighbourhoods and Climate Change,Partnerships & Community Engagement Div.,Cap Exp on Grants & Other Financial Assistance (REFCUS),918004,Contributions to other bodies 918004,28/03/2022,3984559-VOUCHER21AB-SPEN007,"6,213.00",CHI TAEKWONDO LANCHESTER.
Adult and Health Services,Commissioning inc Supporting People,Third Party Payments,479102,Purchase of Care,21/03/2022,3981987-YJ/4448,616.21,CHILD ACTION NORTHWEST.
Adult and Health Services,Commissioning inc Supporting People,Third Party Payments,479102,Purchase of Care,23/03/2022,3983219-YJ/4409,"3,822.97",CHILD ACTION NORTHWEST.
Adult and Health Services,Commissioning inc Supporting People,Third Party Payments,479102,Purchase of Care,23/03/2022,3983219-YJ/4558,"1,810.89",CHILD ACTION NORTHWEST.
Adult and Health Services,Commissioning inc Supporting People,Third Party Payments,479102,Purchase of Care,24/03/2022,3983646-YJ/4485,823.71,CHILD ACTION NORTHWEST.
Adult and Health Services,Commissioning inc Supporting People,Third Party Payments,479102,Purchase of Care,29/03/2022,3985439-YJ/4484,"4,137.35",CHILD ACTION NORTHWEST.
Adult and Health Services,Commissioning inc Supporting People,Third Party Payments,479102,Purchase of Care,29/03/2022,3985439-YJ/4522,"1,829.74",CHILD ACTION NORTHWEST.
Children and Young Peoples Services,Head of Childrens Social Care,Supplies and Services,384500,Miscellaneous Expenses,15/03/2022,3979359-SI-22002,"1,400.00",CHILD PSYCHIATRY LLP.
Children and Young Peoples Services,Head of Childrens Social Care,Third Party Payments,425040,Rendered by Voluntary Organisations,17/03/2022,3980424-PIG_123305,"43,097.48",CHILDRENS FAMILY TRUST.
Adult and Health Services,Public Health CC0450,Third Party Payments,460803,Contract Payments,01/03/2022,3974088-DYJV/00000310NRT,595.16,CHILTON CHEMISTS LTD.*
Adult and Health Services,Public Health CC0450,Third Party Payments,460803,Contract Payments,30/03/2022,3986004-DYJV/00000314NRT,592.88,CHILTON CHEMISTS LTD.*
Children and Young Peoples Services,Head of Education and Skills,Transport,230009,Contract Hire,04/03/2022,3975337-NF02,658.20,CHIPPERS TAXIS.
Children and Young Peoples Services,Head of Education and Skills,Transport,230008,Contract Hire,11/03/2022,3977955-SW6FEB22,"1,519.64",CHIPPERS TAXIS.
Children and Young Peoples Services,Head of Education and Skills,Transport,230008,Contract Hire,21/03/2022,3981988-CW28,"1,964.43",CHIPPERS TAXIS.
Neighbourhoods and Climate Change,Environmental Services,Supplies and Services,338066,Services,10/03/2022,3977509-BURSARYMAR22,695.62,REDACTED - PAYMENT TO INDIVIDUAL
Children and Young Peoples Services,Childrens Services Operational Support,Supplies and Services,338026,Services,11/03/2022,3977956-RT149,"1,881.25",CHOICES & VOICES CARE LTD.
Children and Young Peoples Services,Childrens Services Operational Support,Supplies and Services,338026,Services,22/03/2022,3982809-SH81,595.00,CHOICES & VOICES CARE LTD.
Children and Young Peoples Services,Childrens Services Operational Support,Supplies and Services,338026,Services,23/03/2022,3983221-INVESTIQATION,"2,651.25",CHOICES & VOICES CARE LTD.
Dedicated Schools Grant BG0015,DSG Schools Block,Transport,230031,Contract Hire,03/03/2022,3974931-59,"1,570.00",REDACTED - PAYMENT TO INDIVIDUAL
Children and Young Peoples Services,Head of Childrens Social Care,Supplies and Services,384500,Miscellaneous Expenses,11/03/2022,3977958-INV-4932,546.00,CHROMA THERAPIES LTD.
Children and Young Peoples Services,Head of Childrens Social Care,Supplies and Services,384500,Miscellaneous Expenses,15/03/2022,3979360-INV-4930,507.00,CHROMA THERAPIES LTD.
Neighbourhoods and Climate Change,Environmental Services,Supplies and Services,384700,Miscellaneous Expenses,15/03/2022,3979361-RED-03-2022-120,"6,117.40",CHURCHLANDS FARM.
Regeneration Economy and Growth,Corporate Property and Land,Supplies and Services,304221,Equipment and Materials,29/03/2022,3985441-SI22UK00603,640.00,CIBES LIFT UK LTD.
Neighbourhoods and Climate Change,Community Protection,Supplies and Services,304999,Equipment and Materials,08/03/2022,3976624-72767,"10,000.00",CIRRUS RESEARCH PLC.
Resources BK0010,Finance & Transactional Services,Premises,150005,Apportioned Exps of Operational Blds,24/03/2022,3983648-CACD735,"17,857.00",CITIZENS ADVICE COUNTY DURHAM.
Regeneration Economy and Growth,Culture Sport and Tourism,Premises,145023,Cleaning and Domestic Supplies,02/03/2022,3974436-CN30155945,"2,266.68",CITRON HYGIENE UK LTD.
Children and Young Peoples Services,Head of Early Help Inclusion & Vulnerable Children.,Premises,145009,Cleaning and Domestic Supplies,03/03/2022,3974933-CN30158063,922.92,CITRON HYGIENE UK LTD.
Neighbourhoods and Climate Change,Environmental Services,Third Party Payments,430100,Rendered by Private Contractors,04/03/2022,3975340-CN30149611,591.78,CITRON HYGIENE UK LTD.
Adult and Health Services,Head of Adults,Supplies and Services,304259,Equipment and Materials,08/03/2022,3976625-CN30155944,"1,077.96",CITRON HYGIENE UK LTD.
Regeneration Economy and Growth,Business Durham CL0850,Supplies and Services,384999,Miscellaneous Expenses,23/03/2022,3983223-CN30144223,575.04,CITRON HYGIENE UK LTD.
Regeneration Economy and Growth,Culture Sport and Tourism,Supplies and Services,304259,Equipment and Materials,23/03/2022,3983223-CN30148891,"1,054.02",CITRON HYGIENE UK LTD.
Regeneration Economy and Growth,Culture Sport and Tourism,Premises,145023,Cleaning and Domestic Supplies,28/03/2022,3984561-CN30156126,521.16,CITRON HYGIENE UK LTD.
Neighbourhoods and Climate Change,Environmental Services,Third Party Payments,430100,Rendered by Private Contractors,29/03/2022,3985442-CN30144236,591.78,CITRON HYGIENE UK LTD.
Regeneration Economy and Growth,Culture Sport and Tourism,Supplies and Services,304259,Equipment and Materials,31/03/2022,3986418-CN30144227,"1,054.02",CITRON HYGIENE UK LTD.
Children and Young Peoples Services,Head of Education and Skills,Supplies and Services,338035,Services,22/03/2022,3982812-805937204,710.00,CITY & GUILDS OF LONDON INSTITUTE.
Regeneration Economy and Growth,Corporate Property and Land,Supplies and Services,304221,Equipment and Materials,15/03/2022,3979364-2852ABM268,"1,034.46",CITY PLUMBING SUPPLIES HOLDINGS LTD.
Regeneration Economy and Growth,Corporate Property and Land,Supplies and Services,304221,Equipment and Materials,21/03/2022,3981989-2852ABL752,533.76,CITY PLUMBING SUPPLIES HOLDINGS LTD.
Regeneration Economy and Growth,Corporate Property and Land,Third Party Payments,430100,Rendered by Private Contractors,29/03/2022,3985444-2852ABM367,"1,217.42",CITY PLUMBING SUPPLIES HOLDINGS LTD.
Regeneration Economy and Growth,Corporate Property and Land,Supplies and Services,304221,Equipment and Materials,29/03/2022,3985444-2852ABM757,829.06,CITY PLUMBING SUPPLIES HOLDINGS LTD.
Resources BK0010,Finance & Transactional Services,Supplies and Services,304040,Equipment and Materials,02/03/2022,3974438-C/BN235307,"19,836.83",CIVICA UK LTD.
Resources BK0010,Finance & Transactional Services,Supplies and Services,304040,Equipment and Materials,02/03/2022,3974438-C/BN236129,"2,420.50",CIVICA UK LTD.
Resources BK0010,Finance & Transactional Services,Supplies and Services,338066,Services,03/03/2022,3974937-C/BN235516,"3,467.99",CIVICA UK LTD.
Neighbourhoods and Climate Change,Community Protection,Supplies and Services,342053,Computers and Communications,03/03/2022,3974937-C/HR235989,"22,099.31",CIVICA UK LTD.
Resources BK0010,Legal & Democratic Services,Supplies and Services,384199,Miscellaneous Expenses,03/03/2022,3974937-C/IW236699,"5,000.00",CIVICA UK LTD.
Regeneration Economy and Growth,Development and Housing,Supplies and Services,342053,Computers and Communications,03/03/2022,3974937-M/HB097283,"1,255.23",CIVICA UK LTD.
Resources BK0010,Finance & Transactional Services,Supplies and Services,304040,Equipment and Materials,07/03/2022,3975708-C/BN237224,"5,748.86",CIVICA UK LTD.
Resources BK0010,Finance & Transactional Services,Supplies and Services,342051,Computers and Communications,08/03/2022,3976627-C/RB237434,"1,620.00",CIVICA UK LTD.
Resources BK0010,Digital and Customer Services,Supplies and Services,342051,Computers and Communications,09/03/2022,3977009-C/PE236389,"84,920.00",CIVICA UK LTD.
Regeneration Economy and Growth,Development and Housing,Supplies and Services,342053,Computers and Communications,22/03/2022,3982814-M/HB098908,"4,437.18",CIVICA UK LTD.
Resources BK0010,Finance & Transactional Services,Supplies and Services,304040,Equipment and Materials,23/03/2022,3983225-C/BN237784,"2,952.66",CIVICA UK LTD.
Resources BK0010,Finance & Transactional Services,Supplies and Services,304040,Equipment and Materials,23/03/2022,3983225-C/BN238081,"4,388.70",CIVICA UK LTD.
Resources BK0010,Finance & Transactional Services,Supplies and Services,304040,Equipment and Materials,23/03/2022,3983225-C/BN238082,"3,836.86",CIVICA UK LTD.
Children and Young Peoples Services,Head of Education and Skills,Transport,230008,Contract Hire,18/03/2022,3981588-052,855.00,CJ COACHES.
Children and Young Peoples Services,Head of Education and Skills,Transport,230008,Contract Hire,11/03/2022,3977962-E031-KC0222,"3,362.70",CJ`S EXECUTIVE TRAVEL LTD.
Children and Young Peoples Services,Head of Education and Skills,Transport,230008,Contract Hire,11/03/2022,3977962-E032-CE0222,"1,860.00",CJ`S EXECUTIVE TRAVEL LTD.
Children and Young Peoples Services,Head of Education and Skills,Transport,230009,Contract Hire,11/03/2022,3977962-G036-LH0222,864.00,CJ`S EXECUTIVE TRAVEL LTD.
Children and Young Peoples Services,Head of Education and Skills,Transport,230008,Contract Hire,11/03/2022,3977962-M011-AA0222,"2,095.11",CJ`S EXECUTIVE TRAVEL LTD.
Children and Young Peoples Services,Head of Education and Skills,Transport,230008,Contract Hire,11/03/2022,3977962-N049-JM0222,"2,712.50",CJ`S EXECUTIVE TRAVEL LTD.
Children and Young Peoples Services,Head of Education and Skills,Transport,230008,Contract Hire,18/03/2022,3981589-A072-SP0222,958.95,CJ`S EXECUTIVE TRAVEL LTD.
Adult and Health Services,Head of Adults,Third Party Payments,472101,Purchase of Care,17/03/2022,3980442-I-22-3215769,"10,814.64",CLASSIC RESOURCES UK LTD T/A CLASSIC RESOURCES HOMECARE.
Neighbourhoods and Climate Change,Technical Services CM0300,Premises,150015,Apportioned Exps of Operational Blds,09/03/2022,3977010-181511,900.46,CLEE HILL PLANT LTD.
Neighbourhoods and Climate Change,Technical Services CM0300,Premises,150015,Apportioned Exps of Operational Blds,09/03/2022,3977010-182751,526.88,CLEE HILL PLANT LTD.
Neighbourhoods and Climate Change,Technical Services CM0300,Premises,150015,Apportioned Exps of Operational Blds,09/03/2022,3977010-183532,896.95,CLEE HILL PLANT LTD.
Neighbourhoods and Climate Change,Technical Services CM0300,Premises,150015,Apportioned Exps of Operational Blds,09/03/2022,3977010-183533,688.60,CLEE HILL PLANT LTD.
Neighbourhoods and Climate Change,Technical Services CM0300,Premises,150015,Apportioned Exps of Operational Blds,09/03/2022,3977010-185341,818.96,CLEE HILL PLANT LTD.
Neighbourhoods and Climate Change,Technical Services CM0300,Premises,150015,Apportioned Exps of Operational Blds,09/03/2022,3977010-185342,691.53,CLEE HILL PLANT LTD.
Regeneration Economy and Growth,Corporate Property and Land,Supplies and Services,338045,Services,31/03/2022,3986422-401907A,500.00,CLERKSROOM.
Adult and Health Services,Head of Adults,Third Party Payments,470101,Purchase of Care,17/03/2022,3980443-I-22-3215520,"2,360.00",CLEVEDEN CARE LTD T/A TEESDALE LODGE NURSING HOME.
Neighbourhoods and Climate Change,Technical Services CM0300,Stock A926,926004,Stock,02/03/2022,3974439-400039864,"1,511.51",CLEVELAND POTASH LTD T/A ICL FERTILIZERS.
Neighbourhoods and Climate Change,Technical Services CM0300,Stock A926,926004,Stock,02/03/2022,3974440-400039667,"5,071.22",CLEVELAND POTASH LTD T/A ICL FERTILIZERS.
Neighbourhoods and Climate Change,Technical Services CM0300,Stock A926,926004,Stock,02/03/2022,3974440-400039668,"2,957.57",CLEVELAND POTASH LTD T/A ICL FERTILIZERS.
Neighbourhoods and Climate Change,Technical Services CM0300,Stock A926,926004,Stock,02/03/2022,3974440-400039669,"4,291.98",CLEVELAND POTASH LTD T/A ICL FERTILIZERS.
Neighbourhoods and Climate Change,Technical Services CM0300,Stock A926,926004,Stock,02/03/2022,3974440-400039754,"3,699.85",CLEVELAND POTASH LTD T/A ICL FERTILIZERS.
Neighbourhoods and Climate Change,Technical Services CM0300,Stock A926,926004,Stock,02/03/2022,3974440-400039817,"2,928.31",CLEVELAND POTASH LTD T/A ICL FERTILIZERS.
Children and Young Peoples Services,Head of Childrens Social Care,Supplies and Services,364359,Grants to Voluntary Organisations,29/03/2022,3985447-22/03/2022,623.30,CLEVER CLOGS DAY NURSERY (DURHAM) LTD.
Dedicated Schools Grant BG0015,DSG Early Years Block,Transfer Payments,510030,School Children,22/03/2022,3982816-29730,615.00,CLEVES CROSS ACADEMY.
Dedicated Schools Grant BG0015,DSG High Needs Block,Central Support and Other Recharges,689995,Unclassified E690,24/03/2022,3983651-CAS-03-2022-151,"18,095.00",CLEVES CROSS LEARNING TRUST T/A ROSA STREET PRIMARY SCHOOL.
Dedicated Schools Grant BG0015,DSG High Needs Block,Central Support and Other Recharges,689989,Unclassified E690,03/03/2022,3974939-FEBRUARY2022TOPUP,720.00,CLEVES CROSS LEARNING TRUST.
Dedicated Schools Grant BG0015,DSG High Needs Block,Central Support and Other Recharges,689995,Unclassified E690,24/03/2022,3983652-CAS-03-2022-153,"13,211.00",CLEVES CROSS LEARNING TRUST.
Children and Young Peoples Services,Head of Education and Skills,Transport,230006,Contract Hire,11/03/2022,3977964-91,522.00,CLOVER TAXIS.
Children and Young Peoples Services,Head of Childrens Social Care,Transport,230005,Contract Hire,01/03/2022,3974094-CLUB2205D,910.00,CLUBMAN CABS.
Children and Young Peoples Services,Head of Childrens Social Care,Transport,230005,Contract Hire,01/03/2022,3974094-CLUB2205N,660.00,CLUBMAN CABS.
Children and Young Peoples Services,Head of Childrens Social Care,Transport,230005,Contract Hire,01/03/2022,3974094-CLUB2205Q,620.00,CLUBMAN CABS.
Children and Young Peoples Services,Head of Childrens Social Care,Transport,230005,Contract Hire,01/03/2022,3974094-CLUB2205S,680.00,CLUBMAN CABS.
Children and Young Peoples Services,Head of Childrens Social Care,Transport,230005,Contract Hire,01/03/2022,3974094-CLUB2206D,910.00,CLUBMAN CABS.
Children and Young Peoples Services,Head of Childrens Social Care,Transport,230005,Contract Hire,01/03/2022,3974094-CLUB2206N,600.00,CLUBMAN CABS.
Children and Young Peoples Services,Head of Childrens Social Care,Transport,230005,Contract Hire,01/03/2022,3974094-CLUB2206R,620.00,CLUBMAN CABS.
Children and Young Peoples Services,Head of Childrens Social Care,Transport,230005,Contract Hire,01/03/2022,3974094-CLUB2206S,690.00,CLUBMAN CABS.
Children and Young Peoples Services,Head of Childrens Social Care,Transport,230005,Contract Hire,01/03/2022,3974094-CLUB2207F,910.00,CLUBMAN CABS.
Children and Young Peoples Services,Head of Childrens Social Care,Transport,230005,Contract Hire,01/03/2022,3974094-CLUB2207W,620.00,CLUBMAN CABS.
Children and Young Peoples Services,Head of Childrens Social Care,Transport,230005,Contract Hire,01/03/2022,3974094-CLUB2207Y,690.00,CLUBMAN CABS.
Children and Young Peoples Services,Head of Childrens Social Care,Transport,230005,Contract Hire,09/03/2022,3977012-CLUB2204E,910.00,CLUBMAN CABS.
Children and Young Peoples Services,Head of Childrens Social Care,Transport,230005,Contract Hire,09/03/2022,3977012-CLUB2204U,690.00,CLUBMAN CABS.
Children and Young Peoples Services,Head of Childrens Social Care,Transport,230005,Contract Hire,25/03/2022,3984085-CLUB2210A,590.00,CLUBMAN CABS.
Children and Young Peoples Services,Head of Childrens Social Care,Transport,230005,Contract Hire,25/03/2022,3984085-CLUB2210F,910.00,CLUBMAN CABS.
Children and Young Peoples Services,Head of Childrens Social Care,Transport,230005,Contract Hire,25/03/2022,3984085-CLUB2210S,620.00,CLUBMAN CABS.
Children and Young Peoples Services,Head of Childrens Social Care,Transport,230005,Contract Hire,25/03/2022,3984085-CLUB2210U,840.00,CLUBMAN CABS.
Children and Young Peoples Services,Head of Childrens Social Care,Transport,230005,Contract Hire,25/03/2022,3984085-CLUB2210ZA,550.00,CLUBMAN CABS.
Children and Young Peoples Services,Head of Childrens Social Care,Transport,230005,Contract Hire,25/03/2022,3984085-CLUB2211H,910.00,CLUBMAN CABS.
Children and Young Peoples Services,Head of Childrens Social Care,Transport,230005,Contract Hire,25/03/2022,3984085-CLUB2211P,605.00,CLUBMAN CABS.
Children and Young Peoples Services,Head of Childrens Social Care,Transport,230005,Contract Hire,25/03/2022,3984085-CLUB2211Y,730.00,CLUBMAN CABS.
Children and Young Peoples Services,Head of Childrens Social Care,Transport,230005,Contract Hire,25/03/2022,3984085-CLUB2211ZE,550.00,CLUBMAN CABS.
Adult and Health Services,Head of Adults,Third Party Payments,470101,Purchase of Care,17/03/2022,3980444-I-22-3215652,"5,450.72",CLYDE CARE LIMITED T/A SPRINGHILL CAREHOME.
Neighbourhoods and Climate Change,Technical Services CM0300,Stock A926,926900,Stock in hand-Inventory system,01/03/2022,3974095-983219,810.50,CMT EQUIPMENT LTD.
Neighbourhoods and Climate Change,Technical Services CM0300,Stock A926,926900,Stock in hand-Inventory system,03/03/2022,3974941-976085,"1,428.25",CMT EQUIPMENT LTD.
Neighbourhoods and Climate Change,Technical Services CM0300,Stock A926,926900,Stock in hand-Inventory system,03/03/2022,3974941-979600,606.10,CMT EQUIPMENT LTD.
Neighbourhoods and Climate Change,Technical Services CM0300,Stock A926,926900,Stock in hand-Inventory system,24/03/2022,3983655-991979,578.50,CMT EQUIPMENT LTD.
Neighbourhoods and Climate Change,Technical Services CM0300,Stock A926,926900,Stock in hand-Inventory system,29/03/2022,3985451-992468,580.00,CMT EQUIPMENT LTD.
Children and Young Peoples Services,Head of Childrens Social Care,Third Party Payments,425021,Rendered by Voluntary Organisations,24/03/2022,3983658-DH20,"57,384.00",CO & CARE LTD.
Children and Young Peoples Services,Head of Education and Skills,Transport,230007,Contract Hire,04/03/2022,3975349-C/11386,"5,340.00",COCHRANES T/A KELVIN TRAVEL.
Children and Young Peoples Services,Head of Education and Skills,Transport,230007,Contract Hire,04/03/2022,3975349-C/11387,"2,970.00",COCHRANES T/A KELVIN TRAVEL.
Children and Young Peoples Services,Head of Education and Skills,Transport,230003,Contract Hire,04/03/2022,3975349-C/11388,"1,920.00",COCHRANES T/A KELVIN TRAVEL.
Children and Young Peoples Services,Head of Education and Skills,Transport,230003,Contract Hire,04/03/2022,3975349-C/11389,"2,220.00",COCHRANES T/A KELVIN TRAVEL.
Children and Young Peoples Services,Head of Education and Skills,Transport,230003,Contract Hire,04/03/2022,3975349-C/11390,"2,820.00",COCHRANES T/A KELVIN TRAVEL.
Neighbourhoods and Climate Change,Technical Services CM0300,Stock A926,926900,Stock in hand-Inventory system,03/03/2022,3974943-23000RX22002069,"1,044.00",COLAS LTD.
Neighbourhoods and Climate Change,Technical Services CM0300,Stock A926,926900,Stock in hand-Inventory system,04/03/2022,3975350-23000RX22002219,"2,478.24",COLAS LTD.
Neighbourhoods and Climate Change,Technical Services CM0300,Stock A926,926900,Stock in hand-Inventory system,09/03/2022,3977015-23000RX22001373,"1,967.76",COLAS LTD.
Adult and Health Services,Head of Adults,Third Party Payments,470101,Purchase of Care,17/03/2022,3980446-I-22-3215426,"9,428.64",COLEG ELIDYR CAMPHILL COMMUNITIES.
Neighbourhoods and Climate Change,Environmental Services,Supplies and Services,384199,Miscellaneous Expenses,09/03/2022,3977016-JOBO01/20637,625.00,COLIN JOBLING T/A RAINBOW INTERNATIONAL.
Neighbourhoods and Climate Change,Environmental Services,Supplies and Services,384199,Miscellaneous Expenses,09/03/2022,3977016-JOBO01/20638,995.00,COLIN JOBLING T/A RAINBOW INTERNATIONAL.
Neighbourhoods and Climate Change,Environmental Services,Supplies and Services,384199,Miscellaneous Expenses,15/03/2022,3979367-JOBO01/20650,750.00,COLIN JOBLING T/A RAINBOW INTERNATIONAL.
Adult and Health Services,Head of Adults,Supplies and Services,338099,Services,21/03/2022,3981991-JOBO01/20639,670.00,COLIN JOBLING T/A RAINBOW INTERNATIONAL.
Adult and Health Services,Head of Adults,Premises,150005,Apportioned Exps of Operational Blds,23/03/2022,3983228-JOB001/20635,575.00,COLIN JOBLING T/A RAINBOW INTERNATIONAL.
Adult and Health Services,Head of Adults,Supplies and Services,338429,Services,23/03/2022,3983228-JOBO01/20635,575.00,COLIN JOBLING T/A RAINBOW INTERNATIONAL.
Neighbourhoods and Climate Change,Environmental Services,Supplies and Services,384199,Miscellaneous Expenses,24/03/2022,3983659-JOBO01/20622,850.00,COLIN JOBLING T/A RAINBOW INTERNATIONAL.
Children and Young Peoples Services,Head of Education and Skills,Transfer Payments,510034,School Children,30/03/2022,3986011-CAS-03-2022-197,"1,150.00",COLTON HILLS SCHOOL.
Regeneration Economy and Growth,Culture Sport and Tourism,Supplies and Services,338047,Services,15/03/2022,3979369-10124,"3,092.33",COMEDY STORE MANAGEMENT T/A THE COMEDY STORE LTD.
Adult and Health Services,Head of Adults,Third Party Payments,472101,Purchase of Care,17/03/2022,3980451-I-22-3215866,"96,399.23",COMFORT CALL LTD.
Adult and Health Services,Head of Adults,Third Party Payments,479152,Purchase of Care,24/03/2022,3983660-WORKFORCER&RFUND2/184,"21,019.21",COMFORT CALL LTD.
Children and Young Peoples Services,Head of Early Help Inclusion & Vulnerable Children.,Third Party Payments,410037,Rendered by Other Local Authorities,04/03/2022,3975351-2021528,"2,300.00",COMMON THREAD LTD.
Children and Young Peoples Services,Head of Early Help Inclusion & Vulnerable Children.,Third Party Payments,410037,Rendered by Other Local Authorities,04/03/2022,3975351-2021529,"2,300.00",COMMON THREAD LTD.
Children and Young Peoples Services,Head of Early Help Inclusion & Vulnerable Children.,Third Party Payments,410037,Rendered by Other Local Authorities,16/03/2022,3979782-2021646,"2,300.00",COMMON THREAD LTD.
Children and Young Peoples Services,Head of Early Help Inclusion & Vulnerable Children.,Third Party Payments,410037,Rendered by Other Local Authorities,16/03/2022,3979782-2021647,"2,300.00",COMMON THREAD LTD.
Adult and Health Services,Head of Adults,Third Party Payments,478151,Purchase of Care,03/03/2022,3974944-421R182823,"8,049.60",COMMUNITY INTEGRATED CARE LTD.
Adult and Health Services,Head of Adults,Third Party Payments,478151,Purchase of Care,08/03/2022,3976630-421R182853,"14,860.80",COMMUNITY INTEGRATED CARE LTD.
Adult and Health Services,Head of Adults,Third Party Payments,478101,Purchase of Care,17/03/2022,3980452-I-22-3215794,"20,503.20",COMMUNITY INTEGRATED CARE LTD.
Adult and Health Services,Head of Adults,Third Party Payments,478101,Purchase of Care,17/03/2022,3980452-I-22-3215878,"17,244.72",COMMUNITY INTEGRATED CARE LTD.
Adult and Health Services,Head of Adults,Third Party Payments,478101,Purchase of Care,17/03/2022,3980452-I-22-3215890,"13,498.56",COMMUNITY INTEGRATED CARE LTD.
Adult and Health Services,Head of Adults,Third Party Payments,478101,Purchase of Care,17/03/2022,3980452-I-22-3215892,"20,524.28",COMMUNITY INTEGRATED CARE LTD.
Adult and Health Services,Head of Adults,Third Party Payments,478101,Purchase of Care,17/03/2022,3980452-I-22-3215893,"13,837.88",COMMUNITY INTEGRATED CARE LTD.
Adult and Health Services,Head of Adults,Third Party Payments,478101,Purchase of Care,17/03/2022,3980452-I-22-3215961,"25,263.36",COMMUNITY INTEGRATED CARE LTD.
Adult and Health Services,Head of Adults,Third Party Payments,478101,Purchase of Care,17/03/2022,3980453-I-22-3215793,"22,865.52",COMMUNITY INTEGRATED CARE LTD.
Adult and Health Services,Head of Adults,Third Party Payments,478151,Purchase of Care,23/03/2022,3983229-421R184003,"14,860.80",COMMUNITY INTEGRATED CARE LTD.
Adult and Health Services,Head of Adults,Third Party Payments,478151,Purchase of Care,24/03/2022,3983661-421R183974,"13,498.56",COMMUNITY INTEGRATED CARE LTD.
Adult and Health Services,Head of Adults,Third Party Payments,478151,Purchase of Care,30/03/2022,3986012-421R183973,"8,049.60",COMMUNITY INTEGRATED CARE LTD.
Regeneration Economy and Growth,Culture Sport and Tourism,Third Party Payments,430100,Rendered by Private Contractors,29/03/2022,3985453-PSINV05819,"8,291.77",COMPETITION LINE UK LTD T/A LIFESTYLE FITNESS.
Regeneration Economy and Growth,Culture Sport and Tourism,Third Party Payments,430100,Rendered by Private Contractors,29/03/2022,3985453-PSINV05821,"3,043.87",COMPETITION LINE UK LTD T/A LIFESTYLE FITNESS.
Regeneration Economy and Growth,Culture Sport and Tourism,Third Party Payments,430100,Rendered by Private Contractors,29/03/2022,3985453-PSINV05822,"17,878.04",COMPETITION LINE UK LTD T/A LIFESTYLE FITNESS.
